{"text_format":"1","workbook":"xlsx","n_sheets":11,"sheets":["中間報告","明細書【断熱材】","明細書【窓・玄関ドア】","明細書【ガラス交換】","明細書【設備】","INDIRECTリスト","総括表","実績報告書","取得財産等管理台帳（取得財産等明細表）","精算払請求書","広報活動実施要領"],"not_rendered":{"charts":0,"images":1,"macros":1,"external_links":0,"defined_names":17,"comments":0,"pivot_tables":0},"unopened":[],"bounds":{"document_bytes":16777216,"sheet_cells":100000,"rows_first":2000,"rows_last":500,"rows_between":2000,"halvings":0,"cell_chars":16384,"cell_head_chars":4096},"cells_cut":0,"cells_raw":0,"read":"whole","date_system":"1900"}

{"sheet":"中間報告","index":0,"n_rows":28,"n_cols":92,"rows_kept":28,"cut":false,"hidden":false,"merged":[[8,12,8,14],[27,0,27,88],[23,41,23,50],[24,41,24,50],[23,0,25,2],[23,51,25,88],[25,41,25,50],[23,3,25,24],[23,25,23,40],[24,25,24,40],[25,25,25,40],[26,0,26,88],[21,0,21,2],[21,3,21,40],[21,41,21,50],[21,51,21,88],[22,0,22,2],[22,3,22,40],[22,41,22,50],[22,51,22,88],[19,51,19,88],[20,51,20,88],[20,0,20,2],[20,3,20,40],[20,41,20,50],[18,0,18,2],[18,3,18,40],[18,41,18,50],[18,51,18,88],[19,0,19,2],[19,3,19,40],[19,41,19,50],[17,0,17,88],[11,0,11,88],[12,0,12,88],[13,0,13,88],[14,0,14,88],[15,0,15,88],[16,0,16,88],[0,0,0,88],[1,0,1,88],[2,0,2,88],[5,0,5,11],[5,12,5,53],[3,91,4,91],[7,0,7,11],[7,12,7,22],[7,23,7,32],[7,33,7,43],[7,44,7,53],[3,90,4,90],[6,0,6,11],[6,12,6,24],[6,25,6,37],[6,38,6,43]]}
["定型様式8"]
["令和７年度 \n住宅・建築物需給一体型等省エネルギー投資促進事業費\n（既築住宅のZEH改修実証支援事業）"]
["中間報告"]
[null,null,null,null,null,null,null,null,null,null,null,null,null,null,null,null,null,null,null,null,null,null,null,null,null,null,null,null,null,null,null,null,null,null,null,null,null,null,null,null,null,null,null,null,null,null,null,null,null,null,null,null,null,null,null,null,null,null,null,null,null,null,null,null,null,null,null,null,null,null,null,null,null,null,null,null,null,null,null,null,null,null,null,null,null,null,null,null,null,null,"No","SII連絡事項"]
[]
["法人名",null,null,null,null,null,null,null,null,null,null,null,null,null,null,null,null,null,null,null,null,null,null,null,null,null,null,null,null,null,null,null,null,null,null,null,null,null,null,null,null,null,null,null,null,null,null,null,null,null,null,null,null,null,null,null,null,null,null,null,null,null,null,null,null,null,null,null,null,null,null,null,null,null,null,null,null,null,null,null,null,null,null,null,null,null,null,null,null,null,1]
["交付決定番号",null,null,null,null,null,null,null,null,null,null,null,"SII-BBA250-03-",null,null,null,null,null,null,null,null,null,null,null,null,null,null,null,null,null,null,null,null,null,null,null,null,null,"-A",null,null,null,null,null,null,null,null,null,null,null,null,null,null,null,null,null,null,null,null,null,null,null,null,null,null,null,null,null,null,null,null,null,null,null,null,null,null,null,null,null,null,null,null,null,null,null,null,null,null,null,2]
["報告種別",null,null,null,null,null,null,null,null,null,null,null,"中間報告",null,null,null,null,null,null,null,null,null,null,null,null,null,null,null,null,null,null,null,null,"実績報告",null,null,null,null,null,null,null,null,null,null,null,null,null,null,null,null,null,null,null,null,null,null,null,null,null,null,null,null,null,null,null,null,null,null,null,null,null,null,null,null,null,null,null,null,null,null,null,null,null,null,null,null,null,null,null,null,3]
[null,null,null,null,null,null,null,null,null,null,null,null,1]
[]
[]
["中間報告について"]
["●ＢＥＬＳに関する審査を受けた結果、ＢＥＩとＵＡ値及びηＡＣ値が本事業の交付決定時の値よりも悪化した場合、\n   又は本事業の要件に不適合となった場合は、原則補助金の交付を受けることができないので、注意してください。"]
["●中間報告時は、「明細書」、「総括表」のみ入力して提出してください。\n   　 ※総括表の住宅の概要への入力も行ってください。\n　　　※その他のシートへの入力は不要です。"]
["●「明細書」、「総括表」それぞれの入力は中間報告時の欄に行ってください。"]
["●交付申請時の内容に変更があった場合、必ず事前にその内容をＳＩＩへ報告し、指示に従ってください。"]
[]
["中間報告の必要提出書類一覧"]
[null,null,null,"書類名",null,null,null,null,null,null,null,null,null,null,null,null,null,null,null,null,null,null,null,null,null,null,null,null,null,null,null,null,null,null,null,null,null,null,null,null,null,"様式",null,null,null,null,null,null,null,null,null,"ファイル名\n（ファイル形式）"]
["①",null,null,"建築物の省エネ性能の評価書（ＢＥＬＳ）",null,null,null,null,null,null,null,null,null,null,null,null,null,null,null,null,null,null,null,null,null,null,null,null,null,null,null,null,null,null,null,null,null,null,null,null,null,"※1",null,null,null,null,null,null,null,null,null,"１ ＢＥＬＳ（中間） (〇〇〇〇〇).pdf\n（ＰＤＦファイル）"]
["②",null,null,"一次エネルギー消費量計算結果（ＷＥＢプログラム）\n※第三者評価機関の押印があるもの",null,null,null,null,null,null,null,null,null,null,null,null,null,null,null,null,null,null,null,null,null,null,null,null,null,null,null,null,null,null,null,null,null,null,null,null,null,"※2",null,null,null,null,null,null,null,null,null,"２ エネルギー計算（中間）(〇〇〇〇〇).pdf\n（ＰＤＦファイル）"]
["③",null,null,"外皮計算書\n※第三者評価機関の押印があるもの",null,null,null,null,null,null,null,null,null,null,null,null,null,null,null,null,null,null,null,null,null,null,null,null,null,null,null,null,null,null,null,null,null,null,null,null,null,"自由",null,null,null,null,null,null,null,null,null,"３ 外皮計算（中間）(〇〇〇〇〇).pdf\n（ＰＤＦファイル）"]
["④",null,null,"建築図面等\n※第三者評価機関の押印があるもの",null,null,null,null,null,null,null,null,null,null,null,null,null,null,null,null,null,null,null,null,null,null,null,null,null,null,null,null,null,null,null,null,null,null,null,null,null,"自由",null,null,null,null,null,null,null,null,null,"４ 図面（中間）(〇〇〇〇〇).pdf\n（ＰＤＦファイル）"]
["⑤",null,null,"実績報告書",null,null,null,null,null,null,null,null,null,null,null,null,null,null,null,null,null,null,null,null,null,"中間報告",null,null,null,null,null,null,null,null,null,null,null,null,null,null,null,"定型様式8",null,null,null,null,null,null,null,null,null,"５ 実績報告書(〇〇〇〇〇).xlsm\n（Ｅｘｃｅｌファイル）"]
[null,null,null,null,null,null,null,null,null,null,null,null,null,null,null,null,null,null,null,null,null,null,null,null,null,"明細書",null,null,null,null,null,null,null,null,null,null,null,null,null,null,null,"定型様式9"]
[null,null,null,null,null,null,null,null,null,null,null,null,null,null,null,null,null,null,null,null,null,null,null,null,null,"総括表",null,null,null,null,null,null,null,null,null,null,null,null,null,null,null,"定型様式10"]
["※１ ＢＥＬＳ評価機関が発行した評価書を提出すること。"]
["※２ 国立研究開発法人 建築研究所のホームページに公開されている「エネルギー消費性能計算プログラム［住宅版］」を使用すること。"]

{"sheet":"明細書【断熱材】","index":1,"n_rows":61,"n_cols":119,"rows_kept":61,"cut":false,"hidden":false,"merged":[[0,0,0,115],[54,60,54,62],[54,63,54,74],[54,75,54,101],[54,102,54,104],[54,105,54,108],[54,110,54,115],[55,60,55,62],[55,63,55,74],[55,75,55,101],[55,102,55,104],[55,105,55,108],[55,110,55,115],[52,75,52,101],[52,102,52,104],[52,105,52,108],[52,110,52,115],[53,60,53,62],[53,63,53,74],[53,75,53,101],[53,102,53,104],[53,105,53,108],[53,110,53,115],[52,60,52,62],[56,60,56,104],[56,105,56,108],[56,110,56,115],[57,60,57,109],[57,110,57,115],[58,60,58,109],[58,110,58,115],[60,60,60,108],[60,110,60,115],[52,63,52,74],[50,60,50,62],[50,63,50,74],[50,75,50,101],[50,102,50,104],[50,105,50,108],[50,110,50,115],[51,60,51,62],[51,63,51,74],[51,75,51,101],[51,102,51,104],[51,105,51,108],[51,110,51,115],[48,60,48,62],[48,63,48,74],[48,75,48,101],[48,102,48,104],[48,105,48,108],[48,110,48,115],[49,60,49,62],[49,63,49,74],[49,75,49,101],[49,102,49,104],[49,105,49,108],[49,110,49,115],[46,60,46,62],[46,63,46,74],[46,75,46,101],[46,102,46,104],[46,105,46,108],[46,110,46,115],[47,60,47,62],[47,63,47,74],[47,75,47,101],[47,102,47,104],[47,105,47,108],[47,110,47,115],[39,60,39,104],[39,105,39,108],[39,110,39,115],[40,60,40,109],[40,110,40,115],[41,60,41,109],[41,110,41,115],[45,60,45,62],[45,63,45,74],[45,75,45,101],[45,102,45,104],[45,105,45,109],[45,110,45,115],[37,60,37,74],[37,75,37,101],[37,102,37,104],[37,105,37,108],[37,110,37,115],[38,60,38,74],[38,75,38,101],[38,102,38,104],[38,105,38,108],[38,110,38,115],[35,60,35,74],[35,75,35,101],[35,102,35,104],[35,105,35,108],[35,110,35,115],[36,60,36,74],[36,75,36,101],[36,102,36,104],[36,105,36,108],[36,110,36,115],[33,60,33,74],[33,75,33,101],[33,102,33,104],[33,105,33,108],[33,110,33,115],[34,60,34,74],[34,75,34,101],[34,102,34,104],[34,105,34,108],[34,110,34,115],[31,60,31,74],[31,75,31,101],[31,102,31,104],[31,105,31,108],[31,110,31,115],[32,60,32,74],[32,75,32,101],[32,102,32,104],[32,105,32,108],[32,110,32,115],[29,60,29,74],[29,75,29,101],[29,102,29,104],[29,105,29,108],[29,110,29,115],[30,60,30,74],[30,75,30,101],[30,102,30,104],[30,105,30,108],[30,110,30,115],[22,60,22,104],[22,105,22,108],[22,110,22,115],[23,60,23,109],[23,110,23,115],[24,60,24,109],[24,110,24,115],[28,60,28,74],[28,75,28,101],[28,102,28,104],[28,105,28,109],[28,110,28,115],[20,60,20,62],[20,63,20,74],[20,75,20,101],[20,102,20,104],[20,105,20,108],[20,110,20,115],[21,60,21,62],[21,63,21,74],[21,75,21,101],[21,102,21,104],[21,105,21,108],[21,110,21,115],[18,60,18,62],[18,63,18,74],[18,75,18,101],[18,102,18,104],[18,105,18,108],[18,110,18,115],[19,60,19,62],[19,63,19,74],[19,75,19,101],[19,102,19,104],[19,105,19,108],[19,110,19,115],[16,60,16,62],[16,63,16,74],[16,75,16,101],[16,102,16,104],[16,105,16,108],[16,110,16,115],[17,60,17,62],[17,63,17,74],[17,75,17,101],[17,102,17,104],[17,105,17,108],[17,110,17,115],[14,60,14,62],[14,63,14,74],[14,75,14,101],[14,102,14,104],[14,105,14,108],[14,110,14,115],[15,60,15,62],[15,63,15,74],[15,75,15,101],[15,102,15,104],[15,105,15,108],[15,110,15,115],[57,3,57,52],[57,53,57,58],[58,53,58,58],[60,53,60,58],[60,0,60,51],[10,60,10,115],[11,60,11,62],[11,63,11,74],[11,75,11,101],[11,102,11,104],[11,105,11,109],[11,110,11,115],[12,60,12,62],[12,63,12,74],[12,75,12,101],[12,102,12,104],[12,105,12,108],[12,110,12,115],[13,60,13,62],[13,63,13,74],[13,75,13,101],[13,102,13,104],[13,105,13,108],[13,110,13,115],[55,3,55,5],[55,6,55,17],[55,18,55,44],[55,45,55,47],[55,48,55,51],[55,53,55,58],[56,3,56,47],[56,48,56,51],[56,53,56,58],[53,3,53,5],[53,6,53,17],[53,18,53,44],[53,45,53,47],[53,48,53,51],[53,53,53,58],[54,3,54,5],[54,6,54,17],[54,18,54,44],[54,45,54,47],[54,48,54,51],[54,53,54,58],[51,3,51,5],[51,6,51,17],[51,18,51,44],[51,45,51,47],[51,48,51,51],[51,53,51,58],[52,3,52,5],[52,6,52,17],[52,18,52,44],[52,45,52,47],[52,48,52,51],[52,53,52,58],[49,3,49,5],[49,6,49,17],[49,18,49,44],[49,45,49,47],[49,48,49,51],[49,53,49,58],[50,3,50,5],[50,6,50,17],[50,18,50,44],[50,45,50,47],[50,48,50,51],[50,53,50,58],[47,3,47,5],[47,6,47,17],[47,18,47,44],[47,45,47,47],[47,48,47,51],[47,53,47,58],[48,3,48,5],[48,6,48,17],[48,18,48,44],[48,45,48,47],[48,48,48,51],[48,53,48,58],[41,53,41,58],[45,3,45,5],[45,6,45,17],[45,18,45,44],[45,45,45,47],[45,48,45,52],[45,53,45,58],[46,3,46,5],[46,6,46,17],[46,18,46,44],[46,45,46,47],[46,48,46,51],[46,53,46,58],[38,3,38,17],[38,18,38,44],[38,45,38,47],[38,48,38,51],[38,53,38,58],[39,3,39,47],[39,48,39,51],[39,53,39,58],[40,3,40,52],[40,53,40,58],[36,3,36,17],[36,18,36,44],[36,45,36,47],[36,48,36,51],[36,53,36,58],[37,3,37,17],[37,18,37,44],[37,45,37,47],[37,48,37,51],[37,53,37,58],[34,3,34,17],[34,18,34,44],[34,45,34,47],[34,48,34,51],[34,53,34,58],[35,3,35,17],[35,18,35,44],[35,45,35,47],[35,48,35,51],[35,53,35,58],[32,3,32,17],[32,18,32,44],[32,45,32,47],[32,48,32,51],[32,53,32,58],[33,3,33,17],[33,18,33,44],[33,45,33,47],[33,48,33,51],[33,53,33,58],[23,53,23,58],[24,53,24,58],[23,3,23,52],[10,3,10,58],[28,3,28,17],[28,18,28,44],[28,45,28,47],[28,48,28,52],[28,53,28,58],[21,3,21,5],[21,6,21,17],[21,18,21,44],[21,45,21,47],[21,48,21,51],[21,53,21,58],[22,3,22,47],[22,48,22,51],[22,53,22,58],[19,3,19,5],[19,6,19,17],[19,18,19,44],[19,45,19,47],[19,48,19,51],[19,53,19,58],[20,3,20,5],[20,6,20,17],[20,18,20,44],[20,45,20,47],[20,48,20,51],[20,53,20,58],[17,3,17,5],[17,6,17,17],[17,18,17,44],[17,45,17,47],[17,48,17,51],[17,53,17,58],[18,3,18,5],[18,6,18,17],[18,18,18,44],[18,45,18,47],[18,48,18,51],[18,53,18,58],[15,3,15,5],[15,6,15,17],[15,18,15,44],[15,45,15,47],[15,48,15,51],[15,53,15,58],[16,3,16,5],[16,6,16,17],[16,18,16,44],[16,45,16,47],[16,48,16,51],[16,53,16,58],[13,3,13,5],[13,6,13,17],[13,18,13,44],[13,45,13,47],[13,48,13,51],[13,53,13,58],[14,3,14,5],[14,6,14,17],[14,18,14,44],[14,45,14,47],[14,48,14,51],[14,53,14,58],[58,0,58,52],[61,0,61,58],[57,0,57,2],[46,0,56,2],[29,0,39,2],[41,0,41,52],[45,0,45,2],[40,0,40,2],[43,0,43,7],[29,3,29,17],[29,18,29,44],[29,45,29,47],[29,48,29,51],[29,53,29,58],[30,3,30,17],[30,18,30,44],[30,45,30,47],[30,48,30,51],[30,53,30,58],[31,3,31,17],[31,18,31,44],[31,45,31,47],[31,48,31,51],[31,53,31,58],[8,60,8,67],[26,60,26,67],[43,60,43,67],[1,0,1,115],[24,0,24,52],[28,0,28,2],[8,0,8,7],[26,0,26,7],[4,0,4,58],[11,0,11,2],[12,0,22,2],[23,0,23,2],[11,3,11,5],[11,6,11,17],[11,18,11,44],[11,45,11,47],[11,48,11,52],[11,53,11,58],[12,3,12,5],[12,6,12,17],[12,18,12,44],[12,45,12,47],[12,48,12,51],[12,53,12,58]]}
["定型様式9"]
["明細書　【断熱材】"]
[]
["＜補助対象経費＞"]
["・見積書の各項目が税込金額で記載されている場合は、必ず[税抜]に修正して作成すること。\n・部位ごとに明細を作成すること。"]
[]
[null,null,"…自動入力",null,null,null,null,null,"…申請者入力欄"]
[]
["天井・屋根",null,null,null,null,null,null,null,null,null,null,null,null,null,null,null,null,null,null,null,null,null,null,null,null,null,null,null,null,null,null,null,null,null,null,null,null,null,null,null,null,null,null,null,null,null,null,null,null,null,null,null,null,null,null,null,null,null,null,null,"天井・屋根"]
[]
[null,null,null,"中間報告",null,null,null,null,null,null,null,null,null,null,null,null,null,null,null,null,null,null,null,null,null,null,null,null,null,null,null,null,null,null,null,null,null,null,null,null,null,null,null,null,null,null,null,null,null,null,null,null,null,null,null,null,null,null,null,null,"実績報告"]
["費目",null,null,"部位",null,null,"メーカー名",null,null,null,null,null,null,null,null,null,null,null,"製品名",null,null,null,null,null,null,null,null,null,null,null,null,null,null,null,null,null,null,null,null,null,null,null,null,null,null,"厚み\n(mm)",null,null,"外皮面積\n（㎡）",null,null,null,null,"金額(円）\n［税抜］",null,null,null,null,null,null,"部位",null,null,"メーカー名",null,null,null,null,null,null,null,null,null,null,null,"製品名",null,null,null,null,null,null,null,null,null,null,null,null,null,null,null,null,null,null,null,null,null,null,null,null,null,null,"厚み\n(mm)",null,null,"外皮面積\n（㎡）",null,null,null,null,"金額(円）\n［税抜］",null,null,null,null,null,null,"No.","SII連絡事項"]
["材料費",null,null,null,null,null,null,null,null,null,null,null,null,null,null,null,null,null,null,null,null,null,null,null,null,null,null,null,null,null,null,null,null,null,null,null,null,null,null,null,null,null,null,null,null,null,null,null,null,null,null,null,"㎡",null,null,null,null,null,null,null,null,null,null,null,null,null,null,null,null,null,null,null,null,null,null,null,null,null,null,null,null,null,null,null,null,null,null,null,null,null,null,null,null,null,null,null,null,null,null,null,null,null,null,null,null,null,null,null,null,"㎡",null,null,null,null,null,null,null,1]
[null,null,null,null,null,null,null,null,null,null,null,null,null,null,null,null,null,null,null,null,null,null,null,null,null,null,null,null,null,null,null,null,null,null,null,null,null,null,null,null,null,null,null,null,null,null,null,null,null,null,null,null,"㎡",null,null,null,null,null,null,null,null,null,null,null,null,null,null,null,null,null,null,null,null,null,null,null,null,null,null,null,null,null,null,null,null,null,null,null,null,null,null,null,null,null,null,null,null,null,null,null,null,null,null,null,null,null,null,null,null,"㎡",null,null,null,null,null,null,null,2]
[null,null,null,null,null,null,null,null,null,null,null,null,null,null,null,null,null,null,null,null,null,null,null,null,null,null,null,null,null,null,null,null,null,null,null,null,null,null,null,null,null,null,null,null,null,null,null,null,null,null,null,null,"㎡",null,null,null,null,null,null,null,null,null,null,null,null,null,null,null,null,null,null,null,null,null,null,null,null,null,null,null,null,null,null,null,null,null,null,null,null,null,null,null,null,null,null,null,null,null,null,null,null,null,null,null,null,null,null,null,null,"㎡",null,null,null,null,null,null,null,3]
[null,null,null,null,null,null,null,null,null,null,null,null,null,null,null,null,null,null,null,null,null,null,null,null,null,null,null,null,null,null,null,null,null,null,null,null,null,null,null,null,null,null,null,null,null,null,null,null,null,null,null,null,"㎡",null,null,null,null,null,null,null,null,null,null,null,null,null,null,null,null,null,null,null,null,null,null,null,null,null,null,null,null,null,null,null,null,null,null,null,null,null,null,null,null,null,null,null,null,null,null,null,null,null,null,null,null,null,null,null,null,"㎡",null,null,null,null,null,null,null,4]
[null,null,null,null,null,null,null,null,null,null,null,null,null,null,null,null,null,null,null,null,null,null,null,null,null,null,null,null,null,null,null,null,null,null,null,null,null,null,null,null,null,null,null,null,null,null,null,null,null,null,null,null,"㎡",null,null,null,null,null,null,null,null,null,null,null,null,null,null,null,null,null,null,null,null,null,null,null,null,null,null,null,null,null,null,null,null,null,null,null,null,null,null,null,null,null,null,null,null,null,null,null,null,null,null,null,null,null,null,null,null,"㎡",null,null,null,null,null,null,null,5]
[null,null,null,null,null,null,null,null,null,null,null,null,null,null,null,null,null,null,null,null,null,null,null,null,null,null,null,null,null,null,null,null,null,null,null,null,null,null,null,null,null,null,null,null,null,null,null,null,null,null,null,null,"㎡",null,null,null,null,null,null,null,null,null,null,null,null,null,null,null,null,null,null,null,null,null,null,null,null,null,null,null,null,null,null,null,null,null,null,null,null,null,null,null,null,null,null,null,null,null,null,null,null,null,null,null,null,null,null,null,null,"㎡",null,null,null,null,null,null,null,6]
[null,null,null,null,null,null,null,null,null,null,null,null,null,null,null,null,null,null,null,null,null,null,null,null,null,null,null,null,null,null,null,null,null,null,null,null,null,null,null,null,null,null,null,null,null,null,null,null,null,null,null,null,"㎡",null,null,null,null,null,null,null,null,null,null,null,null,null,null,null,null,null,null,null,null,null,null,null,null,null,null,null,null,null,null,null,null,null,null,null,null,null,null,null,null,null,null,null,null,null,null,null,null,null,null,null,null,null,null,null,null,"㎡",null,null,null,null,null,null,null,7]
[null,null,null,null,null,null,null,null,null,null,null,null,null,null,null,null,null,null,null,null,null,null,null,null,null,null,null,null,null,null,null,null,null,null,null,null,null,null,null,null,null,null,null,null,null,null,null,null,null,null,null,null,"㎡",null,null,null,null,null,null,null,null,null,null,null,null,null,null,null,null,null,null,null,null,null,null,null,null,null,null,null,null,null,null,null,null,null,null,null,null,null,null,null,null,null,null,null,null,null,null,null,null,null,null,null,null,null,null,null,null,"㎡",null,null,null,null,null,null,null,8]
[null,null,null,null,null,null,null,null,null,null,null,null,null,null,null,null,null,null,null,null,null,null,null,null,null,null,null,null,null,null,null,null,null,null,null,null,null,null,null,null,null,null,null,null,null,null,null,null,null,null,null,null,"㎡",null,null,null,null,null,null,null,null,null,null,null,null,null,null,null,null,null,null,null,null,null,null,null,null,null,null,null,null,null,null,null,null,null,null,null,null,null,null,null,null,null,null,null,null,null,null,null,null,null,null,null,null,null,null,null,null,"㎡",null,null,null,null,null,null,null,9]
[null,null,null,null,null,null,null,null,null,null,null,null,null,null,null,null,null,null,null,null,null,null,null,null,null,null,null,null,null,null,null,null,null,null,null,null,null,null,null,null,null,null,null,null,null,null,null,null,null,null,null,null,"㎡",null,null,null,null,null,null,null,null,null,null,null,null,null,null,null,null,null,null,null,null,null,null,null,null,null,null,null,null,null,null,null,null,null,null,null,null,null,null,null,null,null,null,null,null,null,null,null,null,null,null,null,null,null,null,null,null,"㎡",null,null,null,null,null,null,null,10]
[null,null,null,"外皮面積・設備費計",null,null,null,null,null,null,null,null,null,null,null,null,null,null,null,null,null,null,null,null,null,null,null,null,null,null,null,null,null,null,null,null,null,null,null,null,null,null,null,null,null,null,null,null,{"$f":"SUM(AW13:AZ22)","v":0},null,null,null,"㎡",{"$f":"SUM(BB13:BG22)","v":0},null,null,null,null,null,null,"外皮面積・設備費計",null,null,null,null,null,null,null,null,null,null,null,null,null,null,null,null,null,null,null,null,null,null,null,null,null,null,null,null,null,null,null,null,null,null,null,null,null,null,null,null,null,null,null,null,{"$f":"SUM(DB13:DE22)","v":0},null,null,null,"㎡",{"$f":"SUM(DG13:DL22)","v":0},null,null,null,null,null,null,11]
["工事費",null,null,"工事費計",null,null,null,null,null,null,null,null,null,null,null,null,null,null,null,null,null,null,null,null,null,null,null,null,null,null,null,null,null,null,null,null,null,null,null,null,null,null,null,null,null,null,null,null,null,null,null,null,null,null,null,null,null,null,null,null,"工事費計",null,null,null,null,null,null,null,null,null,null,null,null,null,null,null,null,null,null,null,null,null,null,null,null,null,null,null,null,null,null,null,null,null,null,null,null,null,null,null,null,null,null,null,null,null,null,null,null,null,null,null,null,null,null,null,null,12]
["小計",null,null,null,null,null,null,null,null,null,null,null,null,null,null,null,null,null,null,null,null,null,null,null,null,null,null,null,null,null,null,null,null,null,null,null,null,null,null,null,null,null,null,null,null,null,null,null,null,null,null,null,null,{"$f":"SUM(BB23:BG24)","v":0},null,null,null,null,null,null,"小計",null,null,null,null,null,null,null,null,null,null,null,null,null,null,null,null,null,null,null,null,null,null,null,null,null,null,null,null,null,null,null,null,null,null,null,null,null,null,null,null,null,null,null,null,null,null,null,null,null,{"$f":"SUM(DG23:DL24)","v":0},null,null,null,null,null,null,13]
[]
["壁",null,null,null,null,null,null,null,null,null,null,null,null,null,null,null,null,null,null,null,null,null,null,null,null,null,null,null,null,null,null,null,null,null,null,null,null,null,null,null,null,null,null,null,null,null,null,null,null,null,null,null,null,null,null,null,null,null,null,null,"壁"]
[]
["費目",null,null,"メーカー名",null,null,null,null,null,null,null,null,null,null,null,null,null,null,"製品名",null,null,null,null,null,null,null,null,null,null,null,null,null,null,null,null,null,null,null,null,null,null,null,null,null,null,"厚み\n(mm)",null,null,"外皮面積\n（㎡）",null,null,null,null,"金額(円）\n［税抜］",null,null,null,null,null,null,"メーカー名",null,null,null,null,null,null,null,null,null,null,null,null,null,null,"製品名",null,null,null,null,null,null,null,null,null,null,null,null,null,null,null,null,null,null,null,null,null,null,null,null,null,null,"厚み\n(mm)",null,null,"外皮面積\n（㎡）",null,null,null,null,"金額(円）\n［税抜］",null,null,null,null,null,null,"No.","SII連絡事項"]
["材料費",null,null,null,null,null,null,null,null,null,null,null,null,null,null,null,null,null,null,null,null,null,null,null,null,null,null,null,null,null,null,null,null,null,null,null,null,null,null,null,null,null,null,null,null,null,null,null,null,null,null,null,"㎡",null,null,null,null,null,null,null,null,null,null,null,null,null,null,null,null,null,null,null,null,null,null,null,null,null,null,null,null,null,null,null,null,null,null,null,null,null,null,null,null,null,null,null,null,null,null,null,null,null,null,null,null,null,null,null,null,"㎡",null,null,null,null,null,null,null,14]
[null,null,null,null,null,null,null,null,null,null,null,null,null,null,null,null,null,null,null,null,null,null,null,null,null,null,null,null,null,null,null,null,null,null,null,null,null,null,null,null,null,null,null,null,null,null,null,null,null,null,null,null,"㎡",null,null,null,null,null,null,null,null,null,null,null,null,null,null,null,null,null,null,null,null,null,null,null,null,null,null,null,null,null,null,null,null,null,null,null,null,null,null,null,null,null,null,null,null,null,null,null,null,null,null,null,null,null,null,null,null,"㎡",null,null,null,null,null,null,null,15]
[null,null,null,null,null,null,null,null,null,null,null,null,null,null,null,null,null,null,null,null,null,null,null,null,null,null,null,null,null,null,null,null,null,null,null,null,null,null,null,null,null,null,null,null,null,null,null,null,null,null,null,null,"㎡",null,null,null,null,null,null,null,null,null,null,null,null,null,null,null,null,null,null,null,null,null,null,null,null,null,null,null,null,null,null,null,null,null,null,null,null,null,null,null,null,null,null,null,null,null,null,null,null,null,null,null,null,null,null,null,null,"㎡",null,null,null,null,null,null,null,16]
[null,null,null,null,null,null,null,null,null,null,null,null,null,null,null,null,null,null,null,null,null,null,null,null,null,null,null,null,null,null,null,null,null,null,null,null,null,null,null,null,null,null,null,null,null,null,null,null,null,null,null,null,"㎡",null,null,null,null,null,null,null,null,null,null,null,null,null,null,null,null,null,null,null,null,null,null,null,null,null,null,null,null,null,null,null,null,null,null,null,null,null,null,null,null,null,null,null,null,null,null,null,null,null,null,null,null,null,null,null,null,"㎡",null,null,null,null,null,null,null,17]
[null,null,null,null,null,null,null,null,null,null,null,null,null,null,null,null,null,null,null,null,null,null,null,null,null,null,null,null,null,null,null,null,null,null,null,null,null,null,null,null,null,null,null,null,null,null,null,null,null,null,null,null,"㎡",null,null,null,null,null,null,null,null,null,null,null,null,null,null,null,null,null,null,null,null,null,null,null,null,null,null,null,null,null,null,null,null,null,null,null,null,null,null,null,null,null,null,null,null,null,null,null,null,null,null,null,null,null,null,null,null,"㎡",null,null,null,null,null,null,null,18]
[null,null,null,null,null,null,null,null,null,null,null,null,null,null,null,null,null,null,null,null,null,null,null,null,null,null,null,null,null,null,null,null,null,null,null,null,null,null,null,null,null,null,null,null,null,null,null,null,null,null,null,null,"㎡",null,null,null,null,null,null,null,null,null,null,null,null,null,null,null,null,null,null,null,null,null,null,null,null,null,null,null,null,null,null,null,null,null,null,null,null,null,null,null,null,null,null,null,null,null,null,null,null,null,null,null,null,null,null,null,null,"㎡",null,null,null,null,null,null,null,19]
[null,null,null,null,null,null,null,null,null,null,null,null,null,null,null,null,null,null,null,null,null,null,null,null,null,null,null,null,null,null,null,null,null,null,null,null,null,null,null,null,null,null,null,null,null,null,null,null,null,null,null,null,"㎡",null,null,null,null,null,null,null,null,null,null,null,null,null,null,null,null,null,null,null,null,null,null,null,null,null,null,null,null,null,null,null,null,null,null,null,null,null,null,null,null,null,null,null,null,null,null,null,null,null,null,null,null,null,null,null,null,"㎡",null,null,null,null,null,null,null,20]
[null,null,null,null,null,null,null,null,null,null,null,null,null,null,null,null,null,null,null,null,null,null,null,null,null,null,null,null,null,null,null,null,null,null,null,null,null,null,null,null,null,null,null,null,null,null,null,null,null,null,null,null,"㎡",null,null,null,null,null,null,null,null,null,null,null,null,null,null,null,null,null,null,null,null,null,null,null,null,null,null,null,null,null,null,null,null,null,null,null,null,null,null,null,null,null,null,null,null,null,null,null,null,null,null,null,null,null,null,null,null,"㎡",null,null,null,null,null,null,null,21]
[null,null,null,null,null,null,null,null,null,null,null,null,null,null,null,null,null,null,null,null,null,null,null,null,null,null,null,null,null,null,null,null,null,null,null,null,null,null,null,null,null,null,null,null,null,null,null,null,null,null,null,null,"㎡",null,null,null,null,null,null,null,null,null,null,null,null,null,null,null,null,null,null,null,null,null,null,null,null,null,null,null,null,null,null,null,null,null,null,null,null,null,null,null,null,null,null,null,null,null,null,null,null,null,null,null,null,null,null,null,null,"㎡",null,null,null,null,null,null,null,22]
[null,null,null,null,null,null,null,null,null,null,null,null,null,null,null,null,null,null,null,null,null,null,null,null,null,null,null,null,null,null,null,null,null,null,null,null,null,null,null,null,null,null,null,null,null,null,null,null,null,null,null,null,"㎡",null,null,null,null,null,null,null,null,null,null,null,null,null,null,null,null,null,null,null,null,null,null,null,null,null,null,null,null,null,null,null,null,null,null,null,null,null,null,null,null,null,null,null,null,null,null,null,null,null,null,null,null,null,null,null,null,"㎡",null,null,null,null,null,null,null,23]
[null,null,null,"外皮面積・設備費計",null,null,null,null,null,null,null,null,null,null,null,null,null,null,null,null,null,null,null,null,null,null,null,null,null,null,null,null,null,null,null,null,null,null,null,null,null,null,null,null,null,null,null,null,{"$f":"SUM(AW30:AZ39)","v":0},null,null,null,"㎡",{"$f":"SUM(BB30:BG39)","v":0},null,null,null,null,null,null,"外皮面積・設備費計",null,null,null,null,null,null,null,null,null,null,null,null,null,null,null,null,null,null,null,null,null,null,null,null,null,null,null,null,null,null,null,null,null,null,null,null,null,null,null,null,null,null,null,null,{"$f":"SUM(DB30:DE39)","v":0},null,null,null,"㎡",{"$f":"SUM(DG30:DL39)","v":0},null,null,null,null,null,null,24]
["工事費",null,null,"工事費計",null,null,null,null,null,null,null,null,null,null,null,null,null,null,null,null,null,null,null,null,null,null,null,null,null,null,null,null,null,null,null,null,null,null,null,null,null,null,null,null,null,null,null,null,null,null,null,null,null,null,null,null,null,null,null,null,"工事費計",null,null,null,null,null,null,null,null,null,null,null,null,null,null,null,null,null,null,null,null,null,null,null,null,null,null,null,null,null,null,null,null,null,null,null,null,null,null,null,null,null,null,null,null,null,null,null,null,null,null,null,null,null,null,null,null,25]
["小計",null,null,null,null,null,null,null,null,null,null,null,null,null,null,null,null,null,null,null,null,null,null,null,null,null,null,null,null,null,null,null,null,null,null,null,null,null,null,null,null,null,null,null,null,null,null,null,null,null,null,null,null,{"$f":"SUM(BB40:BG41)","v":0},null,null,null,null,null,null,"小計",null,null,null,null,null,null,null,null,null,null,null,null,null,null,null,null,null,null,null,null,null,null,null,null,null,null,null,null,null,null,null,null,null,null,null,null,null,null,null,null,null,null,null,null,null,null,null,null,null,{"$f":"SUM(DG40:DL41)","v":0},null,null,null,null,null,null,26]
[]
["床・基礎",null,null,null,null,null,null,null,null,null,null,null,null,null,null,null,null,null,null,null,null,null,null,null,null,null,null,null,null,null,null,null,null,null,null,null,null,null,null,null,null,null,null,null,null,null,null,null,null,null,null,null,null,null,null,null,null,null,null,null,"床・基礎"]
[]
["費目",null,null,"部位",null,null,"メーカー名",null,null,null,null,null,null,null,null,null,null,null,"製品名",null,null,null,null,null,null,null,null,null,null,null,null,null,null,null,null,null,null,null,null,null,null,null,null,null,null,"厚み\n(mm)",null,null,"外皮面積\n（㎡）",null,null,null,null,"金額(円）\n［税抜］",null,null,null,null,null,null,"部位",null,null,"メーカー名",null,null,null,null,null,null,null,null,null,null,null,"製品名",null,null,null,null,null,null,null,null,null,null,null,null,null,null,null,null,null,null,null,null,null,null,null,null,null,null,"厚み\n(mm)",null,null,"外皮面積\n（㎡）",null,null,null,null,"金額(円）\n［税抜］",null,null,null,null,null,null,"No.","SII連絡事項"]
["材料費",null,null,null,null,null,null,null,null,null,null,null,null,null,null,null,null,null,null,null,null,null,null,null,null,null,null,null,null,null,null,null,null,null,null,null,null,null,null,null,null,null,null,null,null,null,null,null,null,null,null,null,"㎡",null,null,null,null,null,null,null,null,null,null,null,null,null,null,null,null,null,null,null,null,null,null,null,null,null,null,null,null,null,null,null,null,null,null,null,null,null,null,null,null,null,null,null,null,null,null,null,null,null,null,null,null,null,null,null,null,"㎡",null,null,null,null,null,null,null,27]
[null,null,null,null,null,null,null,null,null,null,null,null,null,null,null,null,null,null,null,null,null,null,null,null,null,null,null,null,null,null,null,null,null,null,null,null,null,null,null,null,null,null,null,null,null,null,null,null,null,null,null,null,"㎡",null,null,null,null,null,null,null,null,null,null,null,null,null,null,null,null,null,null,null,null,null,null,null,null,null,null,null,null,null,null,null,null,null,null,null,null,null,null,null,null,null,null,null,null,null,null,null,null,null,null,null,null,null,null,null,null,"㎡",null,null,null,null,null,null,null,28]
[null,null,null,null,null,null,null,null,null,null,null,null,null,null,null,null,null,null,null,null,null,null,null,null,null,null,null,null,null,null,null,null,null,null,null,null,null,null,null,null,null,null,null,null,null,null,null,null,null,null,null,null,"㎡",null,null,null,null,null,null,null,null,null,null,null,null,null,null,null,null,null,null,null,null,null,null,null,null,null,null,null,null,null,null,null,null,null,null,null,null,null,null,null,null,null,null,null,null,null,null,null,null,null,null,null,null,null,null,null,null,"㎡",null,null,null,null,null,null,null,29]
[null,null,null,null,null,null,null,null,null,null,null,null,null,null,null,null,null,null,null,null,null,null,null,null,null,null,null,null,null,null,null,null,null,null,null,null,null,null,null,null,null,null,null,null,null,null,null,null,null,null,null,null,"㎡",null,null,null,null,null,null,null,null,null,null,null,null,null,null,null,null,null,null,null,null,null,null,null,null,null,null,null,null,null,null,null,null,null,null,null,null,null,null,null,null,null,null,null,null,null,null,null,null,null,null,null,null,null,null,null,null,"㎡",null,null,null,null,null,null,null,30]
[null,null,null,null,null,null,null,null,null,null,null,null,null,null,null,null,null,null,null,null,null,null,null,null,null,null,null,null,null,null,null,null,null,null,null,null,null,null,null,null,null,null,null,null,null,null,null,null,null,null,null,null,"㎡",null,null,null,null,null,null,null,null,null,null,null,null,null,null,null,null,null,null,null,null,null,null,null,null,null,null,null,null,null,null,null,null,null,null,null,null,null,null,null,null,null,null,null,null,null,null,null,null,null,null,null,null,null,null,null,null,"㎡",null,null,null,null,null,null,null,31]
[null,null,null,null,null,null,null,null,null,null,null,null,null,null,null,null,null,null,null,null,null,null,null,null,null,null,null,null,null,null,null,null,null,null,null,null,null,null,null,null,null,null,null,null,null,null,null,null,null,null,null,null,"㎡",null,null,null,null,null,null,null,null,null,null,null,null,null,null,null,null,null,null,null,null,null,null,null,null,null,null,null,null,null,null,null,null,null,null,null,null,null,null,null,null,null,null,null,null,null,null,null,null,null,null,null,null,null,null,null,null,"㎡",null,null,null,null,null,null,null,32]
[null,null,null,null,null,null,null,null,null,null,null,null,null,null,null,null,null,null,null,null,null,null,null,null,null,null,null,null,null,null,null,null,null,null,null,null,null,null,null,null,null,null,null,null,null,null,null,null,null,null,null,null,"㎡",null,null,null,null,null,null,null,null,null,null,null,null,null,null,null,null,null,null,null,null,null,null,null,null,null,null,null,null,null,null,null,null,null,null,null,null,null,null,null,null,null,null,null,null,null,null,null,null,null,null,null,null,null,null,null,null,"㎡",null,null,null,null,null,null,null,33]
[null,null,null,null,null,null,null,null,null,null,null,null,null,null,null,null,null,null,null,null,null,null,null,null,null,null,null,null,null,null,null,null,null,null,null,null,null,null,null,null,null,null,null,null,null,null,null,null,null,null,null,null,"㎡",null,null,null,null,null,null,null,null,null,null,null,null,null,null,null,null,null,null,null,null,null,null,null,null,null,null,null,null,null,null,null,null,null,null,null,null,null,null,null,null,null,null,null,null,null,null,null,null,null,null,null,null,null,null,null,null,"㎡",null,null,null,null,null,null,null,34]
[null,null,null,null,null,null,null,null,null,null,null,null,null,null,null,null,null,null,null,null,null,null,null,null,null,null,null,null,null,null,null,null,null,null,null,null,null,null,null,null,null,null,null,null,null,null,null,null,null,null,null,null,"㎡",null,null,null,null,null,null,null,null,null,null,null,null,null,null,null,null,null,null,null,null,null,null,null,null,null,null,null,null,null,null,null,null,null,null,null,null,null,null,null,null,null,null,null,null,null,null,null,null,null,null,null,null,null,null,null,null,"㎡",null,null,null,null,null,null,null,35]
[null,null,null,null,null,null,null,null,null,null,null,null,null,null,null,null,null,null,null,null,null,null,null,null,null,null,null,null,null,null,null,null,null,null,null,null,null,null,null,null,null,null,null,null,null,null,null,null,null,null,null,null,"㎡",null,null,null,null,null,null,null,null,null,null,null,null,null,null,null,null,null,null,null,null,null,null,null,null,null,null,null,null,null,null,null,null,null,null,null,null,null,null,null,null,null,null,null,null,null,null,null,null,null,null,null,null,null,null,null,null,"㎡",null,null,null,null,null,null,null,36]
[null,null,null,"外皮面積・設備費計",null,null,null,null,null,null,null,null,null,null,null,null,null,null,null,null,null,null,null,null,null,null,null,null,null,null,null,null,null,null,null,null,null,null,null,null,null,null,null,null,null,null,null,null,{"$f":"SUM(AW47:AZ56)","v":0},null,null,null,"㎡",{"$f":"SUM(BB47:BG56)","v":0},null,null,null,null,null,null,"外皮面積・設備費計",null,null,null,null,null,null,null,null,null,null,null,null,null,null,null,null,null,null,null,null,null,null,null,null,null,null,null,null,null,null,null,null,null,null,null,null,null,null,null,null,null,null,null,null,{"$f":"SUM(DB47:DE56)","v":0},null,null,null,"㎡",{"$f":"SUM(DG47:DL56)","v":0},null,null,null,null,null,null,37]
["工事費",null,null,"工事費計",null,null,null,null,null,null,null,null,null,null,null,null,null,null,null,null,null,null,null,null,null,null,null,null,null,null,null,null,null,null,null,null,null,null,null,null,null,null,null,null,null,null,null,null,null,null,null,null,null,null,null,null,null,null,null,null,"工事費計",null,null,null,null,null,null,null,null,null,null,null,null,null,null,null,null,null,null,null,null,null,null,null,null,null,null,null,null,null,null,null,null,null,null,null,null,null,null,null,null,null,null,null,null,null,null,null,null,null,null,null,null,null,null,null,null,38]
["小計",null,null,null,null,null,null,null,null,null,null,null,null,null,null,null,null,null,null,null,null,null,null,null,null,null,null,null,null,null,null,null,null,null,null,null,null,null,null,null,null,null,null,null,null,null,null,null,null,null,null,null,null,{"$f":"SUM(BB57:BG58)","v":0},null,null,null,null,null,null,"小計",null,null,null,null,null,null,null,null,null,null,null,null,null,null,null,null,null,null,null,null,null,null,null,null,null,null,null,null,null,null,null,null,null,null,null,null,null,null,null,null,null,null,null,null,null,null,null,null,null,{"$f":"SUM(DG57:DL58)","v":0},null,null,null,null,null,null,39]
[]
["断熱材の補助対象経費の合計[税抜]",null,null,null,null,null,null,null,null,null,null,null,null,null,null,null,null,null,null,null,null,null,null,null,null,null,null,null,null,null,null,null,null,null,null,null,null,null,null,null,null,null,null,null,null,null,null,null,null,null,null,null,null,{"$f":"SUM(BB25,BB42,BB59)","v":0},null,null,null,null,null,null,"断熱材の補助対象経費の合計[税抜]",null,null,null,null,null,null,null,null,null,null,null,null,null,null,null,null,null,null,null,null,null,null,null,null,null,null,null,null,null,null,null,null,null,null,null,null,null,null,null,null,null,null,null,null,null,null,null,null,null,{"$f":"SUM(DG25,DG42,DG59)","v":0},null,null,null,null,null,null,40]

{"sheet":"明細書【窓・玄関ドア】","index":2,"n_rows":83,"n_cols":117,"rows_kept":83,"cut":false,"hidden":false,"merged":[[0,0,0,113],[77,48,77,52],[77,53,77,57],[78,3,78,20],[78,21,78,44],[78,45,78,47],[78,48,78,52],[78,53,78,57],[75,3,75,20],[75,21,75,44],[75,45,75,47],[75,48,75,52],[75,53,75,57],[76,3,76,20],[76,21,76,44],[76,45,76,47],[76,48,76,52],[76,53,76,57],[77,59,77,76],[77,77,77,100],[77,101,77,103],[77,104,77,108],[77,109,77,113],[78,59,78,76],[78,77,78,100],[78,101,78,103],[78,104,78,108],[78,109,78,113],[81,109,81,113],[82,59,82,108],[82,109,82,113],[79,59,79,76],[79,77,79,100],[79,101,79,103],[79,104,79,108],[79,109,79,113],[80,59,80,100],[80,101,80,103],[80,104,80,108],[80,109,80,113],[81,59,81,108],[75,59,75,76],[75,77,75,100],[75,101,75,103],[75,104,75,108],[75,109,75,113],[76,59,76,76],[76,77,76,100],[76,101,76,103],[76,104,76,108],[76,109,76,113],[62,59,62,108],[62,109,62,113],[63,59,63,108],[63,109,63,113],[74,59,74,76],[74,77,74,100],[74,101,74,103],[74,104,74,108],[74,109,74,113],[67,98,67,103],[67,104,67,108],[67,109,67,113],[68,98,68,103],[70,104,70,108],[70,109,70,113],[70,98,70,103],[68,104,68,108],[68,109,68,113],[69,98,69,103],[69,104,69,108],[69,109,69,113],[58,59,58,64],[58,65,58,71],[58,72,58,81],[58,82,58,97],[58,98,58,100],[58,102,58,104],[58,105,58,108],[58,109,58,113],[59,59,59,64],[59,65,59,71],[59,72,59,81],[59,82,59,97],[59,98,59,100],[59,102,59,104],[59,105,59,108],[59,109,59,113],[60,59,60,64],[60,65,60,71],[60,72,60,81],[60,82,60,97],[60,98,60,100],[60,102,60,104],[60,105,60,108],[60,109,60,113],[61,59,61,104],[61,105,61,108],[61,109,61,113],[54,59,54,64],[54,65,54,71],[54,72,54,81],[54,82,54,97],[54,98,54,100],[54,102,54,104],[54,105,54,108],[54,109,54,113],[55,59,55,64],[55,65,55,71],[55,72,55,81],[55,82,55,97],[55,98,55,100],[55,102,55,104],[55,105,55,108],[55,109,55,113],[56,59,56,64],[56,65,56,71],[56,72,56,81],[56,82,56,97],[56,98,56,100],[56,102,56,104],[56,105,56,108],[56,109,56,113],[57,59,57,64],[57,65,57,71],[57,72,57,81],[57,82,57,97],[57,98,57,100],[57,102,57,104],[57,105,57,108],[57,109,57,113],[50,59,50,64],[50,65,50,71],[50,72,50,81],[50,82,50,97],[50,98,50,100],[50,102,50,104],[50,105,50,108],[50,109,50,113],[51,59,51,64],[51,65,51,71],[51,72,51,81],[51,82,51,97],[51,98,51,100],[51,102,51,104],[51,105,51,108],[51,109,51,113],[52,59,52,64],[52,65,52,71],[52,72,52,81],[52,82,52,97],[52,98,52,100],[52,102,52,104],[52,105,52,108],[52,109,52,113],[53,59,53,64],[53,65,53,71],[53,72,53,81],[53,82,53,97],[53,98,53,100],[53,102,53,104],[53,105,53,108],[53,109,53,113],[46,59,46,64],[46,65,46,71],[46,72,46,81],[46,82,46,97],[46,98,46,100],[46,102,46,104],[46,105,46,108],[46,109,46,113],[47,59,47,64],[47,65,47,71],[47,72,47,81],[47,82,47,97],[47,98,47,100],[47,102,47,104],[47,105,47,108],[47,109,47,113],[48,59,48,64],[48,65,48,71],[48,72,48,81],[48,82,48,97],[48,98,48,100],[48,102,48,104],[48,105,48,108],[48,109,48,113],[49,59,49,64],[49,65,49,71],[49,72,49,81],[49,82,49,97],[49,98,49,100],[49,102,49,104],[49,105,49,108],[49,109,49,113],[42,59,42,64],[42,65,42,71],[42,72,42,81],[42,82,42,97],[42,98,42,100],[42,102,42,104],[42,105,42,108],[42,109,42,113],[43,59,43,64],[43,65,43,71],[43,72,43,81],[43,82,43,97],[43,98,43,100],[43,102,43,104],[43,105,43,108],[43,109,43,113],[44,59,44,64],[44,65,44,71],[44,72,44,81],[44,82,44,97],[44,98,44,100],[44,102,44,104],[44,105,44,108],[44,109,44,113],[45,59,45,64],[45,65,45,71],[45,72,45,81],[45,82,45,97],[45,98,45,100],[45,102,45,104],[45,105,45,108],[45,109,45,113],[38,59,38,64],[38,65,38,71],[38,72,38,81],[38,82,38,97],[38,98,38,100],[38,102,38,104],[38,105,38,108],[38,109,38,113],[39,59,39,64],[39,65,39,71],[39,72,39,81],[39,82,39,97],[39,98,39,100],[39,102,39,104],[39,105,39,108],[39,109,39,113],[40,59,40,64],[40,65,40,71],[40,72,40,81],[40,82,40,97],[40,98,40,100],[40,102,40,104],[40,105,40,108],[40,109,40,113],[41,59,41,64],[41,65,41,71],[41,72,41,81],[41,82,41,97],[41,98,41,100],[41,102,41,104],[41,105,41,108],[41,109,41,113],[34,59,34,64],[34,65,34,71],[34,72,34,81],[34,82,34,97],[34,98,34,100],[34,102,34,104],[34,105,34,108],[34,109,34,113],[35,59,35,64],[35,65,35,71],[35,72,35,81],[35,82,35,97],[35,98,35,100],[35,102,35,104],[35,105,35,108],[35,109,35,113],[36,59,36,64],[36,65,36,71],[36,72,36,81],[36,82,36,97],[36,98,36,100],[36,102,36,104],[36,105,36,108],[36,109,36,113],[37,59,37,64],[37,65,37,71],[37,72,37,81],[37,82,37,97],[37,98,37,100],[37,102,37,104],[37,105,37,108],[37,109,37,113],[30,59,30,64],[30,65,30,71],[30,72,30,81],[30,82,30,97],[30,98,30,100],[30,102,30,104],[30,105,30,108],[30,109,30,113],[31,59,31,64],[31,65,31,71],[31,72,31,81],[31,82,31,97],[31,98,31,100],[31,102,31,104],[31,105,31,108],[31,109,31,113],[32,59,32,64],[32,65,32,71],[32,72,32,81],[32,82,32,97],[32,98,32,100],[32,102,32,104],[32,105,32,108],[32,109,32,113],[33,59,33,64],[33,65,33,71],[33,72,33,81],[33,82,33,97],[33,98,33,100],[33,102,33,104],[33,105,33,108],[33,109,33,113],[26,59,26,64],[26,65,26,71],[26,72,26,81],[26,82,26,97],[26,98,26,100],[26,102,26,104],[26,105,26,108],[26,109,26,113],[27,59,27,64],[27,65,27,71],[27,72,27,81],[27,82,27,97],[27,98,27,100],[27,102,27,104],[27,105,27,108],[27,109,27,113],[28,59,28,64],[28,65,28,71],[28,72,28,81],[28,82,28,97],[28,98,28,100],[28,102,28,104],[28,105,28,108],[28,109,28,113],[29,59,29,64],[29,65,29,71],[29,72,29,81],[29,82,29,97],[29,98,29,100],[29,102,29,104],[29,105,29,108],[29,109,29,113],[25,59,25,64],[25,65,25,71],[25,72,25,81],[25,82,25,97],[25,98,25,100],[25,102,25,104],[25,105,25,108],[25,109,25,113],[22,59,22,64],[22,65,22,71],[22,72,22,81],[22,82,22,97],[22,98,22,100],[22,102,22,104],[22,105,22,108],[22,109,22,113],[23,59,23,64],[23,65,23,71],[23,72,23,81],[23,82,23,97],[23,98,23,100],[23,102,23,104],[23,105,23,108],[23,109,23,113],[19,102,19,104],[19,105,19,108],[19,109,19,113],[24,59,24,64],[24,65,24,71],[24,72,24,81],[24,82,24,97],[24,98,24,100],[24,102,24,104],[24,105,24,108],[24,109,24,113],[15,59,15,64],[15,65,15,71],[15,72,15,81],[15,82,15,97],[15,98,15,100],[15,102,15,104],[15,105,15,108],[15,109,15,113],[20,72,20,81],[20,82,20,97],[20,98,20,100],[20,102,20,104],[20,105,20,108],[20,109,20,113],[18,65,18,71],[18,72,18,81],[18,82,18,97],[18,98,18,100],[18,102,18,104],[18,105,18,108],[18,109,18,113],[19,59,19,64],[19,65,19,71],[19,72,19,81],[82,53,82,57],[12,59,12,64],[12,65,12,71],[79,3,79,20],[79,21,79,44],[79,45,79,47],[79,48,79,52],[79,53,79,57],[80,3,80,44],[80,45,80,47],[80,48,80,52],[80,53,80,57],[77,3,77,20],[77,21,77,44],[77,45,77,47],[16,59,16,64],[16,65,16,71],[17,59,17,64],[17,65,17,71],[14,59,14,64],[14,65,14,71],[20,59,20,64],[20,65,20,71],[18,59,18,64],[81,3,81,52],[81,53,81,57],[16,72,16,81],[16,82,16,97],[16,98,16,100],[16,102,16,104],[16,105,16,108],[16,109,16,113],[17,72,17,81],[17,82,17,97],[17,98,17,100],[17,102,17,104],[17,105,17,108],[17,109,17,113],[21,59,21,64],[21,65,21,71],[21,72,21,81],[21,82,21,97],[21,98,21,100],[21,102,21,104],[21,105,21,108],[21,109,21,113],[19,82,19,97],[19,98,19,100],[9,59,9,113],[10,59,10,64],[10,65,10,71],[10,72,10,81],[10,82,10,97],[10,98,10,104],[10,105,10,108],[10,109,10,113],[11,59,11,64],[11,65,11,71],[11,72,11,81],[11,82,11,97],[11,98,11,100],[11,102,11,104],[11,105,11,108],[11,109,11,113],[12,72,12,81],[12,82,12,97],[12,98,12,100],[12,102,12,104],[12,105,12,108],[12,109,12,113],[13,59,13,64],[65,98,65,113],[66,98,66,103],[66,104,66,108],[66,109,66,113],[13,65,13,71],[13,72,13,81],[13,82,13,97],[13,98,13,100],[13,102,13,104],[13,105,13,108],[13,109,13,113],[14,72,14,81],[14,82,14,97],[14,98,14,100],[14,102,14,104],[14,105,14,108],[14,109,14,113],[60,3,60,8],[60,9,60,15],[60,16,60,25],[60,26,60,41],[60,42,60,44],[60,46,60,48],[60,49,60,52],[60,53,60,57],[61,3,61,48],[61,49,61,52],[61,53,61,57],[62,3,62,52],[62,53,62,57],[63,53,63,57],[74,3,74,20],[74,21,74,44],[74,45,74,47],[74,48,74,52],[74,53,74,57],[67,42,67,47],[67,48,67,52],[67,53,67,57],[68,42,68,47],[68,48,68,52],[68,53,68,57],[69,42,69,47],[69,48,69,52],[69,53,69,57],[70,42,70,47],[70,48,70,52],[70,53,70,57],[56,3,56,8],[56,9,56,15],[56,16,56,25],[56,26,56,41],[56,42,56,44],[56,46,56,48],[56,49,56,52],[56,53,56,57],[57,3,57,8],[57,9,57,15],[57,16,57,25],[57,26,57,41],[57,42,57,44],[57,46,57,48],[57,49,57,52],[57,53,57,57],[58,3,58,8],[58,9,58,15],[58,16,58,25],[58,26,58,41],[58,42,58,44],[58,46,58,48],[58,49,58,52],[58,53,58,57],[59,3,59,8],[59,9,59,15],[59,16,59,25],[59,26,59,41],[59,42,59,44],[59,46,59,48],[59,49,59,52],[59,53,59,57],[52,3,52,8],[52,9,52,15],[52,16,52,25],[52,26,52,41],[52,42,52,44],[52,46,52,48],[52,49,52,52],[52,53,52,57],[53,3,53,8],[53,9,53,15],[53,16,53,25],[53,26,53,41],[53,42,53,44],[53,46,53,48],[53,49,53,52],[53,53,53,57],[54,3,54,8],[54,9,54,15],[54,16,54,25],[54,26,54,41],[54,42,54,44],[54,46,54,48],[54,49,54,52],[54,53,54,57],[55,3,55,8],[55,9,55,15],[55,16,55,25],[55,26,55,41],[55,42,55,44],[55,46,55,48],[55,49,55,52],[55,53,55,57],[48,3,48,8],[48,9,48,15],[48,16,48,25],[48,26,48,41],[48,42,48,44],[48,46,48,48],[48,49,48,52],[48,53,48,57],[49,3,49,8],[49,9,49,15],[49,16,49,25],[49,26,49,41],[49,42,49,44],[49,46,49,48],[49,49,49,52],[49,53,49,57],[50,3,50,8],[50,9,50,15],[50,16,50,25],[50,26,50,41],[50,42,50,44],[50,46,50,48],[50,49,50,52],[50,53,50,57],[51,3,51,8],[51,9,51,15],[51,16,51,25],[51,26,51,41],[51,42,51,44],[51,46,51,48],[51,49,51,52],[51,53,51,57],[44,3,44,8],[44,9,44,15],[44,16,44,25],[44,26,44,41],[44,42,44,44],[44,46,44,48],[44,49,44,52],[44,53,44,57],[45,3,45,8],[45,9,45,15],[45,16,45,25],[45,26,45,41],[45,42,45,44],[45,46,45,48],[45,49,45,52],[45,53,45,57],[46,3,46,8],[46,9,46,15],[46,16,46,25],[46,26,46,41],[46,42,46,44],[46,46,46,48],[46,49,46,52],[46,53,46,57],[47,3,47,8],[47,9,47,15],[47,16,47,25],[47,26,47,41],[47,42,47,44],[47,46,47,48],[47,49,47,52],[47,53,47,57],[40,3,40,8],[40,9,40,15],[40,16,40,25],[40,26,40,41],[40,42,40,44],[40,46,40,48],[40,49,40,52],[40,53,40,57],[41,3,41,8],[41,9,41,15],[41,16,41,25],[41,26,41,41],[41,42,41,44],[41,46,41,48],[41,49,41,52],[41,53,41,57],[42,3,42,8],[42,9,42,15],[42,16,42,25],[42,26,42,41],[42,42,42,44],[42,46,42,48],[42,49,42,52],[42,53,42,57],[43,3,43,8],[43,9,43,15],[43,16,43,25],[43,26,43,41],[43,42,43,44],[43,46,43,48],[43,49,43,52],[43,53,43,57],[36,3,36,8],[36,9,36,15],[36,16,36,25],[36,26,36,41],[36,42,36,44],[36,46,36,48],[36,49,36,52],[36,53,36,57],[37,3,37,8],[37,9,37,15],[37,16,37,25],[37,26,37,41],[37,42,37,44],[37,46,37,48],[37,49,37,52],[37,53,37,57],[38,3,38,8],[38,9,38,15],[38,16,38,25],[38,26,38,41],[38,42,38,44],[38,46,38,48],[38,49,38,52],[38,53,38,57],[39,3,39,8],[39,9,39,15],[39,16,39,25],[39,26,39,41],[39,42,39,44],[39,46,39,48],[39,49,39,52],[39,53,39,57],[32,3,32,8],[32,9,32,15],[32,16,32,25],[32,26,32,41],[32,42,32,44],[32,46,32,48],[32,49,32,52],[32,53,32,57],[33,3,33,8],[33,9,33,15],[33,16,33,25],[33,26,33,41],[33,42,33,44],[33,46,33,48],[33,49,33,52],[33,53,33,57],[34,3,34,8],[34,9,34,15],[34,16,34,25],[34,26,34,41],[34,42,34,44],[34,46,34,48],[34,49,34,52],[34,53,34,57],[35,3,35,8],[35,9,35,15],[35,16,35,25],[35,26,35,41],[35,42,35,44],[35,46,35,48],[35,49,35,52],[35,53,35,57],[28,3,28,8],[28,9,28,15],[28,16,28,25],[28,26,28,41],[28,42,28,44],[28,46,28,48],[28,49,28,52],[28,53,28,57],[29,3,29,8],[29,9,29,15],[29,16,29,25],[29,26,29,41],[29,42,29,44],[29,46,29,48],[29,49,29,52],[29,53,29,57],[30,3,30,8],[30,9,30,15],[30,16,30,25],[30,26,30,41],[30,42,30,44],[30,46,30,48],[30,49,30,52],[30,53,30,57],[31,3,31,8],[31,9,31,15],[31,16,31,25],[31,26,31,41],[31,42,31,44],[31,46,31,48],[31,49,31,52],[31,53,31,57],[24,3,24,8],[24,9,24,15],[24,16,24,25],[24,26,24,41],[24,42,24,44],[24,46,24,48],[24,49,24,52],[24,53,24,57],[25,3,25,8],[25,9,25,15],[25,16,25,25],[25,26,25,41],[25,42,25,44],[25,46,25,48],[25,49,25,52],[25,53,25,57],[26,3,26,8],[26,9,26,15],[26,16,26,25],[26,26,26,41],[26,42,26,44],[26,46,26,48],[26,49,26,52],[26,53,26,57],[27,3,27,8],[27,9,27,15],[27,16,27,25],[27,26,27,41],[27,42,27,44],[27,46,27,48],[27,49,27,52],[27,53,27,57],[20,3,20,8],[20,9,20,15],[20,16,20,25],[20,26,20,41],[20,42,20,44],[20,46,20,48],[20,49,20,52],[20,53,20,57],[21,3,21,8],[21,9,21,15],[21,16,21,25],[21,26,21,41],[21,42,21,44],[21,46,21,48],[21,49,21,52],[21,53,21,57],[22,9,22,15],[22,16,22,25],[22,26,22,41],[22,42,22,44],[22,46,22,48],[22,49,22,52],[22,53,22,57],[23,3,23,8],[23,9,23,15],[23,16,23,25],[23,26,23,41],[23,42,23,44],[23,46,23,48],[23,49,23,52],[23,53,23,57],[22,3,22,8],[16,3,16,8],[16,9,16,15],[16,16,16,25],[16,26,16,41],[16,42,16,44],[16,46,16,48],[16,49,16,52],[16,53,16,57],[17,3,17,8],[17,9,17,15],[17,16,17,25],[17,26,17,41],[17,42,17,44],[17,46,17,48],[17,49,17,52],[17,53,17,57],[18,53,18,57],[19,3,19,8],[19,9,19,15],[19,16,19,25],[19,26,19,41],[19,42,19,44],[19,46,19,48],[19,49,19,52],[19,53,19,57],[12,3,12,8],[12,9,12,15],[12,16,12,25],[12,26,12,41],[12,42,12,44],[12,46,12,48],[12,49,12,52],[12,53,12,57],[13,3,13,8],[13,9,13,15],[13,16,13,25],[13,26,13,41],[13,42,13,44],[13,46,13,48],[13,49,13,52],[13,53,13,57],[14,53,14,57],[15,3,15,8],[15,9,15,15],[15,16,15,25],[15,26,15,41],[15,42,15,44],[15,46,15,48],[15,49,15,52],[15,53,15,57],[82,0,82,52],[81,0,81,2],[62,0,62,2],[75,0,80,2],[63,0,63,52],[72,0,72,7],[10,3,10,8],[10,9,10,15],[10,16,10,25],[10,26,10,41],[10,42,10,48],[10,49,10,52],[14,3,14,8],[14,9,14,15],[14,16,14,25],[14,26,14,41],[14,42,14,44],[14,46,14,48],[14,49,14,52],[18,3,18,8],[18,9,18,15],[18,16,18,25],[18,26,18,41],[18,42,18,44],[1,0,1,113],[7,59,7,66],[72,59,72,66],[74,0,74,2],[65,42,65,57],[66,42,66,47],[66,48,66,52],[66,53,66,57],[11,0,61,2],[18,46,18,48],[18,49,18,52],[10,53,10,57],[11,3,11,8],[11,9,11,15],[11,16,11,25],[11,26,11,41],[11,42,11,44],[11,46,11,48],[11,49,11,52],[11,53,11,57],[7,0,7,7],[4,0,4,57],[9,3,9,57],[10,0,10,2]]}
["定型様式9"]
["明細書　【窓・玄関ドア】"]
[]
["＜補助対象経費＞"]
["・見積書の各項目が税込金額で記載されている場合は、必ず[税抜]に修正して作成すること。\n・窓番号は平面図との整合性をとり入力すること。"]
[null,null,"…自動入力",null,null,null,null,null,null,null,null,"…申請者入力欄"]
[]
["窓",null,null,null,null,null,null,null,null,null,null,null,null,null,null,null,null,null,null,null,null,null,null,null,null,null,null,null,null,null,null,null,null,null,null,null,null,null,null,null,null,null,null,null,null,null,null,null,null,null,null,null,null,null,null,null,null,null,null,"窓"]
[]
[null,null,null,"中間報告",null,null,null,null,null,null,null,null,null,null,null,null,null,null,null,null,null,null,null,null,null,null,null,null,null,null,null,null,null,null,null,null,null,null,null,null,null,null,null,null,null,null,null,null,null,null,null,null,null,null,null,null,null,null,null,"実績報告時"]
["費目",null,null,"窓番号",null,null,null,null,null,"改修工法",null,null,null,null,null,null,"メーカー名",null,null,null,null,null,null,null,null,null,"製品名\n（シリーズ名）",null,null,null,null,null,null,null,null,null,null,null,null,null,null,null,"窓サイズ（mm）\n幅（W）×高さ（H）",null,null,null,null,null,null,"面積（㎡）",null,null,null,"金額(円）\n［税抜］",null,null,null,null,null,"窓番号",null,null,null,null,null,"改修工法",null,null,null,null,null,null,"メーカー名",null,null,null,null,null,null,null,null,null,"製品名\n（シリーズ名）",null,null,null,null,null,null,null,null,null,null,null,null,null,null,null,"窓サイズ（mm）\n幅（W）×高さ（H）",null,null,null,null,null,null,"面積（㎡）",null,null,null,"金額(円）\n［税抜］",null,null,null,null,null,"No.","SII連絡事項"]
["材料費",null,null,null,null,null,null,null,null,null,null,null,null,null,null,null,null,null,null,null,null,null,null,null,null,null,null,null,null,null,null,null,null,null,null,null,null,null,null,null,null,null,null,null,null,"×",null,null,null,{"$f":"IF(AND(AQ12<>\"\",AU12<>\"\"),ROUNDDOWN(AQ12*AU12/1000000,2),\"\")","v":""},null,null,null,null,null,null,null,null,null,null,null,null,null,null,null,null,null,null,null,null,null,null,null,null,null,null,null,null,null,null,null,null,null,null,null,null,null,null,null,null,null,null,null,null,null,null,null,null,null,null,null,"×",null,null,null,{"$f":"IF(AND(CU12<>\"\",CY12<>\"\"),ROUNDDOWN(CU12*CY12/1000000,2),\"\")","v":""},null,null,null,null,null,null,null,null,null,1]
[null,null,null,null,null,null,null,null,null,null,null,null,null,null,null,null,null,null,null,null,null,null,null,null,null,null,null,null,null,null,null,null,null,null,null,null,null,null,null,null,null,null,null,null,null,"×",null,null,null,{"$f":"IF(AND(AQ13<>\"\",AU13<>\"\"),ROUNDDOWN(AQ13*AU13/1000000,2),\"\")","v":""},null,null,null,null,null,null,null,null,null,null,null,null,null,null,null,null,null,null,null,null,null,null,null,null,null,null,null,null,null,null,null,null,null,null,null,null,null,null,null,null,null,null,null,null,null,null,null,null,null,null,null,"×",null,null,null,{"$f":"IF(AND(CU13<>\"\",CY13<>\"\"),ROUNDDOWN(CU13*CY13/1000000,2),\"\")","v":""},null,null,null,null,null,null,null,null,null,2]
[null,null,null,null,null,null,null,null,null,null,null,null,null,null,null,null,null,null,null,null,null,null,null,null,null,null,null,null,null,null,null,null,null,null,null,null,null,null,null,null,null,null,null,null,null,"×",null,null,null,{"$f":"IF(AND(AQ14<>\"\",AU14<>\"\"),ROUNDDOWN(AQ14*AU14/1000000,2),\"\")","v":""},null,null,null,null,null,null,null,null,null,null,null,null,null,null,null,null,null,null,null,null,null,null,null,null,null,null,null,null,null,null,null,null,null,null,null,null,null,null,null,null,null,null,null,null,null,null,null,null,null,null,null,"×",null,null,null,{"$f":"IF(AND(CU14<>\"\",CY14<>\"\"),ROUNDDOWN(CU14*CY14/1000000,2),\"\")","v":""},null,null,null,null,null,null,null,null,null,3]
[null,null,null,null,null,null,null,null,null,null,null,null,null,null,null,null,null,null,null,null,null,null,null,null,null,null,null,null,null,null,null,null,null,null,null,null,null,null,null,null,null,null,null,null,null,"×",null,null,null,"",null,null,null,null,null,null,null,null,null,null,null,null,null,null,null,null,null,null,null,null,null,null,null,null,null,null,null,null,null,null,null,null,null,null,null,null,null,null,null,null,null,null,null,null,null,null,null,null,null,null,null,"×",null,null,null,{"$f":"IF(AND(CU15<>\"\",CY15<>\"\"),ROUNDDOWN(CU15*CY15/1000000,2),\"\")","v":""},null,null,null,null,null,null,null,null,null,4]
[null,null,null,null,null,null,null,null,null,null,null,null,null,null,null,null,null,null,null,null,null,null,null,null,null,null,null,null,null,null,null,null,null,null,null,null,null,null,null,null,null,null,null,null,null,"×",null,null,null,"",null,null,null,null,null,null,null,null,null,null,null,null,null,null,null,null,null,null,null,null,null,null,null,null,null,null,null,null,null,null,null,null,null,null,null,null,null,null,null,null,null,null,null,null,null,null,null,null,null,null,null,"×",null,null,null,"",null,null,null,null,null,null,null,null,null,5]
[null,null,null,null,null,null,null,null,null,null,null,null,null,null,null,null,null,null,null,null,null,null,null,null,null,null,null,null,null,null,null,null,null,null,null,null,null,null,null,null,null,null,null,null,null,"×",null,null,null,{"$f":"IF(AND(AQ17<>\"\",AU17<>\"\"),ROUNDDOWN(AQ17*AU17/1000000,2),\"\")","v":""},null,null,null,null,null,null,null,null,null,null,null,null,null,null,null,null,null,null,null,null,null,null,null,null,null,null,null,null,null,null,null,null,null,null,null,null,null,null,null,null,null,null,null,null,null,null,null,null,null,null,null,"×",null,null,null,{"$f":"IF(AND(CU17<>\"\",CY17<>\"\"),ROUNDDOWN(CU17*CY17/1000000,2),\"\")","v":""},null,null,null,null,null,null,null,null,null,6]
[null,null,null,null,null,null,null,null,null,null,null,null,null,null,null,null,null,null,null,null,null,null,null,null,null,null,null,null,null,null,null,null,null,null,null,null,null,null,null,null,null,null,null,null,null,"×",null,null,null,{"$f":"IF(AND(AQ18<>\"\",AU18<>\"\"),ROUNDDOWN(AQ18*AU18/1000000,2),\"\")","v":""},null,null,null,null,null,null,null,null,null,null,null,null,null,null,null,null,null,null,null,null,null,null,null,null,null,null,null,null,null,null,null,null,null,null,null,null,null,null,null,null,null,null,null,null,null,null,null,null,null,null,null,"×",null,null,null,{"$f":"IF(AND(CU18<>\"\",CY18<>\"\"),ROUNDDOWN(CU18*CY18/1000000,2),\"\")","v":""},null,null,null,null,null,null,null,null,null,7]
[null,null,null,null,null,null,null,null,null,null,null,null,null,null,null,null,null,null,null,null,null,null,null,null,null,null,null,null,null,null,null,null,null,null,null,null,null,null,null,null,null,null,null,null,null,"×",null,null,null,"",null,null,null,null,null,null,null,null,null,null,null,null,null,null,null,null,null,null,null,null,null,null,null,null,null,null,null,null,null,null,null,null,null,null,null,null,null,null,null,null,null,null,null,null,null,null,null,null,null,null,null,"×",null,null,null,"",null,null,null,null,null,null,null,null,null,8]
[null,null,null,null,null,null,null,null,null,null,null,null,null,null,null,null,null,null,null,null,null,null,null,null,null,null,null,null,null,null,null,null,null,null,null,null,null,null,null,null,null,null,null,null,null,"×",null,null,null,"",null,null,null,null,null,null,null,null,null,null,null,null,null,null,null,null,null,null,null,null,null,null,null,null,null,null,null,null,null,null,null,null,null,null,null,null,null,null,null,null,null,null,null,null,null,null,null,null,null,null,null,"×",null,null,null,"",null,null,null,null,null,null,null,null,null,9]
[null,null,null,null,null,null,null,null,null,null,null,null,null,null,null,null,null,null,null,null,null,null,null,null,null,null,null,null,null,null,null,null,null,null,null,null,null,null,null,null,null,null,null,null,null,"×",null,null,null,"",null,null,null,null,null,null,null,null,null,null,null,null,null,null,null,null,null,null,null,null,null,null,null,null,null,null,null,null,null,null,null,null,null,null,null,null,null,null,null,null,null,null,null,null,null,null,null,null,null,null,null,"×",null,null,null,"",null,null,null,null,null,null,null,null,null,10]
[null,null,null,null,null,null,null,null,null,null,null,null,null,null,null,null,null,null,null,null,null,null,null,null,null,null,null,null,null,null,null,null,null,null,null,null,null,null,null,null,null,null,null,null,null,"×",null,null,null,"",null,null,null,null,null,null,null,null,null,null,null,null,null,null,null,null,null,null,null,null,null,null,null,null,null,null,null,null,null,null,null,null,null,null,null,null,null,null,null,null,null,null,null,null,null,null,null,null,null,null,null,"×",null,null,null,"",null,null,null,null,null,null,null,null,null,11]
[null,null,null,null,null,null,null,null,null,null,null,null,null,null,null,null,null,null,null,null,null,null,null,null,null,null,null,null,null,null,null,null,null,null,null,null,null,null,null,null,null,null,null,null,null,"×",null,null,null,"",null,null,null,null,null,null,null,null,null,null,null,null,null,null,null,null,null,null,null,null,null,null,null,null,null,null,null,null,null,null,null,null,null,null,null,null,null,null,null,null,null,null,null,null,null,null,null,null,null,null,null,"×",null,null,null,"",null,null,null,null,null,null,null,null,null,12]
[null,null,null,null,null,null,null,null,null,null,null,null,null,null,null,null,null,null,null,null,null,null,null,null,null,null,null,null,null,null,null,null,null,null,null,null,null,null,null,null,null,null,null,null,null,"×",null,null,null,"",null,null,null,null,null,null,null,null,null,null,null,null,null,null,null,null,null,null,null,null,null,null,null,null,null,null,null,null,null,null,null,null,null,null,null,null,null,null,null,null,null,null,null,null,null,null,null,null,null,null,null,"×",null,null,null,"",null,null,null,null,null,null,null,null,null,13]
[null,null,null,null,null,null,null,null,null,null,null,null,null,null,null,null,null,null,null,null,null,null,null,null,null,null,null,null,null,null,null,null,null,null,null,null,null,null,null,null,null,null,null,null,null,"×",null,null,null,"",null,null,null,null,null,null,null,null,null,null,null,null,null,null,null,null,null,null,null,null,null,null,null,null,null,null,null,null,null,null,null,null,null,null,null,null,null,null,null,null,null,null,null,null,null,null,null,null,null,null,null,"×",null,null,null,"",null,null,null,null,null,null,null,null,null,14]
[null,null,null,null,null,null,null,null,null,null,null,null,null,null,null,null,null,null,null,null,null,null,null,null,null,null,null,null,null,null,null,null,null,null,null,null,null,null,null,null,null,null,null,null,null,"×",null,null,null,"",null,null,null,null,null,null,null,null,null,null,null,null,null,null,null,null,null,null,null,null,null,null,null,null,null,null,null,null,null,null,null,null,null,null,null,null,null,null,null,null,null,null,null,null,null,null,null,null,null,null,null,"×",null,null,null,"",null,null,null,null,null,null,null,null,null,15]
[null,null,null,null,null,null,null,null,null,null,null,null,null,null,null,null,null,null,null,null,null,null,null,null,null,null,null,null,null,null,null,null,null,null,null,null,null,null,null,null,null,null,null,null,null,"×",null,null,null,"",null,null,null,null,null,null,null,null,null,null,null,null,null,null,null,null,null,null,null,null,null,null,null,null,null,null,null,null,null,null,null,null,null,null,null,null,null,null,null,null,null,null,null,null,null,null,null,null,null,null,null,"×",null,null,null,"",null,null,null,null,null,null,null,null,null,16]
[null,null,null,null,null,null,null,null,null,null,null,null,null,null,null,null,null,null,null,null,null,null,null,null,null,null,null,null,null,null,null,null,null,null,null,null,null,null,null,null,null,null,null,null,null,"×",null,null,null,"",null,null,null,null,null,null,null,null,null,null,null,null,null,null,null,null,null,null,null,null,null,null,null,null,null,null,null,null,null,null,null,null,null,null,null,null,null,null,null,null,null,null,null,null,null,null,null,null,null,null,null,"×",null,null,null,"",null,null,null,null,null,null,null,null,null,17]
[null,null,null,null,null,null,null,null,null,null,null,null,null,null,null,null,null,null,null,null,null,null,null,null,null,null,null,null,null,null,null,null,null,null,null,null,null,null,null,null,null,null,null,null,null,"×",null,null,null,"",null,null,null,null,null,null,null,null,null,null,null,null,null,null,null,null,null,null,null,null,null,null,null,null,null,null,null,null,null,null,null,null,null,null,null,null,null,null,null,null,null,null,null,null,null,null,null,null,null,null,null,"×",null,null,null,"",null,null,null,null,null,null,null,null,null,18]
[null,null,null,null,null,null,null,null,null,null,null,null,null,null,null,null,null,null,null,null,null,null,null,null,null,null,null,null,null,null,null,null,null,null,null,null,null,null,null,null,null,null,null,null,null,"×",null,null,null,"",null,null,null,null,null,null,null,null,null,null,null,null,null,null,null,null,null,null,null,null,null,null,null,null,null,null,null,null,null,null,null,null,null,null,null,null,null,null,null,null,null,null,null,null,null,null,null,null,null,null,null,"×",null,null,null,"",null,null,null,null,null,null,null,null,null,19]
[null,null,null,null,null,null,null,null,null,null,null,null,null,null,null,null,null,null,null,null,null,null,null,null,null,null,null,null,null,null,null,null,null,null,null,null,null,null,null,null,null,null,null,null,null,"×",null,null,null,"",null,null,null,null,null,null,null,null,null,null,null,null,null,null,null,null,null,null,null,null,null,null,null,null,null,null,null,null,null,null,null,null,null,null,null,null,null,null,null,null,null,null,null,null,null,null,null,null,null,null,null,"×",null,null,null,"",null,null,null,null,null,null,null,null,null,20]
[null,null,null,null,null,null,null,null,null,null,null,null,null,null,null,null,null,null,null,null,null,null,null,null,null,null,null,null,null,null,null,null,null,null,null,null,null,null,null,null,null,null,null,null,null,"×",null,null,null,"",null,null,null,null,null,null,null,null,null,null,null,null,null,null,null,null,null,null,null,null,null,null,null,null,null,null,null,null,null,null,null,null,null,null,null,null,null,null,null,null,null,null,null,null,null,null,null,null,null,null,null,"×",null,null,null,"",null,null,null,null,null,null,null,null,null,21]
[null,null,null,null,null,null,null,null,null,null,null,null,null,null,null,null,null,null,null,null,null,null,null,null,null,null,null,null,null,null,null,null,null,null,null,null,null,null,null,null,null,null,null,null,null,"×",null,null,null,"",null,null,null,null,null,null,null,null,null,null,null,null,null,null,null,null,null,null,null,null,null,null,null,null,null,null,null,null,null,null,null,null,null,null,null,null,null,null,null,null,null,null,null,null,null,null,null,null,null,null,null,"×",null,null,null,"",null,null,null,null,null,null,null,null,null,22]
[null,null,null,null,null,null,null,null,null,null,null,null,null,null,null,null,null,null,null,null,null,null,null,null,null,null,null,null,null,null,null,null,null,null,null,null,null,null,null,null,null,null,null,null,null,"×",null,null,null,"",null,null,null,null,null,null,null,null,null,null,null,null,null,null,null,null,null,null,null,null,null,null,null,null,null,null,null,null,null,null,null,null,null,null,null,null,null,null,null,null,null,null,null,null,null,null,null,null,null,null,null,"×",null,null,null,"",null,null,null,null,null,null,null,null,null,23]
[null,null,null,null,null,null,null,null,null,null,null,null,null,null,null,null,null,null,null,null,null,null,null,null,null,null,null,null,null,null,null,null,null,null,null,null,null,null,null,null,null,null,null,null,null,"×",null,null,null,"",null,null,null,null,null,null,null,null,null,null,null,null,null,null,null,null,null,null,null,null,null,null,null,null,null,null,null,null,null,null,null,null,null,null,null,null,null,null,null,null,null,null,null,null,null,null,null,null,null,null,null,"×",null,null,null,"",null,null,null,null,null,null,null,null,null,24]
[null,null,null,null,null,null,null,null,null,null,null,null,null,null,null,null,null,null,null,null,null,null,null,null,null,null,null,null,null,null,null,null,null,null,null,null,null,null,null,null,null,null,null,null,null,"×",null,null,null,"",null,null,null,null,null,null,null,null,null,null,null,null,null,null,null,null,null,null,null,null,null,null,null,null,null,null,null,null,null,null,null,null,null,null,null,null,null,null,null,null,null,null,null,null,null,null,null,null,null,null,null,"×",null,null,null,"",null,null,null,null,null,null,null,null,null,25]
[null,null,null,null,null,null,null,null,null,null,null,null,null,null,null,null,null,null,null,null,null,null,null,null,null,null,null,null,null,null,null,null,null,null,null,null,null,null,null,null,null,null,null,null,null,"×",null,null,null,"",null,null,null,null,null,null,null,null,null,null,null,null,null,null,null,null,null,null,null,null,null,null,null,null,null,null,null,null,null,null,null,null,null,null,null,null,null,null,null,null,null,null,null,null,null,null,null,null,null,null,null,"×",null,null,null,"",null,null,null,null,null,null,null,null,null,26]
[null,null,null,null,null,null,null,null,null,null,null,null,null,null,null,null,null,null,null,null,null,null,null,null,null,null,null,null,null,null,null,null,null,null,null,null,null,null,null,null,null,null,null,null,null,"×",null,null,null,"",null,null,null,null,null,null,null,null,null,null,null,null,null,null,null,null,null,null,null,null,null,null,null,null,null,null,null,null,null,null,null,null,null,null,null,null,null,null,null,null,null,null,null,null,null,null,null,null,null,null,null,"×",null,null,null,"",null,null,null,null,null,null,null,null,null,27]
[null,null,null,null,null,null,null,null,null,null,null,null,null,null,null,null,null,null,null,null,null,null,null,null,null,null,null,null,null,null,null,null,null,null,null,null,null,null,null,null,null,null,null,null,null,"×",null,null,null,"",null,null,null,null,null,null,null,null,null,null,null,null,null,null,null,null,null,null,null,null,null,null,null,null,null,null,null,null,null,null,null,null,null,null,null,null,null,null,null,null,null,null,null,null,null,null,null,null,null,null,null,"×",null,null,null,"",null,null,null,null,null,null,null,null,null,28]
[null,null,null,null,null,null,null,null,null,null,null,null,null,null,null,null,null,null,null,null,null,null,null,null,null,null,null,null,null,null,null,null,null,null,null,null,null,null,null,null,null,null,null,null,null,"×",null,null,null,"",null,null,null,null,null,null,null,null,null,null,null,null,null,null,null,null,null,null,null,null,null,null,null,null,null,null,null,null,null,null,null,null,null,null,null,null,null,null,null,null,null,null,null,null,null,null,null,null,null,null,null,"×",null,null,null,"",null,null,null,null,null,null,null,null,null,29]
[null,null,null,null,null,null,null,null,null,null,null,null,null,null,null,null,null,null,null,null,null,null,null,null,null,null,null,null,null,null,null,null,null,null,null,null,null,null,null,null,null,null,null,null,null,"×",null,null,null,"",null,null,null,null,null,null,null,null,null,null,null,null,null,null,null,null,null,null,null,null,null,null,null,null,null,null,null,null,null,null,null,null,null,null,null,null,null,null,null,null,null,null,null,null,null,null,null,null,null,null,null,"×",null,null,null,"",null,null,null,null,null,null,null,null,null,30]
[null,null,null,null,null,null,null,null,null,null,null,null,null,null,null,null,null,null,null,null,null,null,null,null,null,null,null,null,null,null,null,null,null,null,null,null,null,null,null,null,null,null,null,null,null,"×",null,null,null,"",null,null,null,null,null,null,null,null,null,null,null,null,null,null,null,null,null,null,null,null,null,null,null,null,null,null,null,null,null,null,null,null,null,null,null,null,null,null,null,null,null,null,null,null,null,null,null,null,null,null,null,"×",null,null,null,"",null,null,null,null,null,null,null,null,null,31]
[null,null,null,null,null,null,null,null,null,null,null,null,null,null,null,null,null,null,null,null,null,null,null,null,null,null,null,null,null,null,null,null,null,null,null,null,null,null,null,null,null,null,null,null,null,"×",null,null,null,"",null,null,null,null,null,null,null,null,null,null,null,null,null,null,null,null,null,null,null,null,null,null,null,null,null,null,null,null,null,null,null,null,null,null,null,null,null,null,null,null,null,null,null,null,null,null,null,null,null,null,null,"×",null,null,null,"",null,null,null,null,null,null,null,null,null,32]
[null,null,null,null,null,null,null,null,null,null,null,null,null,null,null,null,null,null,null,null,null,null,null,null,null,null,null,null,null,null,null,null,null,null,null,null,null,null,null,null,null,null,null,null,null,"×",null,null,null,"",null,null,null,null,null,null,null,null,null,null,null,null,null,null,null,null,null,null,null,null,null,null,null,null,null,null,null,null,null,null,null,null,null,null,null,null,null,null,null,null,null,null,null,null,null,null,null,null,null,null,null,"×",null,null,null,"",null,null,null,null,null,null,null,null,null,33]
[null,null,null,null,null,null,null,null,null,null,null,null,null,null,null,null,null,null,null,null,null,null,null,null,null,null,null,null,null,null,null,null,null,null,null,null,null,null,null,null,null,null,null,null,null,"×",null,null,null,"",null,null,null,null,null,null,null,null,null,null,null,null,null,null,null,null,null,null,null,null,null,null,null,null,null,null,null,null,null,null,null,null,null,null,null,null,null,null,null,null,null,null,null,null,null,null,null,null,null,null,null,"×",null,null,null,"",null,null,null,null,null,null,null,null,null,34]
[null,null,null,null,null,null,null,null,null,null,null,null,null,null,null,null,null,null,null,null,null,null,null,null,null,null,null,null,null,null,null,null,null,null,null,null,null,null,null,null,null,null,null,null,null,"×",null,null,null,"",null,null,null,null,null,null,null,null,null,null,null,null,null,null,null,null,null,null,null,null,null,null,null,null,null,null,null,null,null,null,null,null,null,null,null,null,null,null,null,null,null,null,null,null,null,null,null,null,null,null,null,"×",null,null,null,"",null,null,null,null,null,null,null,null,null,35]
[null,null,null,null,null,null,null,null,null,null,null,null,null,null,null,null,null,null,null,null,null,null,null,null,null,null,null,null,null,null,null,null,null,null,null,null,null,null,null,null,null,null,null,null,null,"×",null,null,null,"",null,null,null,null,null,null,null,null,null,null,null,null,null,null,null,null,null,null,null,null,null,null,null,null,null,null,null,null,null,null,null,null,null,null,null,null,null,null,null,null,null,null,null,null,null,null,null,null,null,null,null,"×",null,null,null,"",null,null,null,null,null,null,null,null,null,36]
[null,null,null,null,null,null,null,null,null,null,null,null,null,null,null,null,null,null,null,null,null,null,null,null,null,null,null,null,null,null,null,null,null,null,null,null,null,null,null,null,null,null,null,null,null,"×",null,null,null,"",null,null,null,null,null,null,null,null,null,null,null,null,null,null,null,null,null,null,null,null,null,null,null,null,null,null,null,null,null,null,null,null,null,null,null,null,null,null,null,null,null,null,null,null,null,null,null,null,null,null,null,"×",null,null,null,"",null,null,null,null,null,null,null,null,null,37]
[null,null,null,null,null,null,null,null,null,null,null,null,null,null,null,null,null,null,null,null,null,null,null,null,null,null,null,null,null,null,null,null,null,null,null,null,null,null,null,null,null,null,null,null,null,"×",null,null,null,"",null,null,null,null,null,null,null,null,null,null,null,null,null,null,null,null,null,null,null,null,null,null,null,null,null,null,null,null,null,null,null,null,null,null,null,null,null,null,null,null,null,null,null,null,null,null,null,null,null,null,null,"×",null,null,null,"",null,null,null,null,null,null,null,null,null,38]
[null,null,null,null,null,null,null,null,null,null,null,null,null,null,null,null,null,null,null,null,null,null,null,null,null,null,null,null,null,null,null,null,null,null,null,null,null,null,null,null,null,null,null,null,null,"×",null,null,null,"",null,null,null,null,null,null,null,null,null,null,null,null,null,null,null,null,null,null,null,null,null,null,null,null,null,null,null,null,null,null,null,null,null,null,null,null,null,null,null,null,null,null,null,null,null,null,null,null,null,null,null,"×",null,null,null,"",null,null,null,null,null,null,null,null,null,39]
[null,null,null,null,null,null,null,null,null,null,null,null,null,null,null,null,null,null,null,null,null,null,null,null,null,null,null,null,null,null,null,null,null,null,null,null,null,null,null,null,null,null,null,null,null,"×",null,null,null,"",null,null,null,null,null,null,null,null,null,null,null,null,null,null,null,null,null,null,null,null,null,null,null,null,null,null,null,null,null,null,null,null,null,null,null,null,null,null,null,null,null,null,null,null,null,null,null,null,null,null,null,"×",null,null,null,"",null,null,null,null,null,null,null,null,null,40]
[null,null,null,null,null,null,null,null,null,null,null,null,null,null,null,null,null,null,null,null,null,null,null,null,null,null,null,null,null,null,null,null,null,null,null,null,null,null,null,null,null,null,null,null,null,"×",null,null,null,"",null,null,null,null,null,null,null,null,null,null,null,null,null,null,null,null,null,null,null,null,null,null,null,null,null,null,null,null,null,null,null,null,null,null,null,null,null,null,null,null,null,null,null,null,null,null,null,null,null,null,null,"×",null,null,null,"",null,null,null,null,null,null,null,null,null,41]
[null,null,null,null,null,null,null,null,null,null,null,null,null,null,null,null,null,null,null,null,null,null,null,null,null,null,null,null,null,null,null,null,null,null,null,null,null,null,null,null,null,null,null,null,null,"×",null,null,null,"",null,null,null,null,null,null,null,null,null,null,null,null,null,null,null,null,null,null,null,null,null,null,null,null,null,null,null,null,null,null,null,null,null,null,null,null,null,null,null,null,null,null,null,null,null,null,null,null,null,null,null,"×",null,null,null,"",null,null,null,null,null,null,null,null,null,42]
[null,null,null,null,null,null,null,null,null,null,null,null,null,null,null,null,null,null,null,null,null,null,null,null,null,null,null,null,null,null,null,null,null,null,null,null,null,null,null,null,null,null,null,null,null,"×",null,null,null,"",null,null,null,null,null,null,null,null,null,null,null,null,null,null,null,null,null,null,null,null,null,null,null,null,null,null,null,null,null,null,null,null,null,null,null,null,null,null,null,null,null,null,null,null,null,null,null,null,null,null,null,"×",null,null,null,"",null,null,null,null,null,null,null,null,null,43]
[null,null,null,null,null,null,null,null,null,null,null,null,null,null,null,null,null,null,null,null,null,null,null,null,null,null,null,null,null,null,null,null,null,null,null,null,null,null,null,null,null,null,null,null,null,"×",null,null,null,"",null,null,null,null,null,null,null,null,null,null,null,null,null,null,null,null,null,null,null,null,null,null,null,null,null,null,null,null,null,null,null,null,null,null,null,null,null,null,null,null,null,null,null,null,null,null,null,null,null,null,null,"×",null,null,null,"",null,null,null,null,null,null,null,null,null,44]
[null,null,null,null,null,null,null,null,null,null,null,null,null,null,null,null,null,null,null,null,null,null,null,null,null,null,null,null,null,null,null,null,null,null,null,null,null,null,null,null,null,null,null,null,null,"×",null,null,null,{"$f":"IF(AND(AQ56<>\"\",AU56<>\"\"),ROUNDDOWN(AQ56*AU56/1000000,2),\"\")","v":""},null,null,null,null,null,null,null,null,null,null,null,null,null,null,null,null,null,null,null,null,null,null,null,null,null,null,null,null,null,null,null,null,null,null,null,null,null,null,null,null,null,null,null,null,null,null,null,null,null,null,null,"×",null,null,null,{"$f":"IF(AND(CU56<>\"\",CY56<>\"\"),ROUNDDOWN(CU56*CY56/1000000,2),\"\")","v":""},null,null,null,null,null,null,null,null,null,45]
[null,null,null,null,null,null,null,null,null,null,null,null,null,null,null,null,null,null,null,null,null,null,null,null,null,null,null,null,null,null,null,null,null,null,null,null,null,null,null,null,null,null,null,null,null,"×",null,null,null,{"$f":"IF(AND(AQ57<>\"\",AU57<>\"\"),ROUNDDOWN(AQ57*AU57/1000000,2),\"\")","v":""},null,null,null,null,null,null,null,null,null,null,null,null,null,null,null,null,null,null,null,null,null,null,null,null,null,null,null,null,null,null,null,null,null,null,null,null,null,null,null,null,null,null,null,null,null,null,null,null,null,null,null,"×",null,null,null,{"$f":"IF(AND(CU57<>\"\",CY57<>\"\"),ROUNDDOWN(CU57*CY57/1000000,2),\"\")","v":""},null,null,null,null,null,null,null,null,null,46]
[null,null,null,null,null,null,null,null,null,null,null,null,null,null,null,null,null,null,null,null,null,null,null,null,null,null,null,null,null,null,null,null,null,null,null,null,null,null,null,null,null,null,null,null,null,"×",null,null,null,"",null,null,null,null,null,null,null,null,null,null,null,null,null,null,null,null,null,null,null,null,null,null,null,null,null,null,null,null,null,null,null,null,null,null,null,null,null,null,null,null,null,null,null,null,null,null,null,null,null,null,null,"×",null,null,null,"",null,null,null,null,null,null,null,null,null,47]
[null,null,null,null,null,null,null,null,null,null,null,null,null,null,null,null,null,null,null,null,null,null,null,null,null,null,null,null,null,null,null,null,null,null,null,null,null,null,null,null,null,null,null,null,null,"×",null,null,null,"",null,null,null,null,null,null,null,null,null,null,null,null,null,null,null,null,null,null,null,null,null,null,null,null,null,null,null,null,null,null,null,null,null,null,null,null,null,null,null,null,null,null,null,null,null,null,null,null,null,null,null,"×",null,null,null,"",null,null,null,null,null,null,null,null,null,48]
[null,null,null,null,null,null,null,null,null,null,null,null,null,null,null,null,null,null,null,null,null,null,null,null,null,null,null,null,null,null,null,null,null,null,null,null,null,null,null,null,null,null,null,null,null,"×",null,null,null,{"$f":"IF(AND(AQ60<>\"\",AU60<>\"\"),ROUNDDOWN(AQ60*AU60/1000000,2),\"\")","v":""},null,null,null,null,null,null,null,null,null,null,null,null,null,null,null,null,null,null,null,null,null,null,null,null,null,null,null,null,null,null,null,null,null,null,null,null,null,null,null,null,null,null,null,null,null,null,null,null,null,null,null,"×",null,null,null,{"$f":"IF(AND(CU60<>\"\",CY60<>\"\"),ROUNDDOWN(CU60*CY60/1000000,2),\"\")","v":""},null,null,null,null,null,null,null,null,null,49]
[null,null,null,null,null,null,null,null,null,null,null,null,null,null,null,null,null,null,null,null,null,null,null,null,null,null,null,null,null,null,null,null,null,null,null,null,null,null,null,null,null,null,null,null,null,"×",null,null,null,"",null,null,null,null,null,null,null,null,null,null,null,null,null,null,null,null,null,null,null,null,null,null,null,null,null,null,null,null,null,null,null,null,null,null,null,null,null,null,null,null,null,null,null,null,null,null,null,null,null,null,null,"×",null,null,null,{"$f":"IF(AND(CU61<>\"\",CY61<>\"\"),ROUNDDOWN(CU61*CY61/1000000,2),\"\")","v":""},null,null,null,null,null,null,null,null,null,50]
[null,null,null,"数量・面積・設備費計",null,null,null,null,null,null,null,null,null,null,null,null,null,null,null,null,null,null,null,null,null,null,null,null,null,null,null,null,null,null,null,null,null,null,null,null,null,null,null,null,null,null,null,null,null,{"$f":"SUM(AX12:BA61)","v":0},null,null,null,{"$f":"ROUNDDOWN(SUM(BB12:BF61),0)","v":0},null,null,null,null,null,"数量・面積・設備費計",null,null,null,null,null,null,null,null,null,null,null,null,null,null,null,null,null,null,null,null,null,null,null,null,null,null,null,null,null,null,null,null,null,null,null,null,null,null,null,null,null,null,null,null,null,{"$f":"SUM(DB12:DD61)","v":0},null,null,null,{"$f":"ROUNDDOWN(SUM(DF12:DJ61),0)","v":0},null,null,null,null,null,51]
["工事費",null,null,"工事費計",null,null,null,null,null,null,null,null,null,null,null,null,null,null,null,null,null,null,null,null,null,null,null,null,null,null,null,null,null,null,null,null,null,null,null,null,null,null,null,null,null,null,null,null,null,null,null,null,null,null,null,null,null,null,null,"工事費計",null,null,null,null,null,null,null,null,null,null,null,null,null,null,null,null,null,null,null,null,null,null,null,null,null,null,null,null,null,null,null,null,null,null,null,null,null,null,null,null,null,null,null,null,null,null,null,null,null,null,null,null,null,null,null,52]
["窓の補助対象経費の合計[税抜]",null,null,null,null,null,null,null,null,null,null,null,null,null,null,null,null,null,null,null,null,null,null,null,null,null,null,null,null,null,null,null,null,null,null,null,null,null,null,null,null,null,null,null,null,null,null,null,null,null,null,null,null,{"$f":"SUM(BB62:BF63)","v":0},null,null,null,null,null,"窓の補助対象経費の合計[税抜]",null,null,null,null,null,null,null,null,null,null,null,null,null,null,null,null,null,null,null,null,null,null,null,null,null,null,null,null,null,null,null,null,null,null,null,null,null,null,null,null,null,null,null,null,null,null,null,null,null,{"$f":"SUM(DF62:DJ63)","v":0},null,null,null,null,null,53]
[]
[null,null,null,null,null,null,null,null,null,null,null,null,null,null,null,null,null,null,null,null,null,null,null,null,null,null,null,null,null,null,null,null,null,null,null,null,null,null,null,null,null,null,"工事費按分",null,null,null,null,null,null,null,null,null,null,null,null,null,null,null,null,null,null,null,null,null,null,null,null,null,null,null,null,null,null,null,null,null,null,null,null,null,null,null,null,null,null,null,null,null,null,null,null,null,null,null,null,null,null,null,"工事費按分"]
[null,null,null,null,null,null,null,null,null,null,null,null,null,null,null,null,null,null,null,null,null,null,null,null,null,null,null,null,null,null,null,null,null,null,null,null,null,null,null,null,null,null,"改修工法",null,null,null,null,null,"窓数",null,null,null,null,"工事費",null,null,null,null,null,null,null,null,null,null,null,null,null,null,null,null,null,null,null,null,null,null,null,null,null,null,null,null,null,null,null,null,null,null,null,null,null,null,null,null,null,null,null,null,"改修工法",null,null,null,null,null,"窓数",null,null,null,null,"工事費"]
[null,null,null,null,null,null,null,null,null,null,null,null,null,null,null,null,null,null,null,null,null,null,null,null,null,null,null,null,null,null,null,null,null,null,null,null,null,null,null,null,null,null,"カバー工法",null,null,null,null,null,{"$f":"COUNTIF(J12:P61,AQ68)","v":0},null,null,null,null,{"$f":"IF(AW68>=1,BB63-$BB$69-$BB$70,0)","v":0},null,null,null,null,null,null,null,null,null,null,null,null,null,null,null,null,null,null,null,null,null,null,null,null,null,null,null,null,null,null,null,null,null,null,null,null,null,null,null,null,null,null,null,null,"カバー工法",null,null,null,null,null,{"$f":"COUNTIF($BN$12:$BT$61,CU68)","v":0},null,null,null,null,{"$f":"IF(DA68>=1,$DF$63-$DF$69-$DF$70,0)","v":0}]
[null,null,null,null,null,null,null,null,null,null,null,null,null,null,null,null,null,null,null,null,null,null,null,null,null,null,null,null,null,null,null,null,null,null,null,null,null,null,null,null,null,null,"外窓交換",null,null,null,null,null,{"$f":"COUNTIF(J12:P61,AQ69)","v":0},null,null,null,null,{"$f":"IFERROR(IF(AND($AW$68=0,$AW$69>=1),BB63-$BB$70,ROUNDDOWN(BB63*AW69/$AW$71,0)),0)","v":0},null,null,null,null,null,null,null,null,null,null,null,null,null,null,null,null,null,null,null,null,null,null,null,null,null,null,null,null,null,null,null,null,null,null,null,null,null,null,null,null,null,null,null,null,"外窓交換",null,null,null,null,null,{"$f":"COUNTIF($BN$12:$BT$61,CU69)","v":0},null,null,null,null,{"$f":"IFERROR(IF(AND($DA$68=0,$DA$69>=1),$DF$63-$DF$70,ROUNDDOWN($DF$63*DA69/$DA$71,0)),0)","v":0}]
[null,null,null,null,null,null,null,null,null,null,null,null,null,null,null,null,null,null,null,null,null,null,null,null,null,null,null,null,null,null,null,null,null,null,null,null,null,null,null,null,null,null,"内窓取付",null,null,null,null,null,{"$f":"COUNTIF(J12:P61,AQ70)","v":0},null,null,null,null,{"$f":"IFERROR(ROUNDDOWN(BB63*AW70/$AW$71,0),0)","v":0},null,null,null,null,null,null,null,null,null,null,null,null,null,null,null,null,null,null,null,null,null,null,null,null,null,null,null,null,null,null,null,null,null,null,null,null,null,null,null,null,null,null,null,null,"内窓取付",null,null,null,null,null,{"$f":"COUNTIF($BN$12:$BT$61,CU70)","v":0},null,null,null,null,{"$f":"IFERROR(ROUNDDOWN($DF$63*DA70/$DA$71,0),0)","v":0}]
[null,null,null,null,null,null,null,null,null,null,null,null,null,null,null,null,null,null,null,null,null,null,null,null,null,null,null,null,null,null,null,null,null,null,null,null,null,null,null,null,null,null,"合計",null,null,null,null,null,{"$f":"SUM(AW68:BA70)","v":0},null,null,null,null,{"$f":"IFERROR(SUM($BB$68:$BF$70),\"\")","v":0},null,null,null,null,null,null,null,null,null,null,null,null,null,null,null,null,null,null,null,null,null,null,null,null,null,null,null,null,null,null,null,null,null,null,null,null,null,null,null,null,null,null,null,null,"合計",null,null,null,null,null,{"$f":"SUM(DA68:DE70)","v":0},null,null,null,null,{"$f":"IFERROR(SUM($DF$68:$DJ$70),\"\")","v":0}]
[]
["玄関ドア",null,null,null,null,null,null,null,null,null,null,null,null,null,null,null,null,null,null,null,null,null,null,null,null,null,null,null,null,null,null,null,null,null,null,null,null,null,null,null,null,null,null,null,null,null,null,null,null,null,null,null,null,null,null,null,null,null,null,"玄関ドア"]
[]
["費目",null,null,"メーカー名",null,null,null,null,null,null,null,null,null,null,null,null,null,null,null,null,null,"製品名",null,null,null,null,null,null,null,null,null,null,null,null,null,null,null,null,null,null,null,null,null,null,null,"数量\n(ｂ)",null,null,"単価（円）\n（ｃ)",null,null,null,null,"金額(円）［税抜］\n(ｂ)×（ｃ)",null,null,null,null,null,"メーカー名",null,null,null,null,null,null,null,null,null,null,null,null,null,null,null,null,null,"製品名",null,null,null,null,null,null,null,null,null,null,null,null,null,null,null,null,null,null,null,null,null,null,null,"数量\n(ｂ)",null,null,"単価（円）\n（ｃ)",null,null,null,null,"金額(円）［税抜］\n(ｂ)×（ｃ)",null,null,null,null,null,"No.","SII連絡事項"]
["材料費",null,null,null,null,null,null,null,null,null,null,null,null,null,null,null,null,null,null,null,null,null,null,null,null,null,null,null,null,null,null,null,null,null,null,null,null,null,null,null,null,null,null,null,null,null,null,null,null,null,null,null,null,{"$f":"IF(AW76<>\"\",ROUNDDOWN(AT76*AW76,0),\"\")","v":""},null,null,null,null,null,null,null,null,null,null,null,null,null,null,null,null,null,null,null,null,null,null,null,null,null,null,null,null,null,null,null,null,null,null,null,null,null,null,null,null,null,null,null,null,null,null,null,null,null,null,null,null,null,null,null,{"$f":"IF(DA76<>\"\",ROUNDDOWN(CX76*DA76,0),\"\")","v":""},null,null,null,null,null,1]
[null,null,null,null,null,null,null,null,null,null,null,null,null,null,null,null,null,null,null,null,null,null,null,null,null,null,null,null,null,null,null,null,null,null,null,null,null,null,null,null,null,null,null,null,null,null,null,null,null,null,null,null,null,{"$f":"IF(AW77<>\"\",ROUNDDOWN(AT77*AW77,0),\"\")","v":""},null,null,null,null,null,null,null,null,null,null,null,null,null,null,null,null,null,null,null,null,null,null,null,null,null,null,null,null,null,null,null,null,null,null,null,null,null,null,null,null,null,null,null,null,null,null,null,null,null,null,null,null,null,null,null,{"$f":"IF(DA77<>\"\",ROUNDDOWN(CX77*DA77,0),\"\")","v":""},null,null,null,null,null,2]
[null,null,null,null,null,null,null,null,null,null,null,null,null,null,null,null,null,null,null,null,null,null,null,null,null,null,null,null,null,null,null,null,null,null,null,null,null,null,null,null,null,null,null,null,null,null,null,null,null,null,null,null,null,"",null,null,null,null,null,null,null,null,null,null,null,null,null,null,null,null,null,null,null,null,null,null,null,null,null,null,null,null,null,null,null,null,null,null,null,null,null,null,null,null,null,null,null,null,null,null,null,null,null,null,null,null,null,null,null,"",null,null,null,null,null,3]
[null,null,null,null,null,null,null,null,null,null,null,null,null,null,null,null,null,null,null,null,null,null,null,null,null,null,null,null,null,null,null,null,null,null,null,null,null,null,null,null,null,null,null,null,null,null,null,null,null,null,null,null,null,{"$f":"IF(AW79<>\"\",ROUNDDOWN(AT79*AW79,0),\"\")","v":""},null,null,null,null,null,null,null,null,null,null,null,null,null,null,null,null,null,null,null,null,null,null,null,null,null,null,null,null,null,null,null,null,null,null,null,null,null,null,null,null,null,null,null,null,null,null,null,null,null,null,null,null,null,null,null,"",null,null,null,null,null,4]
[null,null,null,null,null,null,null,null,null,null,null,null,null,null,null,null,null,null,null,null,null,null,null,null,null,null,null,null,null,null,null,null,null,null,null,null,null,null,null,null,null,null,null,null,null,null,null,null,null,null,null,null,null,"",null,null,null,null,null,null,null,null,null,null,null,null,null,null,null,null,null,null,null,null,null,null,null,null,null,null,null,null,null,null,null,null,null,null,null,null,null,null,null,null,null,null,null,null,null,null,null,null,null,null,null,null,null,null,null,"",null,null,null,null,null,5]
[null,null,null,"数量・設備費計",null,null,null,null,null,null,null,null,null,null,null,null,null,null,null,null,null,null,null,null,null,null,null,null,null,null,null,null,null,null,null,null,null,null,null,null,null,null,null,null,null,{"$f":"SUM(AT76:AV80)","v":0},null,null,null,null,null,null,null,{"$f":"ROUNDDOWN(SUM(BB76:BF80),0)","v":0},null,null,null,null,null,"数量・設備費計",null,null,null,null,null,null,null,null,null,null,null,null,null,null,null,null,null,null,null,null,null,null,null,null,null,null,null,null,null,null,null,null,null,null,null,null,null,null,null,null,null,{"$f":"SUM(CX76:CZ80)","v":0},null,null,null,null,null,null,null,{"$f":"ROUNDDOWN(SUM(DF76:DJ80),0)","v":0},null,null,null,null,null,6]
["工事費",null,null,"工事費計",null,null,null,null,null,null,null,null,null,null,null,null,null,null,null,null,null,null,null,null,null,null,null,null,null,null,null,null,null,null,null,null,null,null,null,null,null,null,null,null,null,null,null,null,null,null,null,null,null,null,null,null,null,null,null,"工事費計",null,null,null,null,null,null,null,null,null,null,null,null,null,null,null,null,null,null,null,null,null,null,null,null,null,null,null,null,null,null,null,null,null,null,null,null,null,null,null,null,null,null,null,null,null,null,null,null,null,null,null,null,null,null,null,7]
["玄関ドアの補助対象経費の合計[税抜]",null,null,null,null,null,null,null,null,null,null,null,null,null,null,null,null,null,null,null,null,null,null,null,null,null,null,null,null,null,null,null,null,null,null,null,null,null,null,null,null,null,null,null,null,null,null,null,null,null,null,null,null,{"$f":"SUM(BB81:BF82)","v":0},null,null,null,null,null,"玄関ドアの補助対象経費の合計[税抜]",null,null,null,null,null,null,null,null,null,null,null,null,null,null,null,null,null,null,null,null,null,null,null,null,null,null,null,null,null,null,null,null,null,null,null,null,null,null,null,null,null,null,null,null,null,null,null,null,null,{"$f":"SUM(DF81:DJ82)","v":0},null,null,null,null,null,8]

{"sheet":"明細書【ガラス交換】","index":3,"n_rows":57,"n_cols":109,"rows_kept":57,"cut":false,"hidden":false,"merged":[[0,0,0,105],[4,0,4,53],[56,55,56,100],[56,101,56,105],[53,97,53,100],[53,101,53,105],[54,55,54,90],[54,91,54,93],[54,94,54,96],[54,97,54,100],[54,101,54,105],[55,55,55,100],[55,101,55,105],[53,55,53,60],[53,61,53,63],[53,64,53,70],[53,71,53,80],[53,81,53,83],[53,85,53,87],[53,88,53,90],[53,91,53,93],[53,94,53,96],[51,97,51,100],[51,101,51,105],[52,55,52,60],[52,61,52,63],[52,64,52,70],[52,71,52,80],[52,81,52,83],[52,85,52,87],[52,88,52,90],[52,91,52,93],[52,94,52,96],[52,97,52,100],[52,101,52,105],[51,55,51,60],[51,61,51,63],[51,64,51,70],[51,71,51,80],[51,81,51,83],[51,85,51,87],[51,88,51,90],[51,91,51,93],[51,94,51,96],[49,97,49,100],[49,101,49,105],[50,55,50,60],[50,61,50,63],[50,64,50,70],[50,71,50,80],[50,81,50,83],[50,85,50,87],[50,88,50,90],[50,91,50,93],[50,94,50,96],[50,97,50,100],[50,101,50,105],[49,55,49,60],[49,61,49,63],[49,64,49,70],[49,71,49,80],[49,81,49,83],[49,85,49,87],[49,88,49,90],[49,91,49,93],[49,94,49,96],[47,97,47,100],[47,101,47,105],[48,55,48,60],[48,61,48,63],[48,64,48,70],[48,71,48,80],[48,81,48,83],[48,85,48,87],[48,88,48,90],[48,91,48,93],[48,94,48,96],[48,97,48,100],[48,101,48,105],[47,55,47,60],[47,61,47,63],[47,64,47,70],[47,71,47,80],[47,81,47,83],[47,85,47,87],[47,88,47,90],[47,91,47,93],[47,94,47,96],[45,97,45,100],[45,101,45,105],[46,55,46,60],[46,61,46,63],[46,64,46,70],[46,71,46,80],[46,81,46,83],[46,85,46,87],[46,88,46,90],[46,91,46,93],[46,94,46,96],[46,97,46,100],[46,101,46,105],[45,55,45,60],[45,61,45,63],[45,64,45,70],[45,71,45,80],[45,81,45,83],[45,85,45,87],[45,88,45,90],[45,91,45,93],[45,94,45,96],[43,97,43,100],[43,101,43,105],[44,55,44,60],[44,61,44,63],[44,64,44,70],[44,71,44,80],[44,81,44,83],[44,85,44,87],[44,88,44,90],[44,91,44,93],[44,94,44,96],[44,97,44,100],[44,101,44,105],[43,55,43,60],[43,61,43,63],[43,64,43,70],[43,71,43,80],[43,81,43,83],[43,85,43,87],[43,88,43,90],[43,91,43,93],[43,94,43,96],[41,97,41,100],[41,101,41,105],[42,55,42,60],[42,61,42,63],[42,64,42,70],[42,71,42,80],[42,81,42,83],[42,85,42,87],[42,88,42,90],[42,91,42,93],[42,94,42,96],[42,97,42,100],[42,101,42,105],[41,55,41,60],[41,61,41,63],[41,64,41,70],[41,71,41,80],[41,81,41,83],[41,85,41,87],[41,88,41,90],[41,91,41,93],[41,94,41,96],[39,97,39,100],[39,101,39,105],[40,55,40,60],[40,61,40,63],[40,64,40,70],[40,71,40,80],[40,81,40,83],[40,85,40,87],[40,88,40,90],[40,91,40,93],[40,94,40,96],[40,97,40,100],[40,101,40,105],[39,55,39,60],[39,61,39,63],[39,64,39,70],[39,71,39,80],[39,81,39,83],[39,85,39,87],[39,88,39,90],[39,91,39,93],[39,94,39,96],[37,97,37,100],[37,101,37,105],[38,55,38,60],[38,61,38,63],[38,64,38,70],[38,71,38,80],[38,81,38,83],[38,85,38,87],[38,88,38,90],[38,91,38,93],[38,94,38,96],[38,97,38,100],[38,101,38,105],[37,55,37,60],[37,61,37,63],[37,64,37,70],[37,71,37,80],[37,81,37,83],[37,85,37,87],[37,88,37,90],[37,91,37,93],[37,94,37,96],[35,97,35,100],[35,101,35,105],[36,55,36,60],[36,61,36,63],[36,64,36,70],[36,71,36,80],[36,81,36,83],[36,85,36,87],[36,88,36,90],[36,91,36,93],[36,94,36,96],[36,97,36,100],[36,101,36,105],[35,55,35,60],[35,61,35,63],[35,64,35,70],[35,71,35,80],[35,81,35,83],[35,85,35,87],[35,88,35,90],[35,91,35,93],[35,94,35,96],[33,97,33,100],[33,101,33,105],[34,55,34,60],[34,61,34,63],[34,64,34,70],[34,71,34,80],[34,81,34,83],[34,85,34,87],[34,88,34,90],[34,91,34,93],[34,94,34,96],[34,97,34,100],[34,101,34,105],[33,55,33,60],[33,61,33,63],[33,64,33,70],[33,71,33,80],[33,81,33,83],[33,85,33,87],[33,88,33,90],[33,91,33,93],[33,94,33,96],[31,97,31,100],[31,101,31,105],[32,55,32,60],[32,61,32,63],[32,64,32,70],[32,71,32,80],[32,81,32,83],[32,85,32,87],[32,88,32,90],[32,91,32,93],[32,94,32,96],[32,97,32,100],[32,101,32,105],[31,55,31,60],[31,61,31,63],[31,64,31,70],[31,71,31,80],[31,81,31,83],[31,85,31,87],[31,88,31,90],[31,91,31,93],[31,94,31,96],[29,97,29,100],[29,101,29,105],[30,55,30,60],[30,61,30,63],[30,64,30,70],[30,71,30,80],[30,81,30,83],[30,85,30,87],[30,88,30,90],[30,91,30,93],[30,94,30,96],[30,97,30,100],[30,101,30,105],[29,55,29,60],[29,61,29,63],[29,64,29,70],[29,71,29,80],[29,81,29,83],[29,85,29,87],[29,88,29,90],[29,91,29,93],[29,94,29,96],[27,97,27,100],[27,101,27,105],[28,55,28,60],[28,61,28,63],[28,64,28,70],[28,71,28,80],[28,81,28,83],[28,85,28,87],[28,88,28,90],[28,91,28,93],[28,94,28,96],[28,97,28,100],[28,101,28,105],[27,55,27,60],[27,61,27,63],[27,64,27,70],[27,71,27,80],[27,81,27,83],[27,85,27,87],[27,88,27,90],[27,91,27,93],[27,94,27,96],[25,97,25,100],[25,101,25,105],[26,55,26,60],[26,61,26,63],[26,64,26,70],[26,71,26,80],[26,81,26,83],[26,85,26,87],[26,88,26,90],[26,91,26,93],[26,94,26,96],[26,97,26,100],[26,101,26,105],[25,55,25,60],[25,61,25,63],[25,64,25,70],[25,71,25,80],[25,81,25,83],[25,85,25,87],[25,88,25,90],[25,91,25,93],[25,94,25,96],[23,97,23,100],[23,101,23,105],[24,55,24,60],[24,61,24,63],[24,64,24,70],[24,71,24,80],[24,81,24,83],[24,85,24,87],[24,88,24,90],[24,91,24,93],[24,94,24,96],[24,97,24,100],[24,101,24,105],[23,55,23,60],[23,61,23,63],[23,64,23,70],[23,71,23,80],[23,81,23,83],[23,85,23,87],[23,88,23,90],[23,91,23,93],[23,94,23,96],[21,97,21,100],[21,101,21,105],[22,55,22,60],[22,61,22,63],[22,64,22,70],[22,71,22,80],[22,81,22,83],[22,85,22,87],[22,88,22,90],[22,91,22,93],[22,94,22,96],[22,97,22,100],[22,101,22,105],[21,55,21,60],[21,61,21,63],[21,64,21,70],[21,71,21,80],[21,81,21,83],[21,85,21,87],[21,88,21,90],[21,91,21,93],[21,94,21,96],[19,97,19,100],[19,101,19,105],[20,55,20,60],[20,61,20,63],[20,64,20,70],[20,71,20,80],[20,81,20,83],[20,85,20,87],[20,88,20,90],[20,91,20,93],[20,94,20,96],[20,97,20,100],[20,101,20,105],[19,55,19,60],[19,61,19,63],[19,64,19,70],[19,71,19,80],[19,81,19,83],[19,85,19,87],[19,88,19,90],[19,91,19,93],[19,94,19,96],[17,97,17,100],[17,101,17,105],[18,55,18,60],[18,61,18,63],[18,64,18,70],[18,71,18,80],[18,81,18,83],[18,85,18,87],[18,88,18,90],[18,91,18,93],[18,94,18,96],[18,97,18,100],[18,101,18,105],[17,55,17,60],[17,61,17,63],[17,64,17,70],[17,71,17,80],[17,81,17,83],[17,85,17,87],[17,88,17,90],[17,91,17,93],[17,94,17,96],[15,97,15,100],[15,101,15,105],[16,55,16,60],[16,61,16,63],[16,64,16,70],[16,71,16,80],[16,81,16,83],[16,85,16,87],[16,88,16,90],[16,91,16,93],[16,94,16,96],[16,97,16,100],[16,101,16,105],[15,55,15,60],[15,61,15,63],[15,64,15,70],[15,71,15,80],[15,81,15,83],[15,85,15,87],[15,88,15,90],[15,91,15,93],[15,94,15,96],[13,97,13,100],[13,101,13,105],[14,55,14,60],[14,61,14,63],[14,64,14,70],[14,71,14,80],[14,81,14,83],[14,85,14,87],[14,88,14,90],[14,91,14,93],[14,94,14,96],[14,97,14,100],[14,101,14,105],[13,55,13,60],[13,61,13,63],[13,64,13,70],[13,71,13,80],[13,81,13,83],[13,85,13,87],[13,88,13,90],[13,91,13,93],[13,94,13,96],[11,101,11,105],[12,55,12,60],[12,61,12,63],[12,64,12,70],[12,71,12,80],[12,81,12,83],[12,85,12,87],[12,88,12,90],[12,91,12,93],[12,94,12,96],[12,97,12,100],[12,101,12,105],[11,55,11,60],[11,61,11,63],[11,64,11,70],[11,71,11,80],[11,81,11,83],[11,85,11,87],[11,88,11,90],[11,91,11,93],[11,94,11,96],[9,101,9,105],[10,55,10,60],[10,61,10,63],[10,64,10,70],[10,71,10,80],[10,81,10,83],[10,85,10,87],[10,88,10,90],[10,91,10,93],[10,94,10,96],[10,97,10,100],[10,101,10,105],[56,49,56,53],[7,55,7,105],[8,55,8,60],[8,61,8,63],[8,64,8,70],[8,71,8,80],[8,81,8,87],[8,88,8,90],[8,91,8,93],[8,94,8,96],[8,97,8,100],[8,101,8,105],[9,55,9,60],[9,61,9,63],[9,64,9,70],[9,71,9,80],[9,81,9,83],[9,85,9,87],[9,88,9,90],[11,97,11,100],[9,91,9,93],[9,94,9,96],[9,97,9,100],[53,45,53,48],[53,49,53,53],[54,3,54,38],[54,39,54,41],[54,42,54,44],[54,45,54,48],[54,49,54,53],[55,3,55,48],[55,49,55,53],[53,3,53,8],[53,9,53,11],[53,12,53,18],[53,19,53,28],[53,29,53,31],[53,33,53,35],[53,36,53,38],[53,39,53,41],[53,42,53,44],[51,45,51,48],[51,49,51,53],[52,3,52,8],[52,9,52,11],[52,12,52,18],[52,19,52,28],[52,29,52,31],[52,33,52,35],[52,36,52,38],[52,39,52,41],[52,42,52,44],[52,45,52,48],[52,49,52,53],[51,3,51,8],[51,9,51,11],[51,12,51,18],[51,19,51,28],[51,29,51,31],[51,33,51,35],[51,36,51,38],[51,39,51,41],[51,42,51,44],[49,45,49,48],[49,49,49,53],[50,3,50,8],[50,9,50,11],[50,12,50,18],[50,19,50,28],[50,29,50,31],[50,33,50,35],[50,36,50,38],[50,39,50,41],[50,42,50,44],[50,45,50,48],[50,49,50,53],[49,3,49,8],[49,9,49,11],[49,12,49,18],[49,19,49,28],[49,29,49,31],[49,33,49,35],[49,36,49,38],[49,39,49,41],[49,42,49,44],[47,45,47,48],[47,49,47,53],[48,3,48,8],[48,9,48,11],[48,12,48,18],[48,19,48,28],[48,29,48,31],[48,33,48,35],[48,36,48,38],[48,39,48,41],[48,42,48,44],[48,45,48,48],[48,49,48,53],[47,3,47,8],[47,9,47,11],[47,12,47,18],[47,19,47,28],[47,29,47,31],[47,33,47,35],[47,36,47,38],[47,39,47,41],[47,42,47,44],[45,45,45,48],[45,49,45,53],[46,3,46,8],[46,9,46,11],[46,12,46,18],[46,19,46,28],[46,29,46,31],[46,33,46,35],[46,36,46,38],[46,39,46,41],[46,42,46,44],[46,45,46,48],[46,49,46,53],[45,3,45,8],[45,9,45,11],[45,12,45,18],[45,19,45,28],[45,29,45,31],[45,33,45,35],[45,36,45,38],[45,39,45,41],[45,42,45,44],[43,45,43,48],[43,49,43,53],[44,3,44,8],[44,9,44,11],[44,12,44,18],[44,19,44,28],[44,29,44,31],[44,33,44,35],[44,36,44,38],[44,39,44,41],[44,42,44,44],[44,45,44,48],[44,49,44,53],[43,3,43,8],[43,9,43,11],[43,12,43,18],[43,19,43,28],[43,29,43,31],[43,33,43,35],[43,36,43,38],[43,39,43,41],[43,42,43,44],[41,45,41,48],[41,49,41,53],[42,3,42,8],[42,9,42,11],[42,12,42,18],[42,19,42,28],[42,29,42,31],[42,33,42,35],[42,36,42,38],[42,39,42,41],[42,42,42,44],[42,45,42,48],[42,49,42,53],[41,3,41,8],[41,9,41,11],[41,12,41,18],[41,19,41,28],[41,29,41,31],[41,33,41,35],[41,36,41,38],[41,39,41,41],[41,42,41,44],[39,45,39,48],[39,49,39,53],[40,3,40,8],[40,9,40,11],[40,12,40,18],[40,19,40,28],[40,29,40,31],[40,33,40,35],[40,36,40,38],[40,39,40,41],[40,42,40,44],[40,45,40,48],[40,49,40,53],[39,3,39,8],[39,9,39,11],[39,12,39,18],[39,19,39,28],[39,29,39,31],[39,33,39,35],[39,36,39,38],[39,39,39,41],[39,42,39,44],[37,45,37,48],[37,49,37,53],[38,3,38,8],[38,9,38,11],[38,12,38,18],[38,19,38,28],[38,29,38,31],[38,33,38,35],[38,36,38,38],[38,39,38,41],[38,42,38,44],[38,45,38,48],[38,49,38,53],[37,3,37,8],[37,9,37,11],[37,12,37,18],[37,19,37,28],[37,29,37,31],[37,33,37,35],[37,36,37,38],[37,39,37,41],[37,42,37,44],[35,45,35,48],[35,49,35,53],[36,3,36,8],[36,9,36,11],[36,12,36,18],[36,19,36,28],[36,29,36,31],[36,33,36,35],[36,36,36,38],[36,39,36,41],[36,42,36,44],[36,45,36,48],[36,49,36,53],[35,3,35,8],[35,9,35,11],[35,12,35,18],[35,19,35,28],[35,29,35,31],[35,33,35,35],[35,36,35,38],[35,39,35,41],[35,42,35,44],[33,45,33,48],[33,49,33,53],[34,3,34,8],[34,9,34,11],[34,12,34,18],[34,19,34,28],[34,29,34,31],[34,33,34,35],[34,36,34,38],[34,39,34,41],[34,42,34,44],[34,45,34,48],[34,49,34,53],[33,3,33,8],[33,9,33,11],[33,12,33,18],[33,19,33,28],[33,29,33,31],[33,33,33,35],[33,36,33,38],[33,39,33,41],[33,42,33,44],[31,45,31,48],[31,49,31,53],[32,3,32,8],[32,9,32,11],[32,12,32,18],[32,19,32,28],[32,29,32,31],[32,33,32,35],[32,36,32,38],[32,39,32,41],[32,42,32,44],[32,45,32,48],[32,49,32,53],[31,3,31,8],[31,9,31,11],[31,12,31,18],[31,19,31,28],[31,29,31,31],[31,33,31,35],[31,36,31,38],[31,39,31,41],[31,42,31,44],[29,45,29,48],[29,49,29,53],[30,3,30,8],[30,9,30,11],[30,12,30,18],[30,19,30,28],[30,29,30,31],[30,33,30,35],[30,36,30,38],[30,39,30,41],[30,42,30,44],[30,45,30,48],[30,49,30,53],[29,3,29,8],[29,9,29,11],[29,12,29,18],[29,19,29,28],[29,29,29,31],[29,33,29,35],[29,36,29,38],[29,39,29,41],[29,42,29,44],[27,45,27,48],[27,49,27,53],[28,3,28,8],[28,9,28,11],[28,12,28,18],[28,19,28,28],[28,29,28,31],[28,33,28,35],[28,36,28,38],[28,39,28,41],[28,42,28,44],[28,45,28,48],[28,49,28,53],[27,3,27,8],[27,9,27,11],[27,12,27,18],[27,19,27,28],[27,29,27,31],[27,33,27,35],[27,36,27,38],[27,39,27,41],[27,42,27,44],[25,45,25,48],[25,49,25,53],[26,3,26,8],[26,9,26,11],[26,12,26,18],[26,19,26,28],[26,29,26,31],[26,33,26,35],[26,36,26,38],[26,39,26,41],[26,42,26,44],[26,45,26,48],[26,49,26,53],[25,3,25,8],[25,9,25,11],[25,12,25,18],[25,19,25,28],[25,29,25,31],[25,33,25,35],[25,36,25,38],[25,39,25,41],[25,42,25,44],[23,45,23,48],[23,49,23,53],[24,3,24,8],[24,9,24,11],[24,12,24,18],[24,19,24,28],[24,29,24,31],[24,33,24,35],[24,36,24,38],[24,39,24,41],[24,42,24,44],[24,45,24,48],[24,49,24,53],[23,3,23,8],[23,9,23,11],[23,12,23,18],[23,19,23,28],[23,29,23,31],[23,33,23,35],[23,36,23,38],[23,39,23,41],[23,42,23,44],[21,45,21,48],[21,49,21,53],[22,3,22,8],[22,9,22,11],[22,12,22,18],[22,19,22,28],[22,29,22,31],[22,33,22,35],[22,36,22,38],[22,39,22,41],[22,42,22,44],[22,45,22,48],[22,49,22,53],[21,3,21,8],[21,9,21,11],[21,12,21,18],[21,19,21,28],[21,29,21,31],[21,33,21,35],[21,36,21,38],[21,39,21,41],[21,42,21,44],[19,45,19,48],[19,49,19,53],[20,3,20,8],[20,9,20,11],[20,12,20,18],[20,19,20,28],[20,29,20,31],[20,33,20,35],[20,36,20,38],[20,39,20,41],[20,42,20,44],[20,45,20,48],[20,49,20,53],[19,3,19,8],[19,9,19,11],[19,12,19,18],[19,19,19,28],[19,29,19,31],[19,33,19,35],[19,36,19,38],[19,39,19,41],[19,42,19,44],[17,45,17,48],[17,49,17,53],[18,3,18,8],[18,9,18,11],[18,12,18,18],[18,19,18,28],[18,29,18,31],[18,33,18,35],[18,36,18,38],[18,39,18,41],[18,42,18,44],[18,45,18,48],[18,49,18,53],[17,3,17,8],[17,9,17,11],[17,12,17,18],[17,19,17,28],[17,29,17,31],[17,33,17,35],[17,36,17,38],[17,39,17,41],[17,42,17,44],[15,45,15,48],[15,49,15,53],[16,3,16,8],[16,9,16,11],[16,12,16,18],[16,19,16,28],[16,29,16,31],[16,33,16,35],[16,36,16,38],[16,39,16,41],[16,42,16,44],[16,45,16,48],[16,49,16,53],[15,3,15,8],[15,9,15,11],[15,12,15,18],[15,19,15,28],[15,29,15,31],[15,33,15,35],[15,36,15,38],[15,39,15,41],[15,42,15,44],[13,45,13,48],[13,49,13,53],[14,3,14,8],[14,9,14,11],[14,12,14,18],[14,19,14,28],[14,29,14,31],[14,33,14,35],[14,36,14,38],[14,39,14,41],[14,42,14,44],[14,45,14,48],[14,49,14,53],[13,3,13,8],[13,9,13,11],[13,12,13,18],[13,19,13,28],[13,29,13,31],[13,33,13,35],[13,36,13,38],[13,39,13,41],[13,42,13,44],[9,12,9,18],[9,19,9,28],[9,29,9,31],[9,33,9,35],[9,36,9,38],[9,39,9,41],[9,42,9,44],[11,45,11,48],[11,49,11,53],[12,3,12,8],[12,9,12,11],[12,12,12,18],[12,19,12,28],[12,29,12,31],[12,33,12,35],[12,36,12,38],[12,39,12,41],[12,42,12,44],[12,45,12,48],[12,49,12,53],[11,3,11,8],[11,9,11,11],[11,12,11,18],[11,19,11,28]],"merged_total":1037,"flags":["merged_cut"]}
["定型様式9"]
["明細書　【ガラス交換】"]
[]
["＜補助対象経費＞"]
["・見積書の各項目が税込金額で記載されている場合は、必ず[税抜]に修正して作成すること。"]
[null,null,"…自動入力",null,null,null,null,null,null,null,null,"…申請者入力欄"]
[]
[null,null,null,"中間報告",null,null,null,null,null,null,null,null,null,null,null,null,null,null,null,null,null,null,null,null,null,null,null,null,null,null,null,null,null,null,null,null,null,null,null,null,null,null,null,null,null,null,null,null,null,null,null,null,null,null,null,"実績報告時"]
["費目",null,null,"窓番号",null,null,null,null,null,"ガラス\n番号",null,null,"メーカー名",null,null,null,null,null,null,"製品名",null,null,null,null,null,null,null,null,null,"ガラスサイズ（mm）\n幅（W）×高さ（H）",null,null,null,null,null,null,"面積（㎡）(ａ)",null,null,"枚数\n(ｂ)",null,null,"面積計\n(ａ)×(ｂ)",null,null,"単価（円）\n（ｃ)",null,null,null,"金額(円）［税抜］\n(ｂ)×（ｃ)",null,null,null,null,null,"窓番号",null,null,null,null,null,"ガラス\n番号",null,null,"メーカー名",null,null,null,null,null,null,"製品名",null,null,null,null,null,null,null,null,null,"ガラスサイズ（mm）\n幅（W）×高さ（H）",null,null,null,null,null,null,"面積（㎡）(ａ)",null,null,"枚数\n(ｂ)",null,null,"面積計\n(ａ)×(ｂ)",null,null,"単価（円）\n（ｃ)",null,null,null,"金額(円）［税抜］\n(ｂ)×（ｃ)",null,null,null,null,null,"No.","SII連絡事項"]
["材料費",null,null,null,null,null,null,null,null,null,null,null,null,null,null,null,null,null,null,null,null,null,null,null,null,null,null,null,null,null,null,null,"×",null,null,null,{"$f":"IF(AND(AD10<>\"\",AH10<>\"\"),ROUNDDOWN(AD10*AH10/1000000,2),\"\")","v":""},null,null,null,null,null,{"$f":"IF(AK10<>\"\",AN10*AK10,\"\")","v":""},null,null,null,null,null,null,{"$f":"IF(AT10<>\"\",ROUNDDOWN(AN10*AT10,0),\"\")","v":""},null,null,null,null,null,null,null,null,null,null,null,null,null,null,null,null,null,null,null,null,null,null,null,null,null,null,null,null,null,null,null,null,null,null,"×",null,null,null,{"$f":"IF(AND(CD10<>\"\",CH10<>\"\"),ROUNDDOWN(CD10*CH10/1000000,2),\"\")","v":""},null,null,null,null,null,{"$f":"IF(CK10<>\"\",CN10*CK10,\"\")","v":""},null,null,null,null,null,null,{"$f":"IF(CT10<>\"\",ROUNDDOWN(CN10*CT10,0),\"\")","v":""},null,null,null,null,null,1]
[null,null,null,null,null,null,null,null,null,null,null,null,null,null,null,null,null,null,null,null,null,null,null,null,null,null,null,null,null,null,null,null,"×",null,null,null,{"$f":"IF(AND(AD11<>\"\",AH11<>\"\"),ROUNDDOWN(AD11*AH11/1000000,2),\"\")","v":""},null,null,null,null,null,{"$f":"IF(AK11<>\"\",AN11*AK11,\"\")","v":""},null,null,null,null,null,null,{"$f":"IF(AT11<>\"\",ROUNDDOWN(AN11*AT11,0),\"\")","v":""},null,null,null,null,null,null,null,null,null,null,null,null,null,null,null,null,null,null,null,null,null,null,null,null,null,null,null,null,null,null,null,null,null,null,"×",null,null,null,{"$f":"IF(AND(CD11<>\"\",CH11<>\"\"),ROUNDDOWN(CD11*CH11/1000000,2),\"\")","v":""},null,null,null,null,null,{"$f":"IF(CK11<>\"\",CN11*CK11,\"\")","v":""},null,null,null,null,null,null,{"$f":"IF(CT11<>\"\",ROUNDDOWN(CN11*CT11,0),\"\")","v":""},null,null,null,null,null,2]
[null,null,null,null,null,null,null,null,null,null,null,null,null,null,null,null,null,null,null,null,null,null,null,null,null,null,null,null,null,null,null,null,"×",null,null,null,"",null,null,null,null,null,"",null,null,null,null,null,null,"",null,null,null,null,null,null,null,null,null,null,null,null,null,null,null,null,null,null,null,null,null,null,null,null,null,null,null,null,null,null,null,null,null,null,"×",null,null,null,"",null,null,null,null,null,"",null,null,null,null,null,null,"",null,null,null,null,null,3]
[null,null,null,null,null,null,null,null,null,null,null,null,null,null,null,null,null,null,null,null,null,null,null,null,null,null,null,null,null,null,null,null,"×",null,null,null,"",null,null,null,null,null,"",null,null,null,null,null,null,"",null,null,null,null,null,null,null,null,null,null,null,null,null,null,null,null,null,null,null,null,null,null,null,null,null,null,null,null,null,null,null,null,null,null,"×",null,null,null,"",null,null,null,null,null,"",null,null,null,null,null,null,"",null,null,null,null,null,4]
[null,null,null,null,null,null,null,null,null,null,null,null,null,null,null,null,null,null,null,null,null,null,null,null,null,null,null,null,null,null,null,null,"×",null,null,null,"",null,null,null,null,null,"",null,null,null,null,null,null,{"$f":"IF(AT14<>\"\",ROUNDDOWN(AN14*AT14,0),\"\")","v":""},null,null,null,null,null,null,null,null,null,null,null,null,null,null,null,null,null,null,null,null,null,null,null,null,null,null,null,null,null,null,null,null,null,null,"×",null,null,null,"",null,null,null,null,null,"",null,null,null,null,null,null,{"$f":"IF(CT14<>\"\",ROUNDDOWN(CN14*CT14,0),\"\")","v":""},null,null,null,null,null,5]
[null,null,null,null,null,null,null,null,null,null,null,null,null,null,null,null,null,null,null,null,null,null,null,null,null,null,null,null,null,null,null,null,"×",null,null,null,"",null,null,null,null,null,{"$f":"IF(AK15<>\"\",AN15*AK15,\"\")","v":""},null,null,null,null,null,null,{"$f":"IF(AT15<>\"\",ROUNDDOWN(AN15*AT15,0),\"\")","v":""},null,null,null,null,null,null,null,null,null,null,null,null,null,null,null,null,null,null,null,null,null,null,null,null,null,null,null,null,null,null,null,null,null,null,"×",null,null,null,"",null,null,null,null,null,{"$f":"IF(CK15<>\"\",CN15*CK15,\"\")","v":""},null,null,null,null,null,null,{"$f":"IF(CT15<>\"\",ROUNDDOWN(CN15*CT15,0),\"\")","v":""},null,null,null,null,null,6]
[null,null,null,null,null,null,null,null,null,null,null,null,null,null,null,null,null,null,null,null,null,null,null,null,null,null,null,null,null,null,null,null,"×",null,null,null,"",null,null,null,null,null,{"$f":"IF(AK16<>\"\",AN16*AK16,\"\")","v":""},null,null,null,null,null,null,"",null,null,null,null,null,null,null,null,null,null,null,null,null,null,null,null,null,null,null,null,null,null,null,null,null,null,null,null,null,null,null,null,null,null,"×",null,null,null,"",null,null,null,null,null,{"$f":"IF(CK16<>\"\",CN16*CK16,\"\")","v":""},null,null,null,null,null,null,"",null,null,null,null,null,7]
[null,null,null,null,null,null,null,null,null,null,null,null,null,null,null,null,null,null,null,null,null,null,null,null,null,null,null,null,null,null,null,null,"×",null,null,null,"",null,null,null,null,null,"",null,null,null,null,null,null,"",null,null,null,null,null,null,null,null,null,null,null,null,null,null,null,null,null,null,null,null,null,null,null,null,null,null,null,null,null,null,null,null,null,null,"×",null,null,null,"",null,null,null,null,null,"",null,null,null,null,null,null,"",null,null,null,null,null,8]
[null,null,null,null,null,null,null,null,null,null,null,null,null,null,null,null,null,null,null,null,null,null,null,null,null,null,null,null,null,null,null,null,"×",null,null,null,"",null,null,null,null,null,"",null,null,null,null,null,null,"",null,null,null,null,null,null,null,null,null,null,null,null,null,null,null,null,null,null,null,null,null,null,null,null,null,null,null,null,null,null,null,null,null,null,"×",null,null,null,"",null,null,null,null,null,"",null,null,null,null,null,null,"",null,null,null,null,null,9]
[null,null,null,null,null,null,null,null,null,null,null,null,null,null,null,null,null,null,null,null,null,null,null,null,null,null,null,null,null,null,null,null,"×",null,null,null,"",null,null,null,null,null,"",null,null,null,null,null,null,"",null,null,null,null,null,null,null,null,null,null,null,null,null,null,null,null,null,null,null,null,null,null,null,null,null,null,null,null,null,null,null,null,null,null,"×",null,null,null,"",null,null,null,null,null,"",null,null,null,null,null,null,"",null,null,null,null,null,10]
[null,null,null,null,null,null,null,null,null,null,null,null,null,null,null,null,null,null,null,null,null,null,null,null,null,null,null,null,null,null,null,null,"×",null,null,null,"",null,null,null,null,null,"",null,null,null,null,null,null,"",null,null,null,null,null,null,null,null,null,null,null,null,null,null,null,null,null,null,null,null,null,null,null,null,null,null,null,null,null,null,null,null,null,null,"×",null,null,null,"",null,null,null,null,null,"",null,null,null,null,null,null,"",null,null,null,null,null,11]
[null,null,null,null,null,null,null,null,null,null,null,null,null,null,null,null,null,null,null,null,null,null,null,null,null,null,null,null,null,null,null,null,"×",null,null,null,"",null,null,null,null,null,"",null,null,null,null,null,null,"",null,null,null,null,null,null,null,null,null,null,null,null,null,null,null,null,null,null,null,null,null,null,null,null,null,null,null,null,null,null,null,null,null,null,"×",null,null,null,"",null,null,null,null,null,"",null,null,null,null,null,null,"",null,null,null,null,null,12]
[null,null,null,null,null,null,null,null,null,null,null,null,null,null,null,null,null,null,null,null,null,null,null,null,null,null,null,null,null,null,null,null,"×",null,null,null,"",null,null,null,null,null,"",null,null,null,null,null,null,"",null,null,null,null,null,null,null,null,null,null,null,null,null,null,null,null,null,null,null,null,null,null,null,null,null,null,null,null,null,null,null,null,null,null,"×",null,null,null,"",null,null,null,null,null,"",null,null,null,null,null,null,"",null,null,null,null,null,13]
[null,null,null,null,null,null,null,null,null,null,null,null,null,null,null,null,null,null,null,null,null,null,null,null,null,null,null,null,null,null,null,null,"×",null,null,null,"",null,null,null,null,null,"",null,null,null,null,null,null,"",null,null,null,null,null,null,null,null,null,null,null,null,null,null,null,null,null,null,null,null,null,null,null,null,null,null,null,null,null,null,null,null,null,null,"×",null,null,null,"",null,null,null,null,null,"",null,null,null,null,null,null,"",null,null,null,null,null,14]
[null,null,null,null,null,null,null,null,null,null,null,null,null,null,null,null,null,null,null,null,null,null,null,null,null,null,null,null,null,null,null,null,"×",null,null,null,"",null,null,null,null,null,"",null,null,null,null,null,null,"",null,null,null,null,null,null,null,null,null,null,null,null,null,null,null,null,null,null,null,null,null,null,null,null,null,null,null,null,null,null,null,null,null,null,"×",null,null,null,"",null,null,null,null,null,"",null,null,null,null,null,null,"",null,null,null,null,null,15]
[null,null,null,null,null,null,null,null,null,null,null,null,null,null,null,null,null,null,null,null,null,null,null,null,null,null,null,null,null,null,null,null,"×",null,null,null,"",null,null,null,null,null,"",null,null,null,null,null,null,"",null,null,null,null,null,null,null,null,null,null,null,null,null,null,null,null,null,null,null,null,null,null,null,null,null,null,null,null,null,null,null,null,null,null,"×",null,null,null,"",null,null,null,null,null,"",null,null,null,null,null,null,"",null,null,null,null,null,16]
[null,null,null,null,null,null,null,null,null,null,null,null,null,null,null,null,null,null,null,null,null,null,null,null,null,null,null,null,null,null,null,null,"×",null,null,null,"",null,null,null,null,null,"",null,null,null,null,null,null,"",null,null,null,null,null,null,null,null,null,null,null,null,null,null,null,null,null,null,null,null,null,null,null,null,null,null,null,null,null,null,null,null,null,null,"×",null,null,null,"",null,null,null,null,null,"",null,null,null,null,null,null,"",null,null,null,null,null,17]
[null,null,null,null,null,null,null,null,null,null,null,null,null,null,null,null,null,null,null,null,null,null,null,null,null,null,null,null,null,null,null,null,"×",null,null,null,"",null,null,null,null,null,"",null,null,null,null,null,null,"",null,null,null,null,null,null,null,null,null,null,null,null,null,null,null,null,null,null,null,null,null,null,null,null,null,null,null,null,null,null,null,null,null,null,"×",null,null,null,"",null,null,null,null,null,"",null,null,null,null,null,null,"",null,null,null,null,null,18]
[null,null,null,null,null,null,null,null,null,null,null,null,null,null,null,null,null,null,null,null,null,null,null,null,null,null,null,null,null,null,null,null,"×",null,null,null,"",null,null,null,null,null,"",null,null,null,null,null,null,"",null,null,null,null,null,null,null,null,null,null,null,null,null,null,null,null,null,null,null,null,null,null,null,null,null,null,null,null,null,null,null,null,null,null,"×",null,null,null,"",null,null,null,null,null,"",null,null,null,null,null,null,"",null,null,null,null,null,19]
[null,null,null,null,null,null,null,null,null,null,null,null,null,null,null,null,null,null,null,null,null,null,null,null,null,null,null,null,null,null,null,null,"×",null,null,null,"",null,null,null,null,null,"",null,null,null,null,null,null,"",null,null,null,null,null,null,null,null,null,null,null,null,null,null,null,null,null,null,null,null,null,null,null,null,null,null,null,null,null,null,null,null,null,null,"×",null,null,null,"",null,null,null,null,null,"",null,null,null,null,null,null,"",null,null,null,null,null,20]
[null,null,null,null,null,null,null,null,null,null,null,null,null,null,null,null,null,null,null,null,null,null,null,null,null,null,null,null,null,null,null,null,"×",null,null,null,"",null,null,null,null,null,"",null,null,null,null,null,null,"",null,null,null,null,null,null,null,null,null,null,null,null,null,null,null,null,null,null,null,null,null,null,null,null,null,null,null,null,null,null,null,null,null,null,"×",null,null,null,"",null,null,null,null,null,"",null,null,null,null,null,null,"",null,null,null,null,null,21]
[null,null,null,null,null,null,null,null,null,null,null,null,null,null,null,null,null,null,null,null,null,null,null,null,null,null,null,null,null,null,null,null,"×",null,null,null,"",null,null,null,null,null,"",null,null,null,null,null,null,"",null,null,null,null,null,null,null,null,null,null,null,null,null,null,null,null,null,null,null,null,null,null,null,null,null,null,null,null,null,null,null,null,null,null,"×",null,null,null,"",null,null,null,null,null,"",null,null,null,null,null,null,"",null,null,null,null,null,22]
[null,null,null,null,null,null,null,null,null,null,null,null,null,null,null,null,null,null,null,null,null,null,null,null,null,null,null,null,null,null,null,null,"×",null,null,null,"",null,null,null,null,null,"",null,null,null,null,null,null,"",null,null,null,null,null,null,null,null,null,null,null,null,null,null,null,null,null,null,null,null,null,null,null,null,null,null,null,null,null,null,null,null,null,null,"×",null,null,null,"",null,null,null,null,null,"",null,null,null,null,null,null,"",null,null,null,null,null,23]
[null,null,null,null,null,null,null,null,null,null,null,null,null,null,null,null,null,null,null,null,null,null,null,null,null,null,null,null,null,null,null,null,"×",null,null,null,"",null,null,null,null,null,"",null,null,null,null,null,null,"",null,null,null,null,null,null,null,null,null,null,null,null,null,null,null,null,null,null,null,null,null,null,null,null,null,null,null,null,null,null,null,null,null,null,"×",null,null,null,"",null,null,null,null,null,"",null,null,null,null,null,null,"",null,null,null,null,null,24]
[null,null,null,null,null,null,null,null,null,null,null,null,null,null,null,null,null,null,null,null,null,null,null,null,null,null,null,null,null,null,null,null,"×",null,null,null,"",null,null,null,null,null,"",null,null,null,null,null,null,"",null,null,null,null,null,null,null,null,null,null,null,null,null,null,null,null,null,null,null,null,null,null,null,null,null,null,null,null,null,null,null,null,null,null,"×",null,null,null,"",null,null,null,null,null,"",null,null,null,null,null,null,"",null,null,null,null,null,25]
[null,null,null,null,null,null,null,null,null,null,null,null,null,null,null,null,null,null,null,null,null,null,null,null,null,null,null,null,null,null,null,null,"×",null,null,null,"",null,null,null,null,null,"",null,null,null,null,null,null,"",null,null,null,null,null,null,null,null,null,null,null,null,null,null,null,null,null,null,null,null,null,null,null,null,null,null,null,null,null,null,null,null,null,null,"×",null,null,null,"",null,null,null,null,null,"",null,null,null,null,null,null,"",null,null,null,null,null,26]
[null,null,null,null,null,null,null,null,null,null,null,null,null,null,null,null,null,null,null,null,null,null,null,null,null,null,null,null,null,null,null,null,"×",null,null,null,"",null,null,null,null,null,"",null,null,null,null,null,null,"",null,null,null,null,null,null,null,null,null,null,null,null,null,null,null,null,null,null,null,null,null,null,null,null,null,null,null,null,null,null,null,null,null,null,"×",null,null,null,"",null,null,null,null,null,"",null,null,null,null,null,null,"",null,null,null,null,null,27]
[null,null,null,null,null,null,null,null,null,null,null,null,null,null,null,null,null,null,null,null,null,null,null,null,null,null,null,null,null,null,null,null,"×",null,null,null,"",null,null,null,null,null,"",null,null,null,null,null,null,"",null,null,null,null,null,null,null,null,null,null,null,null,null,null,null,null,null,null,null,null,null,null,null,null,null,null,null,null,null,null,null,null,null,null,"×",null,null,null,"",null,null,null,null,null,"",null,null,null,null,null,null,"",null,null,null,null,null,28]
[null,null,null,null,null,null,null,null,null,null,null,null,null,null,null,null,null,null,null,null,null,null,null,null,null,null,null,null,null,null,null,null,"×",null,null,null,"",null,null,null,null,null,"",null,null,null,null,null,null,"",null,null,null,null,null,null,null,null,null,null,null,null,null,null,null,null,null,null,null,null,null,null,null,null,null,null,null,null,null,null,null,null,null,null,"×",null,null,null,"",null,null,null,null,null,"",null,null,null,null,null,null,"",null,null,null,null,null,29]
[null,null,null,null,null,null,null,null,null,null,null,null,null,null,null,null,null,null,null,null,null,null,null,null,null,null,null,null,null,null,null,null,"×",null,null,null,"",null,null,null,null,null,"",null,null,null,null,null,null,"",null,null,null,null,null,null,null,null,null,null,null,null,null,null,null,null,null,null,null,null,null,null,null,null,null,null,null,null,null,null,null,null,null,null,"×",null,null,null,"",null,null,null,null,null,"",null,null,null,null,null,null,"",null,null,null,null,null,30]
[null,null,null,null,null,null,null,null,null,null,null,null,null,null,null,null,null,null,null,null,null,null,null,null,null,null,null,null,null,null,null,null,"×",null,null,null,"",null,null,null,null,null,"",null,null,null,null,null,null,"",null,null,null,null,null,null,null,null,null,null,null,null,null,null,null,null,null,null,null,null,null,null,null,null,null,null,null,null,null,null,null,null,null,null,"×",null,null,null,"",null,null,null,null,null,"",null,null,null,null,null,null,"",null,null,null,null,null,31]
[null,null,null,null,null,null,null,null,null,null,null,null,null,null,null,null,null,null,null,null,null,null,null,null,null,null,null,null,null,null,null,null,"×",null,null,null,"",null,null,null,null,null,"",null,null,null,null,null,null,"",null,null,null,null,null,null,null,null,null,null,null,null,null,null,null,null,null,null,null,null,null,null,null,null,null,null,null,null,null,null,null,null,null,null,"×",null,null,null,"",null,null,null,null,null,"",null,null,null,null,null,null,"",null,null,null,null,null,32]
[null,null,null,null,null,null,null,null,null,null,null,null,null,null,null,null,null,null,null,null,null,null,null,null,null,null,null,null,null,null,null,null,"×",null,null,null,"",null,null,null,null,null,"",null,null,null,null,null,null,"",null,null,null,null,null,null,null,null,null,null,null,null,null,null,null,null,null,null,null,null,null,null,null,null,null,null,null,null,null,null,null,null,null,null,"×",null,null,null,"",null,null,null,null,null,"",null,null,null,null,null,null,"",null,null,null,null,null,33]
[null,null,null,null,null,null,null,null,null,null,null,null,null,null,null,null,null,null,null,null,null,null,null,null,null,null,null,null,null,null,null,null,"×",null,null,null,"",null,null,null,null,null,"",null,null,null,null,null,null,"",null,null,null,null,null,null,null,null,null,null,null,null,null,null,null,null,null,null,null,null,null,null,null,null,null,null,null,null,null,null,null,null,null,null,"×",null,null,null,"",null,null,null,null,null,"",null,null,null,null,null,null,"",null,null,null,null,null,34]
[null,null,null,null,null,null,null,null,null,null,null,null,null,null,null,null,null,null,null,null,null,null,null,null,null,null,null,null,null,null,null,null,"×",null,null,null,"",null,null,null,null,null,"",null,null,null,null,null,null,"",null,null,null,null,null,null,null,null,null,null,null,null,null,null,null,null,null,null,null,null,null,null,null,null,null,null,null,null,null,null,null,null,null,null,"×",null,null,null,"",null,null,null,null,null,"",null,null,null,null,null,null,"",null,null,null,null,null,35]
[null,null,null,null,null,null,null,null,null,null,null,null,null,null,null,null,null,null,null,null,null,null,null,null,null,null,null,null,null,null,null,null,"×",null,null,null,"",null,null,null,null,null,"",null,null,null,null,null,null,"",null,null,null,null,null,null,null,null,null,null,null,null,null,null,null,null,null,null,null,null,null,null,null,null,null,null,null,null,null,null,null,null,null,null,"×",null,null,null,"",null,null,null,null,null,"",null,null,null,null,null,null,"",null,null,null,null,null,36]
[null,null,null,null,null,null,null,null,null,null,null,null,null,null,null,null,null,null,null,null,null,null,null,null,null,null,null,null,null,null,null,null,"×",null,null,null,"",null,null,null,null,null,"",null,null,null,null,null,null,"",null,null,null,null,null,null,null,null,null,null,null,null,null,null,null,null,null,null,null,null,null,null,null,null,null,null,null,null,null,null,null,null,null,null,"×",null,null,null,"",null,null,null,null,null,"",null,null,null,null,null,null,"",null,null,null,null,null,37]
[null,null,null,null,null,null,null,null,null,null,null,null,null,null,null,null,null,null,null,null,null,null,null,null,null,null,null,null,null,null,null,null,"×",null,null,null,"",null,null,null,null,null,"",null,null,null,null,null,null,{"$f":"IF(AT47<>\"\",ROUNDDOWN(AN47*AT47,0),\"\")","v":""},null,null,null,null,null,null,null,null,null,null,null,null,null,null,null,null,null,null,null,null,null,null,null,null,null,null,null,null,null,null,null,null,null,null,"×",null,null,null,"",null,null,null,null,null,"",null,null,null,null,null,null,{"$f":"IF(CT47<>\"\",ROUNDDOWN(CN47*CT47,0),\"\")","v":""},null,null,null,null,null,38]
[null,null,null,null,null,null,null,null,null,null,null,null,null,null,null,null,null,null,null,null,null,null,null,null,null,null,null,null,null,null,null,null,"×",null,null,null,"",null,null,null,null,null,"",null,null,null,null,null,null,{"$f":"IF(AT48<>\"\",ROUNDDOWN(AN48*AT48,0),\"\")","v":""},null,null,null,null,null,null,null,null,null,null,null,null,null,null,null,null,null,null,null,null,null,null,null,null,null,null,null,null,null,null,null,null,null,null,"×",null,null,null,"",null,null,null,null,null,"",null,null,null,null,null,null,{"$f":"IF(CT48<>\"\",ROUNDDOWN(CN48*CT48,0),\"\")","v":""},null,null,null,null,null,39]
[null,null,null,null,null,null,null,null,null,null,null,null,null,null,null,null,null,null,null,null,null,null,null,null,null,null,null,null,null,null,null,null,"×",null,null,null,"",null,null,null,null,null,"",null,null,null,null,null,null,"",null,null,null,null,null,null,null,null,null,null,null,null,null,null,null,null,null,null,null,null,null,null,null,null,null,null,null,null,null,null,null,null,null,null,"×",null,null,null,"",null,null,null,null,null,"",null,null,null,null,null,null,"",null,null,null,null,null,40]
[null,null,null,null,null,null,null,null,null,null,null,null,null,null,null,null,null,null,null,null,null,null,null,null,null,null,null,null,null,null,null,null,"×",null,null,null,"",null,null,null,null,null,"",null,null,null,null,null,null,"",null,null,null,null,null,null,null,null,null,null,null,null,null,null,null,null,null,null,null,null,null,null,null,null,null,null,null,null,null,null,null,null,null,null,"×",null,null,null,"",null,null,null,null,null,"",null,null,null,null,null,null,"",null,null,null,null,null,41]
[null,null,null,null,null,null,null,null,null,null,null,null,null,null,null,null,null,null,null,null,null,null,null,null,null,null,null,null,null,null,null,null,"×",null,null,null,"",null,null,null,null,null,"",null,null,null,null,null,null,"",null,null,null,null,null,null,null,null,null,null,null,null,null,null,null,null,null,null,null,null,null,null,null,null,null,null,null,null,null,null,null,null,null,null,"×",null,null,null,"",null,null,null,null,null,"",null,null,null,null,null,null,"",null,null,null,null,null,42]
[null,null,null,null,null,null,null,null,null,null,null,null,null,null,null,null,null,null,null,null,null,null,null,null,null,null,null,null,null,null,null,null,"×",null,null,null,{"$f":"IF(AND(AD52<>\"\",AH52<>\"\"),ROUNDDOWN(AD52*AH52/1000000,2),\"\")","v":""},null,null,null,null,null,"",null,null,null,null,null,null,"",null,null,null,null,null,null,null,null,null,null,null,null,null,null,null,null,null,null,null,null,null,null,null,null,null,null,null,null,null,null,null,null,null,null,"×",null,null,null,{"$f":"IF(AND(CD52<>\"\",CH52<>\"\"),ROUNDDOWN(CD52*CH52/1000000,2),\"\")","v":""},null,null,null,null,null,"",null,null,null,null,null,null,"",null,null,null,null,null,43]
[null,null,null,null,null,null,null,null,null,null,null,null,null,null,null,null,null,null,null,null,null,null,null,null,null,null,null,null,null,null,null,null,"×",null,null,null,{"$f":"IF(AND(AD53<>\"\",AH53<>\"\"),ROUNDDOWN(AD53*AH53/1000000,2),\"\")","v":""},null,null,null,null,null,"",null,null,null,null,null,null,"",null,null,null,null,null,null,null,null,null,null,null,null,null,null,null,null,null,null,null,null,null,null,null,null,null,null,null,null,null,null,null,null,null,null,"×",null,null,null,{"$f":"IF(AND(CD53<>\"\",CH53<>\"\"),ROUNDDOWN(CD53*CH53/1000000,2),\"\")","v":""},null,null,null,null,null,"",null,null,null,null,null,null,"",null,null,null,null,null,44]
[null,null,null,null,null,null,null,null,null,null,null,null,null,null,null,null,null,null,null,null,null,null,null,null,null,null,null,null,null,null,null,null,"×",null,null,null,"",null,null,null,null,null,"",null,null,null,null,null,null,"",null,null,null,null,null,null,null,null,null,null,null,null,null,null,null,null,null,null,null,null,null,null,null,null,null,null,null,null,null,null,null,null,null,null,"×",null,null,null,"",null,null,null,null,null,"",null,null,null,null,null,null,"",null,null,null,null,null,45]
[null,null,null,"数量・面積・設備費計",null,null,null,null,null,null,null,null,null,null,null,null,null,null,null,null,null,null,null,null,null,null,null,null,null,null,null,null,null,null,null,null,null,null,null,{"$f":"SUM(AN10:AP54)","v":0},null,null,{"$f":"SUM(AQ10:AS54)","v":0},null,null,null,null,null,null,{"$f":"ROUNDDOWN(SUM(AX10:BB54),0)","v":0},null,null,null,null,null,"数量・面積・設備費計",null,null,null,null,null,null,null,null,null,null,null,null,null,null,null,null,null,null,null,null,null,null,null,null,null,null,null,null,null,null,null,null,null,null,null,{"$f":"SUM(CN10:CP54)","v":0},null,null,{"$f":"SUM(CQ10:CS54)","v":0},null,null,null,null,null,null,{"$f":"ROUNDDOWN(SUM(CX10:DB54),0)","v":0},null,null,null,null,null,46]
["工事費",null,null,"工事費計",null,null,null,null,null,null,null,null,null,null,null,null,null,null,null,null,null,null,null,null,null,null,null,null,null,null,null,null,null,null,null,null,null,null,null,null,null,null,null,null,null,null,null,null,null,null,null,null,null,null,null,"工事費計",null,null,null,null,null,null,null,null,null,null,null,null,null,null,null,null,null,null,null,null,null,null,null,null,null,null,null,null,null,null,null,null,null,null,null,null,null,null,null,null,null,null,null,null,null,null,null,null,null,null,null,47]
["ガラスの補助対象経費の合計[税抜]",null,null,null,null,null,null,null,null,null,null,null,null,null,null,null,null,null,null,null,null,null,null,null,null,null,null,null,null,null,null,null,null,null,null,null,null,null,null,null,null,null,null,null,null,null,null,null,null,{"$f":"SUM(AX55:BB56)","v":0},null,null,null,null,null,"ガラスの補助対象経費の合計[税抜]",null,null,null,null,null,null,null,null,null,null,null,null,null,null,null,null,null,null,null,null,null,null,null,null,null,null,null,null,null,null,null,null,null,null,null,null,null,null,null,null,null,null,null,null,null,{"$f":"SUM(CX55:DB56)","v":0},null,null,null,null,null,48]

{"sheet":"明細書【設備】","index":4,"n_rows":74,"n_cols":129,"rows_kept":74,"cut":false,"hidden":false,"merged":[[0,0,0,125],[71,65,71,112],[71,113,71,115],[71,116,71,119],[71,120,71,125],[72,65,72,119],[72,120,72,125],[73,65,73,119],[73,120,73,125],[69,65,69,72],[69,73,69,94],[69,95,69,112],[69,113,69,115],[69,116,69,119],[69,120,69,125],[70,65,70,72],[70,73,70,94],[70,95,70,112],[70,113,70,115],[70,116,70,119],[70,120,70,125],[67,113,67,115],[67,116,67,119],[67,120,67,125],[68,65,68,72],[68,73,68,94],[68,95,68,112],[68,113,68,115],[68,116,68,119],[68,120,68,125],[67,65,67,72],[67,73,67,94],[67,95,67,112],[65,65,65,72],[65,73,65,94],[65,95,65,112],[65,113,65,115],[65,116,65,119],[65,120,65,125],[66,65,66,72],[66,73,66,94],[66,95,66,112],[66,113,66,115],[66,116,66,119],[66,120,66,125],[63,65,63,72],[63,73,63,94],[63,95,63,112],[63,113,63,115],[63,116,63,119],[63,120,63,125],[64,65,64,72],[64,73,64,94],[64,95,64,112],[64,113,64,115],[64,116,64,119],[64,120,64,125],[61,65,61,72],[61,73,61,94],[61,95,61,112],[61,113,61,115],[61,116,61,119],[61,120,61,125],[62,65,62,72],[62,73,62,94],[62,95,62,112],[62,113,62,115],[62,116,62,119],[62,120,62,125],[71,3,71,50],[71,51,71,53],[71,54,71,57],[71,58,71,63],[72,3,72,57],[72,58,72,63],[73,58,73,63],[69,3,69,10],[69,11,69,32],[69,33,69,50],[69,51,69,53],[69,54,69,57],[69,58,69,63],[70,3,70,10],[70,11,70,32],[70,33,70,50],[70,51,70,53],[70,54,70,57],[70,58,70,63],[67,3,67,10],[67,11,67,32],[67,33,67,50],[67,51,67,53],[67,54,67,57],[67,58,67,63],[68,3,68,10],[68,11,68,32],[68,33,68,50],[68,51,68,53],[68,54,68,57],[68,58,68,63],[65,3,65,10],[65,11,65,32],[65,33,65,50],[65,51,65,53],[65,54,65,57],[65,58,65,63],[66,3,66,10],[66,11,66,32],[66,33,66,50],[66,51,66,53],[66,54,66,57],[66,58,66,63],[63,3,63,10],[63,11,63,32],[63,33,63,50],[63,51,63,53],[63,54,63,57],[63,58,63,63],[64,3,64,10],[64,11,64,32],[64,33,64,50],[64,51,64,53],[64,54,64,57],[64,58,64,63],[61,3,61,10],[61,11,61,32],[61,33,61,50],[61,51,61,53],[61,54,61,57],[61,58,61,63],[62,3,62,10],[62,11,62,32],[62,33,62,50],[62,51,62,53],[62,54,62,57],[62,58,62,63],[54,65,54,112],[54,113,54,115],[54,116,54,119],[54,120,54,125],[55,65,55,119],[55,120,55,125],[56,65,56,119],[56,120,56,125],[60,3,60,10],[60,11,60,32],[60,33,60,50],[60,51,60,53],[60,54,60,57],[60,58,60,63],[60,65,60,72],[60,73,60,94],[60,95,60,112],[60,113,60,115],[60,116,60,119],[60,120,60,125],[55,3,55,57],[55,58,55,63],[56,58,56,63],[52,87,52,94],[52,95,52,112],[52,113,52,115],[52,116,52,119],[52,120,52,125],[53,67,53,86],[53,87,53,94],[53,95,53,112],[53,113,53,115],[53,116,53,119],[53,120,53,125],[52,67,52,86],[49,116,49,119],[49,120,49,125],[50,67,50,86],[50,87,50,94],[50,95,50,112],[50,113,50,115],[50,116,50,119],[50,120,50,125],[51,67,51,86],[51,87,51,94],[51,95,51,112],[51,113,51,115],[51,116,51,119],[51,120,51,125],[49,67,49,86],[49,87,49,94],[49,95,49,112],[49,113,49,115],[46,116,46,119],[46,120,46,125],[47,67,47,86],[47,87,47,94],[47,95,47,112],[47,113,47,115],[47,116,47,119],[47,120,47,125],[48,67,48,86],[48,87,48,94],[48,95,48,112],[48,113,48,115],[48,116,48,119],[48,120,48,125],[46,113,46,115],[42,116,42,119],[42,120,42,125],[43,67,43,86],[43,87,43,94],[43,95,43,112],[43,113,43,115],[43,116,43,119],[43,120,43,125],[44,65,53,66],[44,67,44,86],[44,87,44,94],[44,95,44,112],[44,113,44,115],[44,116,44,119],[44,120,44,125],[45,67,45,86],[45,87,45,94],[45,95,45,112],[45,113,45,115],[45,116,45,119],[45,120,45,125],[46,67,46,86],[46,87,46,94],[46,95,46,112],[39,116,39,119],[39,120,39,125],[40,67,40,86],[40,87,40,94],[40,95,40,112],[40,113,40,115],[40,116,40,119],[40,120,40,125],[41,67,41,86],[41,87,41,94],[41,95,41,112],[41,113,41,115],[41,116,41,119],[41,120,41,125],[38,87,38,94],[38,95,38,112],[38,113,38,115],[39,65,43,66],[39,67,39,86],[39,87,39,94],[39,95,39,112],[39,113,39,115],[42,67,42,86],[42,87,42,94],[42,95,42,112],[42,113,42,115],[53,5,53,24],[53,25,53,32],[53,33,53,50],[53,51,53,53],[53,54,53,57],[53,58,53,63],[54,3,54,50],[54,51,54,53],[54,54,54,57],[54,58,54,63],[51,5,51,24],[51,25,51,32],[51,33,51,50],[51,51,51,53],[51,54,51,57],[51,58,51,63],[52,5,52,24],[52,25,52,32],[52,33,52,50],[52,51,52,53],[52,54,52,57],[52,58,52,63],[49,5,49,24],[49,25,49,32],[49,33,49,50],[49,51,49,53],[49,54,49,57],[49,58,49,63],[50,5,50,24],[50,25,50,32],[50,33,50,50],[50,51,50,53],[50,54,50,57],[50,58,50,63],[46,54,46,57],[46,58,46,63],[47,5,47,24],[47,25,47,32],[47,33,47,50],[47,51,47,53],[47,54,47,57],[47,58,47,63],[48,5,48,24],[48,25,48,32],[48,33,48,50],[48,51,48,53],[48,54,48,57],[48,58,48,63],[42,58,42,63],[43,5,43,24],[43,25,43,32],[43,33,43,50],[43,51,43,53],[43,54,43,57],[43,58,43,63],[44,3,53,4],[44,5,44,24],[44,25,44,32],[44,33,44,50],[44,51,44,53],[44,54,44,57],[44,58,44,63],[45,5,45,24],[45,25,45,32],[45,33,45,50],[45,51,45,53],[45,54,45,57],[45,58,45,63],[46,5,46,24],[46,25,46,32],[46,33,46,50],[46,51,46,53],[39,3,43,4],[39,5,39,24],[39,25,39,32],[39,33,39,50],[39,51,39,53],[39,54,39,57],[39,58,39,63],[40,5,40,24],[40,25,40,32],[40,33,40,50],[40,51,40,53],[40,54,40,57],[40,58,40,63],[41,5,41,24],[41,25,41,32],[41,33,41,50],[41,51,41,53],[41,54,41,57],[41,58,41,63],[42,5,42,24],[42,25,42,32],[42,33,42,50],[42,51,42,53],[42,54,42,57],[32,65,32,112],[32,113,32,115],[32,116,32,119],[32,120,32,125],[33,65,33,119],[33,120,33,125],[34,65,34,119],[34,120,34,125],[38,3,38,24],[38,25,38,32],[38,33,38,50],[38,51,38,53],[38,54,38,57],[38,58,38,63],[38,116,38,119],[38,120,38,125],[32,3,32,50],[32,51,32,53],[32,54,32,57],[32,58,32,63],[33,3,33,57],[33,58,33,63],[34,58,34,63],[38,65,38,86],[26,65,26,69],[26,70,26,82],[26,83,26,85],[26,86,26,94],[26,95,26,102],[26,103,26,112],[26,113,26,115],[26,116,26,119],[26,120,26,125],[25,65,25,69],[25,70,25,82],[25,83,25,85],[25,86,25,94],[25,95,25,102],[25,103,25,112],[25,113,25,115],[25,116,25,119],[25,120,25,125],[24,65,24,69],[24,70,24,82],[24,83,24,85],[24,86,24,94],[24,95,24,102],[24,103,24,112],[24,113,24,115],[24,116,24,119],[24,120,24,125],[23,65,23,69],[23,70,23,82],[23,83,23,85],[23,86,23,94],[23,95,23,102],[23,103,23,112],[23,113,23,115],[23,116,23,119],[23,120,23,125],[22,65,22,69],[22,70,22,82],[22,83,22,85],[22,86,22,94],[22,95,22,102],[22,103,22,112],[22,113,22,115],[22,116,22,119],[22,120,22,125],[26,3,26,7],[26,8,26,20],[26,21,26,23],[26,24,26,32],[26,33,26,40],[26,41,26,50],[26,51,26,53],[26,54,26,57],[26,58,26,63],[25,3,25,7],[25,8,25,20],[25,21,25,23],[25,24,25,32],[25,33,25,40],[25,41,25,50],[25,51,25,53],[25,54,25,57],[25,58,25,63],[24,3,24,7],[24,8,24,20],[24,21,24,23],[24,24,24,32],[24,33,24,40],[24,41,24,50],[24,51,24,53],[24,54,24,57],[24,58,24,63],[23,3,23,7],[23,8,23,20],[23,21,23,23],[23,24,23,32],[23,33,23,40],[23,41,23,50],[23,51,23,53],[23,54,23,57],[23,58,23,63],[22,3,22,7],[22,8,22,20],[22,21,22,23],[22,24,22,32],[22,33,22,40],[22,41,22,50],[22,51,22,53],[22,54,22,57],[22,58,22,63],[18,65,18,112],[18,113,18,115],[18,116,18,119],[18,120,18,125],[19,65,19,119],[19,120,19,125],[21,3,21,7],[21,8,21,20],[21,21,21,23],[21,24,21,32],[21,33,21,40],[21,41,21,50],[21,51,21,53],[21,54,21,57],[21,58,21,63],[21,65,21,69],[21,70,21,82],[21,83,21,85],[21,86,21,94],[21,95,21,102],[21,103,21,112],[21,113,21,115],[21,116,21,119],[21,120,21,125],[16,65,16,69],[16,70,16,86],[16,87,16,94],[16,95,16,102],[16,103,16,112],[16,113,16,115],[16,116,16,119],[16,120,16,125],[17,65,17,69],[17,70,17,86],[17,87,17,94],[17,95,17,102],[17,103,17,112],[17,113,17,115],[17,116,17,119],[17,120,17,125],[14,65,14,69],[14,70,14,86],[14,87,14,94],[14,95,14,102],[14,103,14,112],[14,113,14,115],[14,116,14,119],[14,120,14,125],[15,65,15,69],[15,70,15,86],[15,87,15,94],[15,95,15,102],[15,103,15,112],[15,113,15,115],[15,116,15,119],[15,120,15,125],[12,70,12,86],[12,87,12,94],[12,95,12,102],[12,103,12,112],[12,113,12,115],[12,116,12,119],[12,120,12,125],[13,65,13,69],[13,70,13,86],[13,87,13,94],[13,95,13,102],[13,103,13,112],[13,113,13,115],[13,116,13,119],[13,120,13,125],[18,3,18,50],[18,51,18,53],[18,54,18,57],[18,58,18,63],[19,3,19,57],[19,58,19,63],[9,65,9,125],[10,65,10,69],[10,70,10,86],[10,87,10,94],[10,95,10,102],[10,103,10,112],[10,113,10,115],[10,116,10,119],[10,120,10,125],[11,65,11,69],[11,70,11,86],[11,87,11,94],[11,95,11,102],[11,103,11,112],[11,113,11,115],[11,116,11,119],[11,120,11,125],[12,65,12,69],[16,3,16,7],[16,8,16,24],[16,25,16,32],[16,33,16,40],[16,41,16,50],[16,51,16,53],[16,54,16,57],[16,58,16,63],[17,3,17,7],[17,8,17,24],[17,25,17,32],[17,33,17,40],[17,41,17,50],[17,51,17,53],[17,54,17,57],[17,58,17,63],[14,3,14,7],[14,8,14,24],[14,25,14,32],[14,33,14,40],[14,41,14,50],[14,51,14,53],[14,54,14,57],[14,58,14,63],[15,3,15,7],[15,8,15,24],[15,25,15,32],[15,33,15,40],[15,41,15,50],[15,51,15,53],[15,54,15,57],[15,58,15,63],[12,3,12,7],[12,8,12,24],[12,25,12,32],[12,33,12,40],[12,41,12,50],[12,51,12,53],[12,54,12,57],[12,58,12,63],[13,3,13,7],[13,8,13,24],[13,25,13,32],[13,33,13,40],[13,41,13,50],[13,51,13,53],[13,54,13,57],[13,58,13,63],[10,8,10,24],[10,25,10,32],[10,33,10,40],[10,41,10,50],[10,51,10,53],[10,54,10,57],[10,58,10,63],[11,3,11,7],[11,8,11,24],[11,25,11,32],[11,33,11,40],[11,41,11,50],[11,51,11,53],[11,54,11,57],[11,58,11,63],[6,65,6,72],[36,65,36,72],[58,65,58,72],[1,0,1,125],[33,0,33,2],[11,0,18,2],[21,0,21,2],[73,0,73,57],[58,0,58,7],[39,0,54,2],[72,0,72,2],[60,0,60,2],[19,0,19,2],[36,0,36,7],[38,0,38,2],[61,0,71,2],[3,0,3,63],[6,0,6,7],[10,0,10,2],[34,0,34,57],[56,0,56,57],[55,0,55,2],[9,3,9,63],[10,3,10,7],[27,3,27,7],[27,8,27,20],[27,21,27,23],[27,24,27,32],[27,33,27,40],[27,41,27,50],[27,51,27,53],[27,54,27,57],[27,58,27,63],[27,65,27,69],[27,70,27,82],[27,83,27,85],[27,86,27,94],[27,95,27,102],[27,103,27,112],[27,113,27,115],[27,116,27,119],[27,120,27,125],[28,3,28,7],[28,8,28,20],[28,21,28,23],[28,24,28,32],[28,33,28,40],[28,41,28,50],[28,51,28,53],[28,54,28,57],[28,58,28,63],[28,65,28,69],[28,70,28,82],[28,83,28,85],[28,86,28,94],[28,95,28,102],[28,103,28,112],[28,113,28,115],[28,116,28,119],[28,120,28,125],[29,116,29,119],[29,120,29,125],[29,3,29,7],[29,8,29,20],[29,21,29,23],[29,24,29,32],[29,33,29,40],[29,41,29,50],[29,51,29,53],[29,54,29,57],[29,58,29,63],[30,120,30,125],[30,3,30,7],[30,8,30,20],[30,21,30,23],[30,24,30,32],[30,33,30,40],[30,41,30,50],[30,51,30,53],[30,54,30,57],[30,58,30,63],[31,120,31,125],[31,3,31,7],[31,8,31,20],[31,21,31,23],[31,24,31,32],[31,33,31,40],[31,41,31,50],[31,51,31,53],[31,54,31,57],[31,58,31,63],[22,0,32,2],[31,65,31,69],[31,70,31,82],[31,83,31,85],[31,86,31,94],[31,95,31,102],[31,103,31,112],[31,113,31,115],[31,116,31,119],[30,65,30,69],[30,70,30,82],[30,83,30,85],[30,86,30,94],[30,95,30,102],[30,103,30,112],[30,113,30,115],[30,116,30,119],[29,65,29,69],[29,70,29,82],[29,83,29,85],[29,86,29,94],[29,95,29,102],[29,103,29,112],[29,113,29,115]]}
["定型様式9"]
["明細書　【設備（空調、給湯、換気）】"]
[]
["＜補助対象経費＞\n・見積書の各項目が税込金額で記載されている場合は、必ず[税抜]に修正して作成すること。"]
[null,null,"…自動入力",null,null,null,null,null,"…申請者入力欄"]
[]
["空調設備",null,null,null,null,null,null,null,null,null,null,null,null,null,null,null,null,null,null,null,null,null,null,null,null,null,null,null,null,null,null,null,null,null,null,null,null,null,null,null,null,null,null,null,null,null,null,null,null,null,null,null,null,null,null,null,null,null,null,null,null,null,null,null,null,"空調設備"]
[]
["Ⅰ冷暖房設備機器（ルームエアコンディショナー等）",null,null,null,null,null,null,null,null,null,null,null,null,null,null,null,null,null,null,null,null,null,null,null,null,null,null,null,null,null,null,null,null,null,null,null,null,null,null,null,null,null,null,null,null,null,null,null,null,null,null,null,null,null,null,null,null,null,null,null,null,null,null,null,null,"Ⅰ冷暖房設備機器（ルームエアコンディショナー等）"]
[null,null,null,"中間報告",null,null,null,null,null,null,null,null,null,null,null,null,null,null,null,null,null,null,null,null,null,null,null,null,null,null,null,null,null,null,null,null,null,null,null,null,null,null,null,null,null,null,null,null,null,null,null,null,null,null,null,null,null,null,null,null,null,null,null,null,null,"実績報告時"]
["費目",null,null,"設置場所",null,null,null,null,"機器の種類",null,null,null,null,null,null,null,null,null,null,null,null,null,null,null,null,"メーカー名",null,null,null,null,null,null,null,"製品名",null,null,null,null,null,null,null,"型番",null,null,null,null,null,null,null,null,null,"数量\n(ｂ)",null,null,"単価（円）\n（ｃ)",null,null,null,"金額(円）［税抜］\n(ｂ)×（ｃ)",null,null,null,null,null,null,"設置場所",null,null,null,null,"機器の種類",null,null,null,null,null,null,null,null,null,null,null,null,null,null,null,null,"メーカー名",null,null,null,null,null,null,null,"製品名",null,null,null,null,null,null,null,"型番",null,null,null,null,null,null,null,null,null,"数量\n(ｂ)",null,null,"単価（円）\n（ｃ)",null,null,null,"金額(円）［税抜］\n(ｂ)×（ｃ)",null,null,null,null,null,null,"No.","SII連絡事項"]
["設備費",null,null,null,null,null,null,null,null,null,null,null,null,null,null,null,null,null,null,null,null,null,null,null,null,null,null,null,null,null,null,null,null,null,null,null,null,null,null,null,null,null,null,null,null,null,null,null,null,null,null,null,null,null,null,null,null,null,{"$f":"IF(BC12<>\"\",ROUNDDOWN(AZ12*BC12,0),\"\")","v":""},null,null,null,null,null,null,null,null,null,null,null,null,null,null,null,null,null,null,null,null,null,null,null,null,null,null,null,null,null,null,null,null,null,null,null,null,null,null,null,null,null,null,null,null,null,null,null,null,null,null,null,null,null,null,null,null,null,null,null,null,null,{"$f":"IF(DM12<>\"\",ROUNDDOWN(DJ12*DM12,0),\"\")","v":""},null,null,null,null,null,null,1]
[null,null,null,null,null,null,null,null,null,null,null,null,null,null,null,null,null,null,null,null,null,null,null,null,null,null,null,null,null,null,null,null,null,null,null,null,null,null,null,null,null,null,null,null,null,null,null,null,null,null,null,null,null,null,null,null,null,null,{"$f":"IF(BC13<>\"\",ROUNDDOWN(AZ13*BC13,0),\"\")","v":""},null,null,null,null,null,null,null,null,null,null,null,null,null,null,null,null,null,null,null,null,null,null,null,null,null,null,null,null,null,null,null,null,null,null,null,null,null,null,null,null,null,null,null,null,null,null,null,null,null,null,null,null,null,null,null,null,null,null,null,null,null,{"$f":"IF(DM13<>\"\",ROUNDDOWN(DJ13*DM13,0),\"\")","v":""},null,null,null,null,null,null,2]
[null,null,null,null,null,null,null,null,null,null,null,null,null,null,null,null,null,null,null,null,null,null,null,null,null,null,null,null,null,null,null,null,null,null,null,null,null,null,null,null,null,null,null,null,null,null,null,null,null,null,null,null,null,null,null,null,null,null,"",null,null,null,null,null,null,null,null,null,null,null,null,null,null,null,null,null,null,null,null,null,null,null,null,null,null,null,null,null,null,null,null,null,null,null,null,null,null,null,null,null,null,null,null,null,null,null,null,null,null,null,null,null,null,null,null,null,null,null,null,null,"",null,null,null,null,null,null,3]
[null,null,null,null,null,null,null,null,null,null,null,null,null,null,null,null,null,null,null,null,null,null,null,null,null,null,null,null,null,null,null,null,null,null,null,null,null,null,null,null,null,null,null,null,null,null,null,null,null,null,null,null,null,null,null,null,null,null,"",null,null,null,null,null,null,null,null,null,null,null,null,null,null,null,null,null,null,null,null,null,null,null,null,null,null,null,null,null,null,null,null,null,null,null,null,null,null,null,null,null,null,null,null,null,null,null,null,null,null,null,null,null,null,null,null,null,null,null,null,null,"",null,null,null,null,null,null,4]
[null,null,null,null,null,null,null,null,null,null,null,null,null,null,null,null,null,null,null,null,null,null,null,null,null,null,null,null,null,null,null,null,null,null,null,null,null,null,null,null,null,null,null,null,null,null,null,null,null,null,null,null,null,null,null,null,null,null,"",null,null,null,null,null,null,null,null,null,null,null,null,null,null,null,null,null,null,null,null,null,null,null,null,null,null,null,null,null,null,null,null,null,null,null,null,null,null,null,null,null,null,null,null,null,null,null,null,null,null,null,null,null,null,null,null,null,null,null,null,null,"",null,null,null,null,null,null,5]
[null,null,null,null,null,null,null,null,null,null,null,null,null,null,null,null,null,null,null,null,null,null,null,null,null,null,null,null,null,null,null,null,null,null,null,null,null,null,null,null,null,null,null,null,null,null,null,null,null,null,null,null,null,null,null,null,null,null,{"$f":"IF(BC17<>\"\",ROUNDDOWN(AZ17*BC17,0),\"\")","v":""},null,null,null,null,null,null,null,null,null,null,null,null,null,null,null,null,null,null,null,null,null,null,null,null,null,null,null,null,null,null,null,null,null,null,null,null,null,null,null,null,null,null,null,null,null,null,null,null,null,null,null,null,null,null,null,null,null,null,null,null,null,"",null,null,null,null,null,null,6]
[null,null,null,null,null,null,null,null,null,null,null,null,null,null,null,null,null,null,null,null,null,null,null,null,null,null,null,null,null,null,null,null,null,null,null,null,null,null,null,null,null,null,null,null,null,null,null,null,null,null,null,null,null,null,null,null,null,null,"",null,null,null,null,null,null,null,null,null,null,null,null,null,null,null,null,null,null,null,null,null,null,null,null,null,null,null,null,null,null,null,null,null,null,null,null,null,null,null,null,null,null,null,null,null,null,null,null,null,null,null,null,null,null,null,null,null,null,null,null,null,"",null,null,null,null,null,null,7]
[null,null,null,"数量・設備費計",null,null,null,null,null,null,null,null,null,null,null,null,null,null,null,null,null,null,null,null,null,null,null,null,null,null,null,null,null,null,null,null,null,null,null,null,null,null,null,null,null,null,null,null,null,null,null,{"$f":"SUM(AZ12:BB18)","v":0},null,null,null,null,null,null,{"$f":"ROUNDDOWN(SUM(BG12:BL18),0)","v":0},null,null,null,null,null,null,"数量・設備費計",null,null,null,null,null,null,null,null,null,null,null,null,null,null,null,null,null,null,null,null,null,null,null,null,null,null,null,null,null,null,null,null,null,null,null,null,null,null,null,null,null,null,null,null,null,null,null,{"$f":"SUM(DJ12:DL18)","v":0},null,null,null,null,null,null,{"$f":"ROUNDDOWN(SUM(DQ12:DV18),0)","v":0},null,null,null,null,null,null,8]
["工事費",null,null,"工事費計",null,null,null,null,null,null,null,null,null,null,null,null,null,null,null,null,null,null,null,null,null,null,null,null,null,null,null,null,null,null,null,null,null,null,null,null,null,null,null,null,null,null,null,null,null,null,null,null,null,null,null,null,null,null,null,null,null,null,null,null,null,"工事費計",null,null,null,null,null,null,null,null,null,null,null,null,null,null,null,null,null,null,null,null,null,null,null,null,null,null,null,null,null,null,null,null,null,null,null,null,null,null,null,null,null,null,null,null,null,null,null,null,null,null,null,null,null,null,null,null,null,null,null,null,null,9]
["Ⅱ温水暖房機（床暖房、パネルラジエーター、ファンコンベクター）",null,null,null,null,null,null,null,null,null,null,null,null,null,null,null,null,null,null,null,null,null,null,null,"※熱源機が給湯機と兼用の場合は、給湯機欄に入力してください。",null,null,null,null,null,null,null,null,null,null,null,null,null,null,null,null,null,null,null,null,null,null,null,null,null,null,null,null,null,null,null,null,null,null,null,null,null,null,null,null,"Ⅱ温水暖房機（床暖房、パネルラジエーター、ファンコンベクター）",null,null,null,null,null,null,null,null,null,null,null,null,null,null,null,null,null,null,null,null,null,null,null,null,null,null,null,null,null,null,"※熱源機が給湯機と兼用の場合は、給湯機欄に入力してください。"]
["費目",null,null,"設置場所",null,null,null,null,"機器の種類",null,null,null,null,null,null,null,null,null,null,null,null,"熱源機\n専用/兼用",null,null,"熱源機の種類/部材",null,null,null,null,null,null,null,null,"メーカー名",null,null,null,null,null,null,null,"型番",null,null,null,null,null,null,null,null,null,"数量\n(ｂ)",null,null,"単価（円）\n（ｃ)",null,null,null,"金額(円）［税抜］\n(ｂ)×（ｃ)",null,null,null,null,null,null,"設置場所",null,null,null,null,"機器の種類",null,null,null,null,null,null,null,null,null,null,null,null,"熱源機\n専用/兼用",null,null,"熱源機の種類/部材",null,null,null,null,null,null,null,null,"メーカー名",null,null,null,null,null,null,null,"型番",null,null,null,null,null,null,null,null,null,"数量\n(ｂ)",null,null,"単価（円）\n（ｃ)",null,null,null,"金額(円）［税抜］\n(ｂ)×（ｃ)",null,null,null,null,null,null,"No.","SII連絡事項"]
["設備費",null,null,null,null,null,null,null,null,null,null,null,null,null,null,null,null,null,null,null,null,null,null,null,null,null,null,null,null,null,null,null,null,null,null,null,null,null,null,null,null,null,null,null,null,null,null,null,null,null,null,null,null,null,null,null,null,null,{"$f":"IF(BC23<>\"\",ROUNDDOWN(AZ23*BC23,0),\"\")","v":""},null,null,null,null,null,null,null,null,null,null,null,null,null,null,null,null,null,null,null,null,null,null,null,null,null,null,null,null,null,null,null,null,null,null,null,null,null,null,null,null,null,null,null,null,null,null,null,null,null,null,null,null,null,null,null,null,null,null,null,null,null,{"$f":"IF(DM23<>\"\",ROUNDDOWN(DJ23*DM23,0),\"\")","v":""},null,null,null,null,null,null,10]
[null,null,null,null,null,null,null,null,null,null,null,null,null,null,null,null,null,null,null,null,null,null,null,null,null,null,null,null,null,null,null,null,null,null,null,null,null,null,null,null,null,null,null,null,null,null,null,null,null,null,null,null,null,null,null,null,null,null,{"$f":"IF(BC24<>\"\",ROUNDDOWN(AZ24*BC24,0),\"\")","v":""},null,null,null,null,null,null,null,null,null,null,null,null,null,null,null,null,null,null,null,null,null,null,null,null,null,null,null,null,null,null,null,null,null,null,null,null,null,null,null,null,null,null,null,null,null,null,null,null,null,null,null,null,null,null,null,null,null,null,null,null,null,"",null,null,null,null,null,null,11]
[null,null,null,null,null,null,null,null,null,null,null,null,null,null,null,null,null,null,null,null,null,null,null,null,null,null,null,null,null,null,null,null,null,null,null,null,null,null,null,null,null,null,null,null,null,null,null,null,null,null,null,null,null,null,null,null,null,null,{"$f":"IF(BC25<>\"\",ROUNDDOWN(AZ25*BC25,0),\"\")","v":""},null,null,null,null,null,null,null,null,null,null,null,null,null,null,null,null,null,null,null,null,null,null,null,null,null,null,null,null,null,null,null,null,null,null,null,null,null,null,null,null,null,null,null,null,null,null,null,null,null,null,null,null,null,null,null,null,null,null,null,null,null,"",null,null,null,null,null,null,12]
[null,null,null,null,null,null,null,null,null,null,null,null,null,null,null,null,null,null,null,null,null,null,null,null,null,null,null,null,null,null,null,null,null,null,null,null,null,null,null,null,null,null,null,null,null,null,null,null,null,null,null,null,null,null,null,null,null,null,"",null,null,null,null,null,null,null,null,null,null,null,null,null,null,null,null,null,null,null,null,null,null,null,null,null,null,null,null,null,null,null,null,null,null,null,null,null,null,null,null,null,null,null,null,null,null,null,null,null,null,null,null,null,null,null,null,null,null,null,null,null,"",null,null,null,null,null,null,13]
[null,null,null,null,null,null,null,null,null,null,null,null,null,null,null,null,null,null,null,null,null,null,null,null,null,null,null,null,null,null,null,null,null,null,null,null,null,null,null,null,null,null,null,null,null,null,null,null,null,null,null,null,null,null,null,null,null,null,"",null,null,null,null,null,null,null,null,null,null,null,null,null,null,null,null,null,null,null,null,null,null,null,null,null,null,null,null,null,null,null,null,null,null,null,null,null,null,null,null,null,null,null,null,null,null,null,null,null,null,null,null,null,null,null,null,null,null,null,null,null,"",null,null,null,null,null,null,14]
[null,null,null,null,null,null,null,null,null,null,null,null,null,null,null,null,null,null,null,null,null,null,null,null,null,null,null,null,null,null,null,null,null,null,null,null,null,null,null,null,null,null,null,null,null,null,null,null,null,null,null,null,null,null,null,null,null,null,{"$f":"IF(BC28<>\"\",ROUNDDOWN(AZ28*BC28,0),\"\")","v":""},null,null,null,null,null,null,null,null,null,null,null,null,null,null,null,null,null,null,null,null,null,null,null,null,null,null,null,null,null,null,null,null,null,null,null,null,null,null,null,null,null,null,null,null,null,null,null,null,null,null,null,null,null,null,null,null,null,null,null,null,null,"",null,null,null,null,null,null,15]
[null,null,null,null,null,null,null,null,null,null,null,null,null,null,null,null,null,null,null,null,null,null,null,null,null,null,null,null,null,null,null,null,null,null,null,null,null,null,null,null,null,null,null,null,null,null,null,null,null,null,null,null,null,null,null,null,null,null,{"$f":"IF(BC29<>\"\",ROUNDDOWN(AZ29*BC29,0),\"\")","v":""},null,null,null,null,null,null,null,null,null,null,null,null,null,null,null,null,null,null,null,null,null,null,null,null,null,null,null,null,null,null,null,null,null,null,null,null,null,null,null,null,null,null,null,null,null,null,null,null,null,null,null,null,null,null,null,null,null,null,null,null,null,"",null,null,null,null,null,null,16]
[null,null,null,null,null,null,null,null,null,null,null,null,null,null,null,null,null,null,null,null,null,null,null,null,null,null,null,null,null,null,null,null,null,null,null,null,null,null,null,null,null,null,null,null,null,null,null,null,null,null,null,null,null,null,null,null,null,null,{"$f":"IF(BC30<>\"\",ROUNDDOWN(AZ30*BC30,0),\"\")","v":""},null,null,null,null,null,null,null,null,null,null,null,null,null,null,null,null,null,null,null,null,null,null,null,null,null,null,null,null,null,null,null,null,null,null,null,null,null,null,null,null,null,null,null,null,null,null,null,null,null,null,null,null,null,null,null,null,null,null,null,null,null,"",null,null,null,null,null,null,17]
[null,null,null,null,null,null,null,null,null,null,null,null,null,null,null,null,null,null,null,null,null,null,null,null,null,null,null,null,null,null,null,null,null,null,null,null,null,null,null,null,null,null,null,null,null,null,null,null,null,null,null,null,null,null,null,null,null,null,{"$f":"IF(BC31<>\"\",ROUNDDOWN(AZ31*BC31,0),\"\")","v":""},null,null,null,null,null,null,null,null,null,null,null,null,null,null,null,null,null,null,null,null,null,null,null,null,null,null,null,null,null,null,null,null,null,null,null,null,null,null,null,null,null,null,null,null,null,null,null,null,null,null,null,null,null,null,null,null,null,null,null,null,null,"",null,null,null,null,null,null,18]
[null,null,null,null,null,null,null,null,null,null,null,null,null,null,null,null,null,null,null,null,null,null,null,null,null,null,null,null,null,null,null,null,null,null,null,null,null,null,null,null,null,null,null,null,null,null,null,null,null,null,null,null,null,null,null,null,null,null,"",null,null,null,null,null,null,null,null,null,null,null,null,null,null,null,null,null,null,null,null,null,null,null,null,null,null,null,null,null,null,null,null,null,null,null,null,null,null,null,null,null,null,null,null,null,null,null,null,null,null,null,null,null,null,null,null,null,null,null,null,null,"",null,null,null,null,null,null,19]
[null,null,null,"数量・設備費計",null,null,null,null,null,null,null,null,null,null,null,null,null,null,null,null,null,null,null,null,null,null,null,null,null,null,null,null,null,null,null,null,null,null,null,null,null,null,null,null,null,null,null,null,null,null,null,{"$f":"SUM(AZ23:BB32)","v":0},null,null,null,null,null,null,{"$f":"ROUNDDOWN(SUM(BG23:BL32),0)","v":0},null,null,null,null,null,null,"数量・設備費計",null,null,null,null,null,null,null,null,null,null,null,null,null,null,null,null,null,null,null,null,null,null,null,null,null,null,null,null,null,null,null,null,null,null,null,null,null,null,null,null,null,null,null,null,null,null,null,{"$f":"SUM(DJ23:DL32)","v":0},null,null,null,null,null,null,{"$f":"ROUNDDOWN(SUM(DQ23:DV32),0)","v":0},null,null,null,null,null,null,20]
["工事費",null,null,"工事費計",null,null,null,null,null,null,null,null,null,null,null,null,null,null,null,null,null,null,null,null,null,null,null,null,null,null,null,null,null,null,null,null,null,null,null,null,null,null,null,null,null,null,null,null,null,null,null,null,null,null,null,null,null,null,null,null,null,null,null,null,null,"工事費計",null,null,null,null,null,null,null,null,null,null,null,null,null,null,null,null,null,null,null,null,null,null,null,null,null,null,null,null,null,null,null,null,null,null,null,null,null,null,null,null,null,null,null,null,null,null,null,null,null,null,null,null,null,null,null,null,null,null,null,null,null,21]
["空調設備の補助対象経費の合計 [Ⅰ＋Ⅱ][税抜]",null,null,null,null,null,null,null,null,null,null,null,null,null,null,null,null,null,null,null,null,null,null,null,null,null,null,null,null,null,null,null,null,null,null,null,null,null,null,null,null,null,null,null,null,null,null,null,null,null,null,null,null,null,null,null,null,null,{"$f":"SUM(BG19:BL20)+SUM(BG33:BL34)","v":0},null,null,null,null,null,null,"空調設備の補助対象経費の合計 [Ⅰ＋Ⅱ][税抜]",null,null,null,null,null,null,null,null,null,null,null,null,null,null,null,null,null,null,null,null,null,null,null,null,null,null,null,null,null,null,null,null,null,null,null,null,null,null,null,null,null,null,null,null,null,null,null,null,null,null,null,null,null,null,{"$f":"SUM(DQ19:DV20)+SUM(DQ33:DV34)","v":0},null,null,null,null,null,null,22]
[]
["給湯設備",null,null,null,null,null,null,null,null,null,null,null,null,null,null,null,null,null,null,null,null,null,null,null,null,null,null,null,null,null,null,null,null,null,null,null,null,null,null,null,null,null,null,null,null,null,null,null,null,null,null,null,null,null,null,null,null,null,null,null,null,null,null,null,null,"給湯設備"]
[]
["費目",null,null,"機器の種類",null,null,null,null,null,null,null,null,null,null,null,null,null,null,null,null,null,null,null,null,null,"メーカー名",null,null,null,null,null,null,null,"型番",null,null,null,null,null,null,null,null,null,null,null,null,null,null,null,null,null,"数量\n(ｂ)",null,null,"単価（円）\n（ｃ)",null,null,null,"金額(円）［税抜］\n(ｂ)×（ｃ)",null,null,null,null,null,null,"機器の種類",null,null,null,null,null,null,null,null,null,null,null,null,null,null,null,null,null,null,null,null,null,"メーカー名",null,null,null,null,null,null,null,"型番",null,null,null,null,null,null,null,null,null,null,null,null,null,null,null,null,null,"数量\n(ｂ)",null,null,"単価（円）\n（ｃ)",null,null,null,"金額(円）［税抜］\n(ｂ)×（ｃ)",null,null,null,null,null,null,"No.","SII連絡事項"]
["設備費",null,null,"給湯器",null,null,null,null,null,null,null,null,null,null,null,null,null,null,null,null,null,null,null,null,null,null,null,null,null,null,null,null,null,null,null,null,null,null,null,null,null,null,null,null,null,null,null,null,null,null,null,null,null,null,null,null,null,null,{"$f":"IF(BC40<>\"\",ROUNDDOWN(AZ40*BC40,0),\"\")","v":""},null,null,null,null,null,null,"給湯器",null,null,null,null,null,null,null,null,null,null,null,null,null,null,null,null,null,null,null,null,null,null,null,null,null,null,null,null,null,null,null,null,null,null,null,null,null,null,null,null,null,null,null,null,null,null,null,null,null,null,null,null,null,null,{"$f":"IF(DM40<>\"\",ROUNDDOWN(DJ40*DM40,0),\"\")","v":""},null,null,null,null,null,null,1]
[null,null,null,null,null,null,null,null,null,null,null,null,null,null,null,null,null,null,null,null,null,null,null,null,null,null,null,null,null,null,null,null,null,null,null,null,null,null,null,null,null,null,null,null,null,null,null,null,null,null,null,null,null,null,null,null,null,null,{"$f":"IF(BC41<>\"\",ROUNDDOWN(AZ41*BC41,0),\"\")","v":""},null,null,null,null,null,null,null,null,null,null,null,null,null,null,null,null,null,null,null,null,null,null,null,null,null,null,null,null,null,null,null,null,null,null,null,null,null,null,null,null,null,null,null,null,null,null,null,null,null,null,null,null,null,null,null,null,null,null,null,null,null,{"$f":"IF(DM41<>\"\",ROUNDDOWN(DJ41*DM41,0),\"\")","v":""},null,null,null,null,null,null,2]
[null,null,null,null,null,null,null,null,null,null,null,null,null,null,null,null,null,null,null,null,null,null,null,null,null,null,null,null,null,null,null,null,null,null,null,null,null,null,null,null,null,null,null,null,null,null,null,null,null,null,null,null,null,null,null,null,null,null,"",null,null,null,null,null,null,null,null,null,null,null,null,null,null,null,null,null,null,null,null,null,null,null,null,null,null,null,null,null,null,null,null,null,null,null,null,null,null,null,null,null,null,null,null,null,null,null,null,null,null,null,null,null,null,null,null,null,null,null,null,null,"",null,null,null,null,null,null,3]
[null,null,null,null,null,null,null,null,null,null,null,null,null,null,null,null,null,null,null,null,null,null,null,null,null,null,null,null,null,null,null,null,null,null,null,null,null,null,null,null,null,null,null,null,null,null,null,null,null,null,null,null,null,null,null,null,null,null,"",null,null,null,null,null,null,null,null,null,null,null,null,null,null,null,null,null,null,null,null,null,null,null,null,null,null,null,null,null,null,null,null,null,null,null,null,null,null,null,null,null,null,null,null,null,null,null,null,null,null,null,null,null,null,null,null,null,null,null,null,null,"",null,null,null,null,null,null,4]
[null,null,null,null,null,null,null,null,null,null,null,null,null,null,null,null,null,null,null,null,null,null,null,null,null,null,null,null,null,null,null,null,null,null,null,null,null,null,null,null,null,null,null,null,null,null,null,null,null,null,null,null,null,null,null,null,null,null,"",null,null,null,null,null,null,null,null,null,null,null,null,null,null,null,null,null,null,null,null,null,null,null,null,null,null,null,null,null,null,null,null,null,null,null,null,null,null,null,null,null,null,null,null,null,null,null,null,null,null,null,null,null,null,null,null,null,null,null,null,null,"",null,null,null,null,null,null,5]
[null,null,null,"給湯関連設備",null,null,null,null,null,null,null,null,null,null,null,null,null,null,null,null,null,null,null,null,null,null,null,null,null,null,null,null,null,null,null,null,null,null,null,null,null,null,null,null,null,null,null,null,null,null,null,null,null,null,null,null,null,null,"",null,null,null,null,null,null,"給湯関連設備",null,null,null,null,null,null,null,null,null,null,null,null,null,null,null,null,null,null,null,null,null,null,null,null,null,null,null,null,null,null,null,null,null,null,null,null,null,null,null,null,null,null,null,null,null,null,null,null,null,null,null,null,null,null,"",null,null,null,null,null,null,6]
[null,null,null,null,null,null,null,null,null,null,null,null,null,null,null,null,null,null,null,null,null,null,null,null,null,null,null,null,null,null,null,null,null,null,null,null,null,null,null,null,null,null,null,null,null,null,null,null,null,null,null,null,null,null,null,null,null,null,"",null,null,null,null,null,null,null,null,null,null,null,null,null,null,null,null,null,null,null,null,null,null,null,null,null,null,null,null,null,null,null,null,null,null,null,null,null,null,null,null,null,null,null,null,null,null,null,null,null,null,null,null,null,null,null,null,null,null,null,null,null,"",null,null,null,null,null,null,7]
[null,null,null,null,null,null,null,null,null,null,null,null,null,null,null,null,null,null,null,null,null,null,null,null,null,null,null,null,null,null,null,null,null,null,null,null,null,null,null,null,null,null,null,null,null,null,null,null,null,null,null,null,null,null,null,null,null,null,"",null,null,null,null,null,null,null,null,null,null,null,null,null,null,null,null,null,null,null,null,null,null,null,null,null,null,null,null,null,null,null,null,null,null,null,null,null,null,null,null,null,null,null,null,null,null,null,null,null,null,null,null,null,null,null,null,null,null,null,null,null,{"$f":"IF(DM47<>\"\",ROUNDDOWN(DJ47*DM47,0),\"\")","v":""},null,null,null,null,null,null,8]
[null,null,null,null,null,null,null,null,null,null,null,null,null,null,null,null,null,null,null,null,null,null,null,null,null,null,null,null,null,null,null,null,null,null,null,null,null,null,null,null,null,null,null,null,null,null,null,null,null,null,null,null,null,null,null,null,null,null,"",null,null,null,null,null,null,null,null,null,null,null,null,null,null,null,null,null,null,null,null,null,null,null,null,null,null,null,null,null,null,null,null,null,null,null,null,null,null,null,null,null,null,null,null,null,null,null,null,null,null,null,null,null,null,null,null,null,null,null,null,null,"",null,null,null,null,null,null,9]
[null,null,null,null,null,null,null,null,null,null,null,null,null,null,null,null,null,null,null,null,null,null,null,null,null,null,null,null,null,null,null,null,null,null,null,null,null,null,null,null,null,null,null,null,null,null,null,null,null,null,null,null,null,null,null,null,null,null,"",null,null,null,null,null,null,null,null,null,null,null,null,null,null,null,null,null,null,null,null,null,null,null,null,null,null,null,null,null,null,null,null,null,null,null,null,null,null,null,null,null,null,null,null,null,null,null,null,null,null,null,null,null,null,null,null,null,null,null,null,null,"",null,null,null,null,null,null,10]
[null,null,null,null,null,null,null,null,null,null,null,null,null,null,null,null,null,null,null,null,null,null,null,null,null,null,null,null,null,null,null,null,null,null,null,null,null,null,null,null,null,null,null,null,null,null,null,null,null,null,null,null,null,null,null,null,null,null,"",null,null,null,null,null,null,null,null,null,null,null,null,null,null,null,null,null,null,null,null,null,null,null,null,null,null,null,null,null,null,null,null,null,null,null,null,null,null,null,null,null,null,null,null,null,null,null,null,null,null,null,null,null,null,null,null,null,null,null,null,null,"",null,null,null,null,null,null,11]
[null,null,null,null,null,null,null,null,null,null,null,null,null,null,null,null,null,null,null,null,null,null,null,null,null,null,null,null,null,null,null,null,null,null,null,null,null,null,null,null,null,null,null,null,null,null,null,null,null,null,null,null,null,null,null,null,null,null,"",null,null,null,null,null,null,null,null,null,null,null,null,null,null,null,null,null,null,null,null,null,null,null,null,null,null,null,null,null,null,null,null,null,null,null,null,null,null,null,null,null,null,null,null,null,null,null,null,null,null,null,null,null,null,null,null,null,null,null,null,null,"",null,null,null,null,null,null,12]
[null,null,null,null,null,null,null,null,null,null,null,null,null,null,null,null,null,null,null,null,null,null,null,null,null,null,null,null,null,null,null,null,null,null,null,null,null,null,null,null,null,null,null,null,null,null,null,null,null,null,null,null,null,null,null,null,null,null,"",null,null,null,null,null,null,null,null,null,null,null,null,null,null,null,null,null,null,null,null,null,null,null,null,null,null,null,null,null,null,null,null,null,null,null,null,null,null,null,null,null,null,null,null,null,null,null,null,null,null,null,null,null,null,null,null,null,null,null,null,null,"",null,null,null,null,null,null,13]
[null,null,null,null,null,null,null,null,null,null,null,null,null,null,null,null,null,null,null,null,null,null,null,null,null,null,null,null,null,null,null,null,null,null,null,null,null,null,null,null,null,null,null,null,null,null,null,null,null,null,null,null,null,null,null,null,null,null,"",null,null,null,null,null,null,null,null,null,null,null,null,null,null,null,null,null,null,null,null,null,null,null,null,null,null,null,null,null,null,null,null,null,null,null,null,null,null,null,null,null,null,null,null,null,null,null,null,null,null,null,null,null,null,null,null,null,null,null,null,null,"",null,null,null,null,null,null,14]
[null,null,null,null,null,null,null,null,null,null,null,null,null,null,null,null,null,null,null,null,null,null,null,null,null,null,null,null,null,null,null,null,null,null,null,null,null,null,null,null,null,null,null,null,null,null,null,null,null,null,null,null,null,null,null,null,null,null,"",null,null,null,null,null,null,null,null,null,null,null,null,null,null,null,null,null,null,null,null,null,null,null,null,null,null,null,null,null,null,null,null,null,null,null,null,null,null,null,null,null,null,null,null,null,null,null,null,null,null,null,null,null,null,null,null,null,null,null,null,null,"",null,null,null,null,null,null,15]
[null,null,null,"数量・設備費計",null,null,null,null,null,null,null,null,null,null,null,null,null,null,null,null,null,null,null,null,null,null,null,null,null,null,null,null,null,null,null,null,null,null,null,null,null,null,null,null,null,null,null,null,null,null,null,{"$f":"SUM(AZ40:BB54)","v":0},null,null,null,null,null,null,{"$f":"ROUNDDOWN(SUM(BG40:BL54),0)","v":0},null,null,null,null,null,null,"数量・設備費計",null,null,null,null,null,null,null,null,null,null,null,null,null,null,null,null,null,null,null,null,null,null,null,null,null,null,null,null,null,null,null,null,null,null,null,null,null,null,null,null,null,null,null,null,null,null,null,{"$f":"SUM(DJ40:DL54)","v":0},null,null,null,null,null,null,{"$f":"ROUNDDOWN(SUM(DQ40:DV54),0)","v":0},null,null,null,null,null,null,16]
["工事費",null,null,"工事費計",null,null,null,null,null,null,null,null,null,null,null,null,null,null,null,null,null,null,null,null,null,null,null,null,null,null,null,null,null,null,null,null,null,null,null,null,null,null,null,null,null,null,null,null,null,null,null,null,null,null,null,null,null,null,null,null,null,null,null,null,null,"工事費計",null,null,null,null,null,null,null,null,null,null,null,null,null,null,null,null,null,null,null,null,null,null,null,null,null,null,null,null,null,null,null,null,null,null,null,null,null,null,null,null,null,null,null,null,null,null,null,null,null,null,null,null,null,null,null,null,null,null,null,null,null,17]
["給湯設備の補助対象経費の合計[税抜]",null,null,null,null,null,null,null,null,null,null,null,null,null,null,null,null,null,null,null,null,null,null,null,null,null,null,null,null,null,null,null,null,null,null,null,null,null,null,null,null,null,null,null,null,null,null,null,null,null,null,null,null,null,null,null,null,null,{"$f":"SUM(BG55:BL56)","v":0},null,null,null,null,null,null,"給湯設備の補助対象経費の合計[税抜]",null,null,null,null,null,null,null,null,null,null,null,null,null,null,null,null,null,null,null,null,null,null,null,null,null,null,null,null,null,null,null,null,null,null,null,null,null,null,null,null,null,null,null,null,null,null,null,null,null,null,null,null,null,null,{"$f":"SUM(DQ55:DV56)","v":0},null,null,null,null,null,null,18]
[]
["換気設備",null,null,null,null,null,null,null,null,null,null,null,null,null,null,null,null,null,null,null,null,null,null,null,null,null,null,null,null,null,null,null,null,null,null,null,null,null,null,null,null,null,null,null,null,null,null,null,null,null,null,null,null,null,null,null,null,null,null,null,null,null,null,null,null,"換気設備"]
[]
["費目",null,null,"メーカー名",null,null,null,null,null,null,null,"製品名",null,null,null,null,null,null,null,null,null,null,null,null,null,null,null,null,null,null,null,null,null,"型番",null,null,null,null,null,null,null,null,null,null,null,null,null,null,null,null,null,"数量\n(ｂ)",null,null,"単価（円）\n（ｃ)",null,null,null,"金額(円）［税抜］\n(ｂ)×（ｃ)",null,null,null,null,null,null,"メーカー名",null,null,null,null,null,null,null,"製品名",null,null,null,null,null,null,null,null,null,null,null,null,null,null,null,null,null,null,null,null,null,"型番",null,null,null,null,null,null,null,null,null,null,null,null,null,null,null,null,null,"数量\n(ｂ)",null,null,"単価（円）\n（ｃ)",null,null,null,"金額(円）［税抜］\n(ｂ)×（ｃ)",null,null,null,null,null,null,"No.","SII連絡事項"]
["設備費",null,null,null,null,null,null,null,null,null,null,null,null,null,null,null,null,null,null,null,null,null,null,null,null,null,null,null,null,null,null,null,null,null,null,null,null,null,null,null,null,null,null,null,null,null,null,null,null,null,null,null,null,null,null,null,null,null,{"$f":"IF(BC62<>\"\",ROUNDDOWN(AZ62*BC62,0),\"\")","v":""},null,null,null,null,null,null,null,null,null,null,null,null,null,null,null,null,null,null,null,null,null,null,null,null,null,null,null,null,null,null,null,null,null,null,null,null,null,null,null,null,null,null,null,null,null,null,null,null,null,null,null,null,null,null,null,null,null,null,null,null,null,{"$f":"IF(DM62<>\"\",ROUNDDOWN(DJ62*DM62,0),\"\")","v":""},null,null,null,null,null,null,1]
[null,null,null,null,null,null,null,null,null,null,null,null,null,null,null,null,null,null,null,null,null,null,null,null,null,null,null,null,null,null,null,null,null,null,null,null,null,null,null,null,null,null,null,null,null,null,null,null,null,null,null,null,null,null,null,null,null,null,{"$f":"IF(BC63<>\"\",ROUNDDOWN(AZ63*BC63,0),\"\")","v":""},null,null,null,null,null,null,null,null,null,null,null,null,null,null,null,null,null,null,null,null,null,null,null,null,null,null,null,null,null,null,null,null,null,null,null,null,null,null,null,null,null,null,null,null,null,null,null,null,null,null,null,null,null,null,null,null,null,null,null,null,null,{"$f":"IF(DM63<>\"\",ROUNDDOWN(DJ63*DM63,0),\"\")","v":""},null,null,null,null,null,null,2]
[null,null,null,null,null,null,null,null,null,null,null,null,null,null,null,null,null,null,null,null,null,null,null,null,null,null,null,null,null,null,null,null,null,null,null,null,null,null,null,null,null,null,null,null,null,null,null,null,null,null,null,null,null,null,null,null,null,null,"",null,null,null,null,null,null,null,null,null,null,null,null,null,null,null,null,null,null,null,null,null,null,null,null,null,null,null,null,null,null,null,null,null,null,null,null,null,null,null,null,null,null,null,null,null,null,null,null,null,null,null,null,null,null,null,null,null,null,null,null,null,"",null,null,null,null,null,null,3]
[null,null,null,null,null,null,null,null,null,null,null,null,null,null,null,null,null,null,null,null,null,null,null,null,null,null,null,null,null,null,null,null,null,null,null,null,null,null,null,null,null,null,null,null,null,null,null,null,null,null,null,null,null,null,null,null,null,null,"",null,null,null,null,null,null,null,null,null,null,null,null,null,null,null,null,null,null,null,null,null,null,null,null,null,null,null,null,null,null,null,null,null,null,null,null,null,null,null,null,null,null,null,null,null,null,null,null,null,null,null,null,null,null,null,null,null,null,null,null,null,"",null,null,null,null,null,null,4]
[null,null,null,null,null,null,null,null,null,null,null,null,null,null,null,null,null,null,null,null,null,null,null,null,null,null,null,null,null,null,null,null,null,null,null,null,null,null,null,null,null,null,null,null,null,null,null,null,null,null,null,null,null,null,null,null,null,null,"",null,null,null,null,null,null,null,null,null,null,null,null,null,null,null,null,null,null,null,null,null,null,null,null,null,null,null,null,null,null,null,null,null,null,null,null,null,null,null,null,null,null,null,null,null,null,null,null,null,null,null,null,null,null,null,null,null,null,null,null,null,"",null,null,null,null,null,null,5]
[null,null,null,null,null,null,null,null,null,null,null,null,null,null,null,null,null,null,null,null,null,null,null,null,null,null,null,null,null,null,null,null,null,null,null,null,null,null,null,null,null,null,null,null,null,null,null,null,null,null,null,null,null,null,null,null,null,null,"",null,null,null,null,null,null,null,null,null,null,null,null,null,null,null,null,null,null,null,null,null,null,null,null,null,null,null,null,null,null,null,null,null,null,null,null,null,null,null,null,null,null,null,null,null,null,null,null,null,null,null,null,null,null,null,null,null,null,null,null,null,"",null,null,null,null,null,null,6]
[null,null,null,null,null,null,null,null,null,null,null,null,null,null,null,null,null,null,null,null,null,null,null,null,null,null,null,null,null,null,null,null,null,null,null,null,null,null,null,null,null,null,null,null,null,null,null,null,null,null,null,null,null,null,null,null,null,null,"",null,null,null,null,null,null,null,null,null,null,null,null,null,null,null,null,null,null,null,null,null,null,null,null,null,null,null,null,null,null,null,null,null,null,null,null,null,null,null,null,null,null,null,null,null,null,null,null,null,null,null,null,null,null,null,null,null,null,null,null,null,"",null,null,null,null,null,null,7]
[null,null,null,null,null,null,null,null,null,null,null,null,null,null,null,null,null,null,null,null,null,null,null,null,null,null,null,null,null,null,null,null,null,null,null,null,null,null,null,null,null,null,null,null,null,null,null,null,null,null,null,null,null,null,null,null,null,null,"",null,null,null,null,null,null,null,null,null,null,null,null,null,null,null,null,null,null,null,null,null,null,null,null,null,null,null,null,null,null,null,null,null,null,null,null,null,null,null,null,null,null,null,null,null,null,null,null,null,null,null,null,null,null,null,null,null,null,null,null,null,"",null,null,null,null,null,null,8]
[null,null,null,null,null,null,null,null,null,null,null,null,null,null,null,null,null,null,null,null,null,null,null,null,null,null,null,null,null,null,null,null,null,null,null,null,null,null,null,null,null,null,null,null,null,null,null,null,null,null,null,null,null,null,null,null,null,null,"",null,null,null,null,null,null,null,null,null,null,null,null,null,null,null,null,null,null,null,null,null,null,null,null,null,null,null,null,null,null,null,null,null,null,null,null,null,null,null,null,null,null,null,null,null,null,null,null,null,null,null,null,null,null,null,null,null,null,null,null,null,"",null,null,null,null,null,null,9]
[null,null,null,null,null,null,null,null,null,null,null,null,null,null,null,null,null,null,null,null,null,null,null,null,null,null,null,null,null,null,null,null,null,null,null,null,null,null,null,null,null,null,null,null,null,null,null,null,null,null,null,null,null,null,null,null,null,null,"",null,null,null,null,null,null,null,null,null,null,null,null,null,null,null,null,null,null,null,null,null,null,null,null,null,null,null,null,null,null,null,null,null,null,null,null,null,null,null,null,null,null,null,null,null,null,null,null,null,null,null,null,null,null,null,null,null,null,null,null,null,"",null,null,null,null,null,null,10]
[null,null,null,"数量・設備費計",null,null,null,null,null,null,null,null,null,null,null,null,null,null,null,null,null,null,null,null,null,null,null,null,null,null,null,null,null,null,null,null,null,null,null,null,null,null,null,null,null,null,null,null,null,null,null,{"$f":"SUM(AZ62:BB71)","v":0},null,null,null,null,null,null,{"$f":"ROUNDDOWN(SUM(BG62:BL71),0)","v":0},null,null,null,null,null,null,"数量・設備費計",null,null,null,null,null,null,null,null,null,null,null,null,null,null,null,null,null,null,null,null,null,null,null,null,null,null,null,null,null,null,null,null,null,null,null,null,null,null,null,null,null,null,null,null,null,null,null,{"$f":"SUM(DJ62:DL71)","v":0},null,null,null,null,null,null,{"$f":"ROUNDDOWN(SUM(DQ62:DV71),0)","v":0},null,null,null,null,null,null,11]
["工事費",null,null,"工事費計",null,null,null,null,null,null,null,null,null,null,null,null,null,null,null,null,null,null,null,null,null,null,null,null,null,null,null,null,null,null,null,null,null,null,null,null,null,null,null,null,null,null,null,null,null,null,null,null,null,null,null,null,null,null,null,null,null,null,null,null,null,"工事費計",null,null,null,null,null,null,null,null,null,null,null,null,null,null,null,null,null,null,null,null,null,null,null,null,null,null,null,null,null,null,null,null,null,null,null,null,null,null,null,null,null,null,null,null,null,null,null,null,null,null,null,null,null,null,null,null,null,null,null,null,null,12]
["換気設備の補助対象経費の合計[税抜]",null,null,null,null,null,null,null,null,null,null,null,null,null,null,null,null,null,null,null,null,null,null,null,null,null,null,null,null,null,null,null,null,null,null,null,null,null,null,null,null,null,null,null,null,null,null,null,null,null,null,null,null,null,null,null,null,null,{"$f":"SUM(BG72:BL73)","v":0},null,null,null,null,null,null,"換気設備の補助対象経費の合計[税抜]",null,null,null,null,null,null,null,null,null,null,null,null,null,null,null,null,null,null,null,null,null,null,null,null,null,null,null,null,null,null,null,null,null,null,null,null,null,null,null,null,null,null,null,null,null,null,null,null,null,null,null,null,null,null,{"$f":"SUM(DQ72:DV73)","v":0},null,null,null,null,null,null,13]

{"sheet":"INDIRECTリスト","index":5,"n_rows":16,"n_cols":4,"rows_kept":16,"cut":false,"hidden":true,"merged":[]}
[]
["設置場所","主たる居室","その他の居室","住戸全体"]
["機器の種類","ルームエアコンディショナー","ルームエアコンディショナー","ダクト式セントラル空調機（ヒートポンプ式熱源）"]
[null,"FF暖房機","FF暖房機"]
[null,"電気蓄熱暖房器","電気蓄熱暖房器"]
[null,"電気ヒーター床暖房","電気ヒーター床暖房"]
[null,"ルームエアコンディショナー付温水床暖房機","ルームエアコンディショナー付温水床暖房機"]
[null,"その他の暖房設備機器","その他の暖房設備機器"]
[]
[]
[null,"専用","兼用"]
[null,"ガス潜熱回収型温水暖房機","ガス潜熱回収型温水暖房機"]
[null,"石油潜熱回収型温水暖房機","石油潜熱回収型温水暖房機"]
[null,"電気ヒートポンプ温水暖房機","電気ヒートポンプ温水暖房機"]
[null,"電気ヒーター温水暖房機","電気ヒーター温水暖房機"]
[null,"温水パネル等","温水パネル等"]

{"sheet":"総括表","index":6,"n_rows":37,"n_cols":54,"rows_kept":37,"cut":false,"hidden":false,"merged":[[36,49,36,50],[36,17,36,18],[36,19,36,31],[36,32,36,33],[36,34,36,35],[36,36,36,48],[32,36,32,48],[32,49,32,50],[33,34,33,35],[33,36,33,48],[33,49,33,50],[32,32,32,33],[33,17,33,18],[33,19,33,31],[33,32,33,33],[32,34,32,35],[32,17,32,18],[32,19,32,31],[35,19,35,33],[35,36,35,50],[24,36,24,48],[24,49,24,50],[27,17,27,31],[27,32,27,33],[27,34,27,48],[27,49,27,50],[22,34,22,35],[22,36,22,48],[22,49,22,50],[23,34,23,35],[23,36,23,48],[23,49,23,50],[24,17,24,18],[24,19,24,31],[24,32,24,33],[24,34,24,35],[23,17,23,18],[23,19,23,31],[23,32,23,33],[22,17,22,18],[22,19,22,31],[22,32,22,33],[26,17,26,33],[26,34,26,50],[17,34,17,35],[17,36,17,48],[13,34,13,50],[14,34,14,35],[14,36,14,48],[14,49,14,50],[15,34,15,35],[15,36,15,48],[15,49,15,50],[16,34,16,35],[16,36,16,48],[16,49,16,50],[17,49,17,50],[18,17,18,18],[18,19,18,31],[18,32,18,33],[19,17,19,18],[19,19,19,31],[19,32,19,33],[20,34,20,35],[21,17,21,18],[21,19,21,31],[20,17,20,18],[20,19,20,31],[36,0,36,16],[18,2,18,16],[19,2,19,16],[32,0,32,16],[33,0,33,16],[22,2,22,16],[23,0,23,16],[21,0,22,1],[21,2,21,16],[27,0,27,16],[24,0,24,16],[20,2,20,16],[14,0,20,1],[15,2,15,16],[16,2,16,16],[17,2,17,16],[29,0,29,16],[13,0,13,16],[14,2,14,16],[16,17,16,18],[16,19,16,31],[16,32,16,33],[17,17,17,18],[17,19,17,31],[17,32,17,33],[13,17,13,33],[14,17,14,18],[14,19,14,31],[14,32,14,33],[15,17,15,18],[15,19,15,31],[15,32,15,33],[29,34,29,48],[29,49,29,50],[3,17,3,33],[3,34,3,50],[4,49,4,50],[4,34,4,48],[5,34,5,50],[6,34,6,50],[7,34,7,50],[8,34,8,50],[29,17,29,33],[20,36,20,48],[20,49,20,50],[21,34,21,35],[21,36,21,48],[21,49,21,50],[18,34,18,35],[18,36,18,48],[18,49,18,50],[20,32,20,33],[21,32,21,33],[19,34,19,35],[19,36,19,48],[19,49,19,50],[0,0,0,50],[1,0,1,50],[3,0,3,16],[4,32,4,33],[4,17,4,31],[4,0,4,15],[5,0,5,15],[6,0,6,15],[7,0,8,0],[7,1,7,15],[8,1,8,15],[5,17,5,33],[6,17,6,33],[7,17,7,33],[8,17,8,33]]}
["定型様式10"]
["総括表"]
[]
["住宅の概要",null,null,null,null,null,null,null,null,null,null,null,null,null,null,null,null,"中間報告",null,null,null,null,null,null,null,null,null,null,null,null,null,null,null,null,"実績報告",null,null,null,null,null,null,null,null,null,null,null,null,null,null,null,null,null,"No.","SII連絡事項"]
["１．延べ床面積",null,null,null,null,null,null,null,null,null,null,null,null,null,null,null,null,null,null,null,null,null,null,null,null,null,null,null,null,null,null,null,"㎡",null,null,null,null,null,null,null,null,null,null,null,null,null,null,null,null,"㎡",null,null,1]
["２．地域区分",null,null,null,null,null,null,null,null,null,null,null,null,null,null,null,null,null,null,null,null,null,null,null,null,null,null,null,null,null,null,null,null,null,null,null,null,null,null,null,null,null,null,null,null,null,null,null,null,null,null,null,2]
["３．BEI\n　　（小数点第2位まで、3位以下切上げ）",null,null,null,null,null,null,null,null,null,null,null,null,null,null,null,null,null,null,null,null,null,null,null,null,null,null,null,null,null,null,null,null,null,null,null,null,null,null,null,null,null,null,null,null,null,null,null,null,null,null,null,3]
["４．","外皮平均熱貫流率（UA値）\n（小数点第2位まで、3位以下切上げ）",null,null,null,null,null,null,null,null,null,null,null,null,null,null,null,null,null,null,null,null,null,null,null,null,null,null,null,null,null,null,null,null,null,null,null,null,null,null,null,null,null,null,null,null,null,null,null,null,null,null,4]
[null,"冷房期の平均日射熱取得率（ηAC値）\n（小数点第1位まで、2位以下切上げ）",null,null,null,null,null,null,null,null,null,null,null,null,null,null,null,null,null,null,null,null,null,null,null,null,null,null,null,null,null,null,null,null,null,null,null,null,null,null,null,null,null,null,null,null,null,null,null,null,null,null,5]
[]
[]
[null,null,"…自動入力（リンク含む）",null,null,null,null,null,null,null,null,null,"…申請者入力欄"]
[]
["経費項目",null,null,null,null,null,null,null,null,null,null,null,null,null,null,null,null,"【中間報告】補助対象経費の合計　[税抜]",null,null,null,null,null,null,null,null,null,null,null,null,null,null,null,null,"【実績報告】補助対象経費の合計　[税抜]",null,null,null,null,null,null,null,null,null,null,null,null,null,null,null,null,null,"No.","SII連絡事項"]
["材料・設備費及び工事費",null,"断熱材",null,null,null,null,null,null,null,null,null,null,null,null,null,null,"計",null,{"$f":"明細書【断熱材】!BB61","v":0},null,null,null,null,null,null,null,null,null,null,null,null,"円",null,"計",null,{"$f":"明細書【断熱材】!DG61","v":0},null,null,null,null,null,null,null,null,null,null,null,null,"円",null,null,6]
[null,null,"窓",null,null,null,null,null,null,null,null,null,null,null,null,null,null,"計",null,{"$f":"明細書【窓・玄関ドア】!BB64","v":0},null,null,null,null,null,null,null,null,null,null,null,null,"円",null,"計",null,{"$f":"明細書【窓・玄関ドア】!DF64","v":0},null,null,null,null,null,null,null,null,null,null,null,null,"円",null,null,7]
[null,null,"玄関ドア",null,null,null,null,null,null,null,null,null,null,null,null,null,null,"計",null,{"$f":"明細書【窓・玄関ドア】!BB83","v":0},null,null,null,null,null,null,null,null,null,null,null,null,"円",null,"計",null,{"$f":"明細書【窓・玄関ドア】!DF83","v":0},null,null,null,null,null,null,null,null,null,null,null,null,"円",null,null,8]
[null,null,"ガラス（ガラス交換）",null,null,null,null,null,null,null,null,null,null,null,null,null,null,"計",null,{"$f":"明細書【ガラス交換】!AX57","v":0},null,null,null,null,null,null,null,null,null,null,null,null,"円",null,"計",null,{"$f":"明細書【ガラス交換】!CX57","v":0},null,null,null,null,null,null,null,null,null,null,null,null,"円",null,null,9]
[null,null,"空調設備",null,null,null,null,null,null,null,null,null,null,null,null,null,null,"計",null,{"$f":"明細書【設備】!BG35","v":0},null,null,null,null,null,null,null,null,null,null,null,null,"円",null,"計",null,{"$f":"明細書【設備】!DQ35","v":0},null,null,null,null,null,null,null,null,null,null,null,null,"円",null,null,10]
[null,null,"給湯設備",null,null,null,null,null,null,null,null,null,null,null,null,null,null,"計",null,{"$f":"明細書【設備】!BG57","v":0},null,null,null,null,null,null,null,null,null,null,null,null,"円",null,"計",null,{"$f":"明細書【設備】!DQ57","v":0},null,null,null,null,null,null,null,null,null,null,null,null,"円",null,null,11]
[null,null,"換気設備",null,null,null,null,null,null,null,null,null,null,null,null,null,null,"計",null,{"$f":"明細書【設備】!BG74","v":0},null,null,null,null,null,null,null,null,null,null,null,null,"円",null,"計",null,{"$f":"明細書【設備】!DQ74","v":0},null,null,null,null,null,null,null,null,null,null,null,null,"円",null,null,12]
["設計費",null,"BELS取得費用",null,null,null,null,null,null,null,null,null,null,null,null,null,null,"計",null,null,null,null,null,null,null,null,null,null,null,null,null,null,"円",null,"計",null,null,null,null,null,null,null,null,null,null,null,null,null,null,"円",null,null,13]
[null,null,"効果測定費用",null,null,null,null,null,null,null,null,null,null,null,null,null,null,"計",null,null,null,null,null,null,null,null,null,null,null,null,null,null,"円",null,"計",null,null,null,null,null,null,null,null,null,null,null,null,null,null,"円",null,null,14]
["補助対象経費合計（A）",null,null,null,null,null,null,null,null,null,null,null,null,null,null,null,null,"計",null,{"$f":"SUM(T15:AF21)+VALUE(T22)+VALUE(T23)","v":0},null,null,null,null,null,null,null,null,null,null,null,null,"円",null,"計",null,{"$f":"SUM(AK15:AW21)+VALUE(AK22)+VALUE(AK23)","v":0},null,null,null,null,null,null,null,null,null,null,null,null,"円",null,null,15]
[" 補助率による計算（B） [（Ａ）／３]",null,null,null,null,null,null,null,null,null,null,null,null,null,null,null,null,"計",null,{"$f":"IF(T24=\"\",\"\",ROUNDDOWN(T24/3,0))","v":0},null,null,null,null,null,null,null,null,null,null,null,null,"円",null,"計",null,{"$f":"IF(AK24=\"\",\"\",ROUNDDOWN(AK24/3,0))","v":0},null,null,null,null,null,null,null,null,null,null,null,null,"円",null,null,16]
[]
[]
["　　　　　　補助金交付算定額（Ｃ）",null,null,null,null,null,null,null,null,null,null,null,null,null,null,null,null,{"$f":"IF(OR(R6=1,R6=2,R6=3,R6=4),MIN(T25,5000000),MIN(T25,4000000))","v":0},null,null,null,null,null,null,null,null,null,null,null,null,null,null,"円",null,{"$f":"IF(OR(AI6=1,AI6=2,AI6=3,AI6=4),MIN(AK25,5000000),MIN(AK25,4000000))","v":0},null,null,null,null,null,null,null,null,null,null,null,null,null,null,"円",null,null,17]
[]
["交付決定通知書の補助金の額（Ｄ）",null,null,null,null,null,null,null,null,null,null,null,null,null,null,null,null,null,null,null,null,null,null,null,null,null,null,null,null,null,null,null,null,null,null,null,null,null,null,null,null,null,null,null,null,null,null,null,null,"円",null,null,18]
[]
["＜補助対象外経費＞"]
["　　　　　　 その他工事費用・諸経費（E）",null,null,null,null,null,null,null,null,null,null,null,null,null,null,null,null,"計",null,{"$f":"IF(T34=\"\",\"\",T37-T34-T24)","v":""},null,null,null,null,null,null,null,null,null,null,null,null,"円",null,"計",null,{"$f":"IF(AK34=\"\",\"\",AK37-AK34-AK24)","v":""},null,null,null,null,null,null,null,null,null,null,null,null,"円",null,null,19]
["　　　　　　 消費税（F）",null,null,null,null,null,null,null,null,null,null,null,null,null,null,null,null,"計",null,null,null,null,null,null,null,null,null,null,null,null,null,null,"円",null,"計",null,null,null,null,null,null,null,null,null,null,null,null,null,null,"円",null,null,20]
[]
["＜工事総額【税込】＞",null,null,null,null,null,null,null,null,null,null,null,null,null,null,null,null,null,null,null,null,null,null,null,null,null,null,null,null,null,null,null,null,null,null,null,"↓別添の工事請負契約書の合計金額及び、\n　 領収書の金額と一致していること"]
["工事総額【税込】（G） [（A）＋（E）＋（F）]",null,null,null,null,null,null,null,null,null,null,null,null,null,null,null,null,"計",null,null,null,null,null,null,null,null,null,null,null,null,null,null,"円",null,"計",null,null,null,null,null,null,null,null,null,null,null,null,null,null,"円",null,null,21]

{"sheet":"実績報告書","index":7,"n_rows":94,"n_cols":95,"rows_kept":94,"cut":false,"hidden":false,"merged":[[61,4,64,91],[59,0,59,23],[56,0,56,23],[56,67,56,91],[56,24,56,66],[22,3,23,10],[24,3,24,10],[25,48,25,58],[25,3,25,10],[31,14,31,20],[31,21,31,23],[26,3,28,10],[44,14,44,20],[44,21,44,23],[53,18,53,21],[53,26,53,29],[53,31,53,39],[53,40,53,44],[53,49,53,52],[53,57,53,60],[53,14,53,17],[53,22,53,25],[53,45,53,48],[53,53,53,56],[93,0,93,3],[57,0,57,42],[57,43,57,67],[34,3,34,10],[42,28,42,55],[37,11,37,27],[41,14,41,17],[41,18,41,19],[35,3,35,10],[35,11,35,28],[35,29,35,47],[38,3,38,10],[45,3,45,10],[45,11,45,13],[52,0,52,23],[53,0,53,8],[53,9,53,13],[45,34,45,43],[47,0,47,42],[46,0,46,42],[49,49,49,51],[45,44,45,86],[57,68,57,91],[61,1,61,3],[0,0,0,91],[45,21,45,23],[43,3,43,10],[31,87,31,91],[35,48,35,58],[35,59,35,91],[36,3,37,10],[36,11,36,13],[36,14,36,17],[36,18,36,19],[34,11,34,91],[38,11,38,91],[41,20,41,25],[42,11,42,27],[21,11,21,32],[45,14,45,20],[44,44,44,56],[44,57,44,91],[44,11,44,13],[44,24,44,30],[42,56,42,91],[34,0,38,2],[20,33,20,56],[1,0,1,91],[2,0,2,91],[16,0,16,91],[5,90,5,91],[13,0,13,91],[5,61,5,70],[5,71,5,75],[5,76,5,77],[5,78,5,82],[5,83,5,84],[5,85,5,89],[6,0,6,29],[7,0,7,29],[52,31,52,60],[49,52,49,57],[25,59,25,91],[41,11,41,13],[45,24,45,30],[45,31,45,33],[39,11,39,28],[39,29,39,47],[39,48,39,58],[39,59,39,91],[49,62,49,70],[49,71,49,73],[49,74,49,79],[49,80,49,82],[49,83,49,88],[25,11,25,28],[25,29,25,47],[26,11,26,13],[26,15,26,91],[50,31,50,60],[50,62,50,91],[37,56,37,91],[45,87,45,91],[49,0,49,15],[21,33,21,56],[7,31,7,91],[3,93,4,93],[9,0,11,91],[18,3,18,10],[21,3,21,10],[19,3,19,10],[19,11,19,56],[20,3,20,10],[17,0,24,2],[17,3,17,10],[17,11,17,56],[3,94,4,94],[31,34,31,43],[22,11,22,13],[22,14,22,17],[22,18,22,19],[22,20,22,25],[23,11,23,27],[23,28,23,55],[23,56,23,91],[24,11,24,91],[30,24,30,30],[30,31,30,33],[30,34,30,43],[30,44,30,56],[28,11,28,27],[28,28,28,55],[31,24,31,30],[18,11,18,56],[6,32,6,91],[20,11,20,32],[28,56,28,91],[29,11,29,91],[30,11,30,13],[30,14,30,20],[54,0,54,29],[54,31,54,60],[51,31,51,91],[30,21,30,23],[30,57,30,91],[39,0,45,2],[25,0,31,2],[40,3,42,10],[40,11,40,13],[40,15,40,91],[36,20,36,25],[43,11,43,91],[44,31,44,33],[44,34,44,43],[33,0,33,91],[39,3,39,10],[37,28,37,55],[29,3,29,10],[30,3,30,10],[31,3,31,10],[27,11,27,13],[27,14,27,17],[27,18,27,19],[27,20,27,25],[31,44,31,86],[44,3,44,10],[31,31,31,33],[31,11,31,13],[49,16,49,25],[49,26,49,29],[48,0,48,29],[48,31,48,60],[49,31,49,39],[49,40,49,42],[49,43,49,48],[49,58,49,60],[48,62,48,91],[49,89,49,91]]}
["定型様式11"]
["令和７年度 \n住宅・建築物需給一体型等省エネルギー投資促進事業費\n（既築住宅のZEH改修実証支援事業）"]
["実績報告書"]
[null,null,null,null,null,null,null,null,null,null,null,null,null,null,null,null,null,null,null,null,null,null,null,null,null,null,null,null,null,null,null,null,null,null,null,null,null,null,null,null,null,null,null,null,null,null,null,null,null,null,null,null,null,null,null,null,null,null,null,null,null,null,null,null,null,null,null,null,null,null,null,null,null,null,null,null,null,null,null,null,null,null,null,null,null,null,null,null,null,null,null,null,null,"No","SII連絡事項"]
[]
[null,null,null,null,null,null,null,null,null,null,null,null,null,null,null,null,null,null,null,null,null,null,null,null,null,null,null,null,null,null,null,null,null,null,null,null,null,null,null,null,null,null,null,null,null,null,null,null,null,null,null,null,null,null,null,null,null,null,null,null,null,"書類作成日：",null,null,null,null,null,null,null,null,null,null,null,null,null,null,"年",null,null,null,null,null,null,"月",null,null,null,null,null,null,"日",null,null,1]
["一般社団法人　環境共創イニシアチブ",null,null,null,null,null,null,null,null,null,null,null,null,null,null,null,null,null,null,null,null,null,null,null,null,null,null,null,null,null,null,null,{"$f":"IF(OR(CA6=\"\",CH6=\"\"),\"\",IF(DATE(BT6,CA6,CH6)<=EOMONTH(DATE(BT6,CA6,1), 0),\"\",\"日付が相違しております。正しい日付を入力してください。↑\"))","v":""}]
["代 表 理 事 殿"]
[]
["　経済産業省からの住宅・建築物需給一体型等省エネルギー投資促進事業費交付要綱第３条に基づく国庫補助金に係る補助事業が完了しましたので、住宅・建築物需給一体型等省エネルギー投資促進事業費（既築住宅のZEH改修実証支援事業）交付規程第１５条の規定に基づき、下記のとおり報告します。"]
[]
[]
[]
["記"]
[]
[]
["１.補助事業者の氏名又は名称（法人にあっては名称及び代表者の氏名）及び住所\t",null,null,null,null,null,null,null,null,null,null,null,null,null,null,null,null,null,null,null,null,null,null,null,null,null,null,null,null,null,null,null,null,null,null,null,null,null,null,null,null,null,null,null,null,null,null,null,null,null,null,null,null,null,null,null,null,null,null,null,null,null,null,null,null,null,null,null,null,null,null,null,null,null,null,null,null,null,null,null,null,null,null,null,null,null,null,null,null,null,null,null,null,"No","SII連絡事項"]
["代表者情報",null,null,"(ふりがな)",null,null,null,null,null,null,null,null,null,null,null,null,null,null,null,null,null,null,null,null,null,null,null,null,null,null,null,null,null,null,null,null,null,null,null,null,null,null,null,null,null,null,null,null,null,null,null,null,null,null,null,null,null,null,null,null,null,null,null,null,null,null,null,null,null,null,null,null,null,null,null,null,null,null,null,null,null,null,null,null,null,null,null,null,null,null,null,null,null,2]
[null,null,null,"法人名",null,null,null,null,null,null,null,null,null,null,null,null,null,null,null,null,null,null,null,null,null,null,null,null,null,null,null,null,null,null,null,null,null,null,null,null,null,null,null,null,null,null,null,null,null,null,null,null,null,null,null,null,null,null,null,null,null,null,null,null,null,null,null,null,null,null,null,null,null,null,null,null,null,null,null,null,null,null,null,null,null,null,null,null,null,null,null,null,null,3]
[null,null,null,"役職名",null,null,null,null,null,null,null,null,null,null,null,null,null,null,null,null,null,null,null,null,null,null,null,null,null,null,null,null,null,null,null,null,null,null,null,null,null,null,null,null,null,null,null,null,null,null,null,null,null,null,null,null,null,null,null,null,null,null,null,null,null,null,null,null,null,null,null,null,null,null,null,null,null,null,null,null,null,null,null,null,null,null,null,null,null,null,null,null,null,4]
[null,null,null,"(ふりがな)",null,null,null,null,null,null,null,null,null,null,null,null,null,null,null,null,null,null,null,null,null,null,null,null,null,null,null,null,null,null,null,null,null,null,null,null,null,null,null,null,null,null,null,null,null,null,null,null,null,null,null,null,null,null,null,null,null,null,null,null,null,null,null,null,null,null,null,null,null,null,null,null,null,null,null,null,null,null,null,null,null,null,null,null,null,null,null,null,null,5]
[null,null,null,"代表者\n氏名",null,null,null,null,null,null,null,null,null,null,null,null,null,null,null,null,null,null,null,null,null,null,null,null,null,null,null,null,null,null,null,null,null,null,null,null,null,null,null,null,null,null,null,null,null,null,null,null,null,null,null,null,null,null,null,null,null,null,null,null,null,null,null,null,null,null,null,null,null,null,null,null,null,null,null,null,null,null,null,null,null,null,null,null,null,null,null,null,null,6]
[null,null,null,"住所",null,null,null,null,null,null,null,"〒",null,null,null,null,null,null,"－",null,null,null,null,null,null,null,null,null,null,null,null,null,null,null,null,null,null,null,null,null,null,null,null,null,null,null,null,null,null,null,null,null,null,null,null,null,null,null,null,null,null,null,null,null,null,null,null,null,null,null,null,null,null,null,null,null,null,null,null,null,null,null,null,null,null,null,null,null,null,null,null,null,null,7]
[null,null,null,null,null,null,null,null,null,null,null,null,null,null,null,null,null,null,null,null,null,null,null,null,null,null,null,null,null,null,null,null,null,null,null,null,null,null,null,null,null,null,null,null,null,null,null,null,null,null,null,null,null,null,null,null,null,null,null,null,null,null,null,null,null,null,null,null,null,null,null,null,null,null,null,null,null,null,null,null,null,null,null,null,null,null,null,null,null,null,null,null,null,8]
[null,null,null,"建物名\n部屋番号",null,null,null,null,null,null,null,null,null,null,null,null,null,null,null,null,null,null,null,null,null,null,null,null,null,null,null,null,null,null,null,null,null,null,null,null,null,null,null,null,null,null,null,null,null,null,null,null,null,null,null,null,null,null,null,null,null,null,null,null,null,null,null,null,null,null,null,null,null,null,null,null,null,null,null,null,null,null,null,null,null,null,null,null,null,null,null,null,null,9]
["連絡担当者情報",null,null,"担当者\n氏名",null,null,null,null,null,null,null,null,null,null,null,null,null,null,null,null,null,null,null,null,null,null,null,null,null,null,null,null,null,null,null,null,null,null,null,null,null,null,null,null,null,null,null,null,"所属部署",null,null,null,null,null,null,null,null,null,null,null,null,null,null,null,null,null,null,null,null,null,null,null,null,null,null,null,null,null,null,null,null,null,null,null,null,null,null,null,null,null,null,null,null,10]
[null,null,null,"担当者\n住所",null,null,null,null,null,null,null,"□",null,null,null,"担当者住所が代表者住所と同一の場合は、チェックを入れること",null,null,null,null,null,null,null,null,null,null,null,null,null,null,null,null,null,null,null,null,null,null,null,null,null,null,null,null,null,null,null,null,null,null,null,null,null,null,null,null,null,null,null,null,null,null,null,null,null,null,null,null,null,null,null,null,null,null,null,null,null,null,null,null,null,null,null,null,null,null,null,null,null,null,null,null,null,11]
[null,null,null,null,null,null,null,null,null,null,null,"〒",null,null,null,null,null,null,"－",null,null,null,null,null,null,null,null,null,null,null,null,null,null,null,null,null,null,null,null,null,null,null,null,null,null,null,null,null,null,null,null,null,null,null,null,null,null,null,null,null,null,null,null,null,null,null,null,null,null,null,null,null,null,null,null,null,null,null,null,null,null,null,null,null,null,null,null,null,null,null,null,null,null,12]
[null,null,null,null,null,null,null,null,null,null,null,null,null,null,null,null,null,null,null,null,null,null,null,null,null,null,null,null,null,null,null,null,null,null,null,null,null,null,null,null,null,null,null,null,null,null,null,null,null,null,null,null,null,null,null,null,null,null,null,null,null,null,null,null,null,null,null,null,null,null,null,null,null,null,null,null,null,null,null,null,null,null,null,null,null,null,null,null,null,null,null,null,null,13]
[null,null,null,"建物名\n部屋番号",null,null,null,null,null,null,null,null,null,null,null,null,null,null,null,null,null,null,null,null,null,null,null,null,null,null,null,null,null,null,null,null,null,null,null,null,null,null,null,null,null,null,null,null,null,null,null,null,null,null,null,null,null,null,null,null,null,null,null,null,null,null,null,null,null,null,null,null,null,null,null,null,null,null,null,null,null,null,null,null,null,null,null,null,null,null,null,null,null,14]
[null,null,null,"電話番号",null,null,null,null,null,null,null,"(",null,null,null,null,null,null,null,null,null,")",null,null,null,null,null,null,null,null,null,"－",null,null,null,null,null,null,null,null,null,null,null,null,"E-mail",null,null,null,null,null,null,null,null,null,null,null,null,null,null,null,null,null,null,null,null,null,null,null,null,null,null,null,null,null,null,null,null,null,null,null,null,null,null,null,null,null,null,null,null,null,null,null,null,15]
[null,null,null,"緊急連絡先\n（携帯等）",null,null,null,null,null,null,null,"(",null,null,null,null,null,null,null,null,null,")",null,null,null,null,null,null,null,null,null,"－",null,null,null,null,null,null,null,null,null,null,null,null,"上記メールアドレスに間違いがないか再度ご確認ください。\nご確認後チェックを入れてください。→",null,null,null,null,null,null,null,null,null,null,null,null,null,null,null,null,null,null,null,null,null,null,null,null,null,null,null,null,null,null,null,null,null,null,null,null,null,null,null,null,null,null,"□",null,null,null,null,null,16]
[]
["２.手続代行者の名称及び代表者等名および住所",null,null,null,null,null,null,null,null,null,null,null,null,null,null,null,null,null,null,null,null,null,null,null,null,null,null,null,null,null,null,null,null,null,null,null,null,null,null,null,null,null,null,null,null,null,null,null,null,null,null,null,null,null,null,null,null,null,null,null,null,null,null,null,null,null,null,null,null,null,null,null,null,null,null,null,null,null,null,null,null,null,null,null,null,null,null,null,null,null,null,null,null,"No","SII連絡事項"]
["代表者情報",null,null,"会社名",null,null,null,null,null,null,null,null,null,null,null,null,null,null,null,null,null,null,null,null,null,null,null,null,null,null,null,null,null,null,null,null,null,null,null,null,null,null,null,null,null,null,null,null,null,null,null,null,null,null,null,null,null,null,null,null,null,null,null,null,null,null,null,null,null,null,null,null,null,null,null,null,null,null,null,null,null,null,null,null,null,null,null,null,null,null,null,null,null,17]
[null,null,null,"代表者\n氏名",null,null,null,null,null,null,null,null,null,null,null,null,null,null,null,null,null,null,null,null,null,null,null,null,null,null,null,null,null,null,null,null,null,null,null,null,null,null,null,null,null,null,null,null,"役職名",null,null,null,null,null,null,null,null,null,null,null,null,null,null,null,null,null,null,null,null,null,null,null,null,null,null,null,null,null,null,null,null,null,null,null,null,null,null,null,null,null,null,null,null,18]
[null,null,null,"代表者\n住所",null,null,null,null,null,null,null,"〒",null,null,null,null,null,null,"－",null,null,null,null,null,null,null,null,null,null,null,null,null,null,null,null,null,null,null,null,null,null,null,null,null,null,null,null,null,null,null,null,null,null,null,null,null,null,null,null,null,null,null,null,null,null,null,null,null,null,null,null,null,null,null,null,null,null,null,null,null,null,null,null,null,null,null,null,null,null,null,null,null,null,19]
[null,null,null,null,null,null,null,null,null,null,null,null,null,null,null,null,null,null,null,null,null,null,null,null,null,null,null,null,null,null,null,null,null,null,null,null,null,null,null,null,null,null,null,null,null,null,null,null,null,null,null,null,null,null,null,null,null,null,null,null,null,null,null,null,null,null,null,null,null,null,null,null,null,null,null,null,null,null,null,null,null,null,null,null,null,null,null,null,null,null,null,null,null,20]
[null,null,null,"建物名\n部屋番号",null,null,null,null,null,null,null,null,null,null,null,null,null,null,null,null,null,null,null,null,null,null,null,null,null,null,null,null,null,null,null,null,null,null,null,null,null,null,null,null,null,null,null,null,null,null,null,null,null,null,null,null,null,null,null,null,null,null,null,null,null,null,null,null,null,null,null,null,null,null,null,null,null,null,null,null,null,null,null,null,null,null,null,null,null,null,null,null,null,21]
["連絡担当者情報",null,null,"担当者\n氏名",null,null,null,null,null,null,null,null,null,null,null,null,null,null,null,null,null,null,null,null,null,null,null,null,null,null,null,null,null,null,null,null,null,null,null,null,null,null,null,null,null,null,null,null,"担当者\n所属部署",null,null,null,null,null,null,null,null,null,null,null,null,null,null,null,null,null,null,null,null,null,null,null,null,null,null,null,null,null,null,null,null,null,null,null,null,null,null,null,null,null,null,null,null,22]
[null,null,null,"担当者\n住所",null,null,null,null,null,null,null,"□",null,null,null,"担当者住所が代表者住所と同一の場合は、チェックを入れること",null,null,null,null,null,null,null,null,null,null,null,null,null,null,null,null,null,null,null,null,null,null,null,null,null,null,null,null,null,null,null,null,null,null,null,null,null,null,null,null,null,null,null,null,null,null,null,null,null,null,null,null,null,null,null,null,null,null,null,null,null,null,null,null,null,null,null,null,null,null,null,null,null,null,null,null,null,23]
[null,null,null,null,null,null,null,null,null,null,null,"〒",null,null,null,null,null,null,"－",null,null,null,null,null,null,null,null,null,null,null,null,null,null,null,null,null,null,null,null,null,null,null,null,null,null,null,null,null,null,null,null,null,null,null,null,null,null,null,null,null,null,null,null,null,null,null,null,null,null,null,null,null,null,null,null,null,null,null,null,null,null,null,null,null,null,null,null,null,null,null,null,null,null,24]
[null,null,null,null,null,null,null,null,null,null,null,null,null,null,null,null,null,null,null,null,null,null,null,null,null,null,null,null,null,null,null,null,null,null,null,null,null,null,null,null,null,null,null,null,null,null,null,null,null,null,null,null,null,null,null,null,null,null,null,null,null,null,null,null,null,null,null,null,null,null,null,null,null,null,null,null,null,null,null,null,null,null,null,null,null,null,null,null,null,null,null,null,null,25]
[null,null,null,"建物名\n部屋番号",null,null,null,null,null,null,null,null,null,null,null,null,null,null,null,null,null,null,null,null,null,null,null,null,null,null,null,null,null,null,null,null,null,null,null,null,null,null,null,null,null,null,null,null,null,null,null,null,null,null,null,null,null,null,null,null,null,null,null,null,null,null,null,null,null,null,null,null,null,null,null,null,null,null,null,null,null,null,null,null,null,null,null,null,null,null,null,null,null,26]
[null,null,null,"電話番号",null,null,null,null,null,null,null,"(",null,null,null,null,null,null,null,null,null,")",null,null,null,null,null,null,null,null,null,"－",null,null,null,null,null,null,null,null,null,null,null,null,"E-mail",null,null,null,null,null,null,null,null,null,null,null,null,null,null,null,null,null,null,null,null,null,null,null,null,null,null,null,null,null,null,null,null,null,null,null,null,null,null,null,null,null,null,null,null,null,null,null,null,27]
[null,null,null,"緊急連絡先\n（携帯等）",null,null,null,null,null,null,null,"(",null,null,null,null,null,null,null,null,null,")",null,null,null,null,null,null,null,null,null,"－",null,null,null,null,null,null,null,null,null,null,null,null,"上記メールアドレスに間違いがないか再度ご確認ください。\nご確認後チェックを入れてください。→",null,null,null,null,null,null,null,null,null,null,null,null,null,null,null,null,null,null,null,null,null,null,null,null,null,null,null,null,null,null,null,null,null,null,null,null,null,null,null,null,null,null,"□",null,null,null,null,null,28]
["←手続き代行者が申請した場合は＋を押下"]
[]
["３.交付決定番号",null,null,null,null,null,null,null,null,null,null,null,null,null,null,null,null,null,null,null,null,null,null,null,null,null,null,null,null,null,null,"交付決定日",null,null,null,null,null,null,null,null,null,null,null,null,null,null,null,null,null,null,null,null,null,null,null,null,null,null,null,null,null,null,"工事契約日",null,null,null,null,null,null,null,null,null,null,null,null,null,null,null,null,null,null,null,null,null,null,null,null,null,null,null,null,null,null,"No","SII連絡事項"]
["SII-BBA250-03-",null,null,null,null,null,null,null,null,null,null,null,null,null,null,null,null,null,null,null,null,null,null,null,null,null,"-A",null,null,null,null,2025,null,null,null,null,null,null,null,null,"年",null,null,null,null,null,null,null,null,"月",null,null,null,null,null,null,null,null,"日",null,null,null,2025,null,null,null,null,null,null,null,null,"年",null,null,null,null,null,null,null,null,"月",null,null,null,null,null,null,null,null,"日",null,null,null,29]
[null,null,null,null,null,null,null,null,null,null,null,null,null,null,null,null,null,null,null,null,null,null,null,null,null,null,null,null,null,null,null,{"$f":"IF(OR(AF50=\"\",AR50=\"\"),\"\",IF(DATE(AF50,AR50,BA50)<=EOMONTH(DATE(AF50,AR50,1), 0),\"\",\"日付をご確認ください↑\"))","v":""},null,null,null,null,null,null,null,null,null,null,null,null,null,null,null,null,null,null,null,null,null,null,null,null,null,null,null,null,null,null,{"$f":"IF(OR(BK50=\"\",BW50=\"\"),\"\",IF(DATE(BK50,BW50,CF50)<=EOMONTH(DATE(BK50,BW50,1), 0),\"\",\"日付をご確認ください↑\"))","v":""}]
[null,null,null,null,null,null,null,null,null,null,null,null,null,null,null,null,null,null,null,null,null,null,null,null,null,null,null,null,null,null,null,{"$f":"IFERROR(IF(OR(BK50=\"\",BW50=\"\",CF50=\"\"),\"\",IF(DATE(AF50,AR50,BA50)<=DATE(BK50,BW50,CF50),\"\",\"交付決定日より前に工事契約をした場合、補助金の支払いができません。↑\")),\"\")","v":""}]
["４.事業完了日",null,null,null,null,null,null,null,null,null,null,null,null,null,null,null,null,null,null,null,null,null,null,null,null,null,null,null,null,null,null,"効果測定結果報告書の提出予定日",null,null,null,null,null,null,null,null,null,null,null,null,null,null,null,null,null,null,null,null,null,null,null,null,null,null,null,null,null,null,null,null,null,null,null,null,null,null,null,null,null,null,null,null,null,null,null,null,null,null,null,null,null,null,null,null,null,null,null,null,null,"No","SII連絡事項"]
[null,null,null,null,null,null,null,null,null,"年",null,null,null,null,null,null,null,null,"月",null,null,null,null,null,null,null,"日",null,null,null,null,null,null,null,null,null,null,null,null,null,"年",null,null,null,null,null,null,null,null,"月",null,null,null,null,null,null,null,"日",null,null,null,null,null,null,null,null,null,null,null,null,null,null,null,null,null,null,null,null,null,null,null,null,null,null,null,null,null,null,null,null,null,null,null,30]
[{"$f":"IF(OR(A54=\"\",O54=\"\"),\"\",IF(DATE(A54,O54,W54)<=EOMONTH(DATE(A54,O54,1), 0),\"\",\"日付をご確認ください↑\"))","v":""},null,null,null,null,null,null,null,null,null,null,null,null,null,null,null,null,null,null,null,null,null,null,null,null,null,null,null,null,null,null,{"$f":"IF(OR(AF54=\"\",AT54=\"\"),\"\",IF(DATE(AF54,AT54,BB54)<=EOMONTH(DATE(AF54,AT54,1), 0),\"\",\"日付をご確認ください↑\"))","v":""}]
[]
["５.実績報告の補助金の額",null,null,null,null,null,null,null,null,null,null,null,null,null,null,null,null,null,null,null,null,null,null,null,null,null,null,null,null,null,null,null,null,null,null,null,null,null,null,null,null,null,null,null,null,null,null,null,null,null,null,null,null,null,null,null,null,null,null,null,null,null,null,null,null,null,null,null,null,null,null,null,null,null,null,null,null,null,null,null,null,null,null,null,null,null,null,null,null,null,null,null,null,"No","SII連絡事項"]
[{"$f":"IF(OR(総括表!AI28=0,総括表!AI30=\"\"),\"\",MIN(総括表!AI28,総括表!AI30))","v":""},null,null,null,null,null,null,null,null,null,null,null,null,null,null,null,null,null,null,null,null,null,null,null,null,null,null,null,null,null,null,null,null,null,null,null,null,null,null,null,null,null,null,"円（税抜)",null,null,null,null,null,null,null,null,null,null,null,null,null,null,null,null,null,null,null,null,null,null,null,null,null,null,null,null,null,null,null,null,null,null,null,null,null,null,null,null,null,null,null,null,null,null,null,null,null,31]
[]
["６.補助事業の実施に係る契約先"]
[" 補助事業の実施に係る契約先について、下記内容を確認すること。",null,null,null,null,null,null,null,null,null,null,null,null,null,null,null,null,null,null,null,null,null,null,null,null,null,null,null,null,null,null,null,null,null,null,null,null,null,null,null,null,null,null,null,null,null,null,null,null,null,null,null,null,null,null,null,null,null,null,null,null,null,null,null,null,null,null,null,null,null,null,null,null,null,null,null,null,null,null,null,null,null,null,null,null,null,null,null,null,null,null,null,null,"No","SII連絡事項"]
[null,"□",null,null,"当該補助事業において、補助事業の一部を第三者に請け負わせ、又は委託し、若しくは共同して実施する体制が何重であっても、住宅・建築物需給一体型等省エネルギー投資促進事業費（既築住宅のZEH改修実証支援事業）交付規程（制定２０２５年５月30日 ＳＩＩ-ＢＢＡ２５０-０３-０００００１-Ｒ）第１０条を満たすことを確認しています。",null,null,null,null,null,null,null,null,null,null,null,null,null,null,null,null,null,null,null,null,null,null,null,null,null,null,null,null,null,null,null,null,null,null,null,null,null,null,null,null,null,null,null,null,null,null,null,null,null,null,null,null,null,null,null,null,null,null,null,null,null,null,null,null,null,null,null,null,null,null,null,null,null,null,null,null,null,null,null,null,null,null,null,null,null,null,null,null,32]
[]
[]
[]
[]
[]
[]
[]
[]
[]
[]
[]
[]
[]
[]
[]
[]
[]
[]
[]
[]
[]
[]
[]
[]
[]
[]
[]
[]
[]
[]
[]
[{"$f":"IF(BV21=\"\",\"\",VLOOKUP((BQ21&BV21&BY21),#REF!,2,FALSE))","v":""}]

{"sheet":"取得財産等管理台帳（取得財産等明細表）","index":8,"n_rows":18,"n_cols":110,"rows_kept":18,"cut":false,"hidden":false,"merged":[[5,36,5,44],[6,54,6,58],[6,69,6,70],[6,71,6,77],[0,0,0,106],[1,0,1,106],[2,0,2,106],[3,0,3,106],[6,1,6,14],[6,15,6,27],[5,1,5,14],[5,15,5,27],[5,28,5,35],[6,28,6,35],[6,36,6,44],[6,45,6,53],[5,78,5,96],[4,93,4,105],[4,54,4,92],[5,54,5,70],[8,64,8,65],[8,66,8,68],[7,54,7,58],[7,59,7,60],[7,61,7,63],[5,45,5,53],[7,97,7,105],[6,78,6,96],[6,97,6,105],[5,97,5,105],[6,64,6,65],[6,66,6,68],[7,69,7,70],[7,71,7,77],[7,45,7,53],[7,78,7,96],[6,59,6,60],[6,61,6,63],[5,71,5,77],[7,64,7,65],[7,66,7,68],[7,1,7,14],[7,15,7,27],[7,28,7,35],[7,36,7,44],[8,45,8,53],[8,1,8,14],[8,15,8,27],[8,28,8,35],[8,36,8,44],[11,1,19,8],[11,9,11,11],[11,12,12,105],[13,9,13,11],[13,12,14,105],[15,9,15,11],[15,12,15,105],[16,9,16,11],[16,12,16,105],[17,9,17,11],[17,12,17,105],[9,71,9,77],[8,97,8,105],[9,1,9,14],[9,15,9,27],[9,28,9,35],[9,36,9,44],[9,45,9,53],[8,59,8,60],[8,69,8,70],[8,78,8,96],[8,54,8,58],[8,71,8,77],[9,97,9,105],[9,78,9,96],[9,54,9,70],[8,61,8,63]]}
["（様式第２・３）"]
[]
["取得財産等管理台帳（取得財産等明細表）"]
["〔 令和７年度 〕"]
[null,null,null,null,null,null,null,null,null,null,null,null,null,null,null,null,null,null,null,null,null,null,null,null,null,null,null,null,null,null,null,null,null,null,null,null,null,null,null,null,null,null,null,null,null,null,null,null,null,null,null,null,null,null,{"$f":"IFERROR(IF(DATE(実績報告書!A54,実績報告書!O54,実績報告書!W54)>=DATE(BC7,BJ7,BO7), \"\",\"↓取得年月日は事業完了日前の日付で入力してください。\"),\"\")","v":""},null,null,null,null,null,null,null,null,null,null,null,null,null,null,null,null,null,null,null,null,null,null,null,null,null,null,null,null,null,null,null,null,null,null,null,null,null,null,"（単位：円）"]
[null,null,null,null,null,null,null,null,null,null,null,null,null,null,null,"規格",null,null,null,null,null,null,null,null,null,null,null,null,"数量",null,null,null,null,null,null,null,"単価",null,null,null,null,null,null,null,null,"金額",null,null,null,null,null,null,null,null,"取得年月日",null,null,null,null,null,null,null,null,null,null,null,null,null,null,null,null,"処分制限\n期間",null,null,null,null,null,null,"保管場所",null,null,null,null,null,null,null,null,null,null,null,null,null,null,null,null,null,null,"備考",null,null,null,null,null,null,null,null,null,null,"No","SII連絡事項"]
[null,"(ウ)不動産の従物",null,null,null,null,null,null,null,null,null,null,null,null,null,"住宅の設備等の導入",null,null,null,null,null,null,null,null,null,null,null,null,"一式",null,null,null,null,null,null,null,{"$f":"IF(実績報告書!A58=\"\", \"\", 実績報告書!A58)","v":""},null,null,null,null,null,null,null,null,{"$f":"IF(実績報告書!A58=\"\", \"\", 実績報告書!A58)","v":""},null,null,null,null,null,null,null,null,null,null,null,null,null,"年",null,null,null,null,"月",null,null,null,null,"日",null,"6年",null,null,null,null,null,null,null,null,null,null,null,null,null,null,null,null,null,null,null,null,null,null,null,null,null,null,null,null,null,null,null,null,null,null,null,null,1]
[null,null,null,null,null,null,null,null,null,null,null,null,null,null,null,null,null,null,null,null,null,null,null,null,null,null,null,null,null,null,null,null,null,null,null,null,null,null,null,null,null,null,null,null,null,null,null,null,null,null,null,null,null,null,null,null,null,null,null,"年",null,null,null,null,"月",null,null,null,null,"日",null,null,null,null,null,null,null,null,null,null,null,null,null,null,null,null,null,null,null,null,null,null,null,null,null,null,null,null,null,null,null,null,null,null,null,null,null,null,2]
[null,null,null,null,null,null,null,null,null,null,null,null,null,null,null,null,null,null,null,null,null,null,null,null,null,null,null,null,null,null,null,null,null,null,null,null,null,null,null,null,null,null,null,null,null,null,null,null,null,null,null,null,null,null,null,null,null,null,null,"年",null,null,null,null,"月",null,null,null,null,"日",null,null,null,null,null,null,null,null,null,null,null,null,null,null,null,null,null,null,null,null,null,null,null,null,null,null,null,null,null,null,null,null,null,null,null,null,null,null,3]
[null,"合計",null,null,null,null,null,null,null,null,null,null,null,null,null,null,null,null,null,null,null,null,null,null,null,null,null,null,null,null,null,null,null,null,null,null,null,null,null,null,null,null,null,null,null,{"$f":"SUM(AT7:BB9)","v":0},null,null,null,null,null,null,null,null,null,null,null,null,null,null,null,null,null,null,null,null,null,null,null,null,null,null,null,null,null,null,null,null,null,null,null,null,null,null,null,null,null,null,null,null,null,null,null,null,null,null,null,null,null,null,null,null,null,null,null,null,null,null,4]
[]
[null,"（注）",null,null,null,null,null,null,null,"１．",null,null,"対象となる取得財産等は、取得価格又は効用の増加価格が住宅・建築物需給一体型等省エネルギー投資促進事業費（既築住宅のＺＥＨ改修実証支援事業）交付規程（以下「交付規程」という。）第２４条第１項に定める処分制限額以上の財産とする。\n"]
[]
[null,null,null,null,null,null,null,null,null,"２．",null,null,"財産名の区分は、（ア）不動産、（イ）船舶、航空機、浮標、浮さん橋及び浮ドツク、（ウ）（ア）（イ）に掲げるものの従物、（エ）車両及び運搬具、工具、器具及び備品、機械及び装置、（オ）無形資産、（カ）開発研究用資産、（キ）その他の物件とする。"]
[]
[null,null,null,null,null,null,null,null,null,"３．",null,null,"数量は、同一規格等であれば一括して記載して差し支えない。単価が異なる場合は分割して記載すること。"]
[null,null,null,null,null,null,null,null,null,"４．",null,null,"取得年月日は、検収年月日を記載すること。"]
[null,null,null,null,null,null,null,null,null,"５．",null,null,"処分制限期間は、交付規程第２４条第２項に定める期間を記載すること。"]

{"sheet":"精算払請求書","index":9,"n_rows":62,"n_cols":96,"rows_kept":62,"cut":false,"hidden":false,"merged":[[0,0,0,91],[1,0,1,91],[2,0,2,91],[3,94,4,94],[17,0,17,10],[17,11,17,56],[5,90,5,91],[6,0,6,26],[6,62,6,87],[7,14,7,26],[9,0,11,91],[12,0,12,91],[5,61,5,70],[5,71,5,75],[5,76,5,77],[5,78,5,82],[5,83,5,84],[5,85,5,89],[14,0,14,91],[16,0,16,10],[16,11,16,56],[16,57,16,67],[16,68,16,91],[15,0,15,10],[15,11,15,56],[18,0,18,10],[18,11,18,32],[18,33,18,56],[19,0,19,10],[19,11,19,32],[19,33,19,56],[21,56,21,91],[22,0,22,10],[22,11,22,91],[24,0,24,91],[27,0,27,91],[25,0,25,21],[25,22,25,32],[20,0,21,10],[20,11,20,13],[20,14,20,17],[20,18,20,19],[20,20,20,25],[21,11,21,27],[21,28,21,55],[28,0,28,42],[28,43,28,67],[28,68,28,91],[30,0,30,23],[30,24,30,66],[30,67,30,91],[31,0,31,27],[31,28,31,91],[32,0,32,6],[32,7,32,13],[32,14,32,20],[32,21,32,27],[32,28,32,91],[33,0,33,27],[33,28,33,91],[34,0,34,6],[34,7,34,13],[34,14,34,20],[34,21,34,27],[34,28,34,91],[35,0,35,91],[36,0,36,2],[36,3,36,20],[36,21,36,23],[36,24,36,41],[36,42,36,44],[36,45,36,62],[36,63,36,65],[36,66,36,73],[36,74,36,89],[3,95,4,95],[61,0,61,8],[61,9,61,58],[36,90,36,91],[37,0,37,27],[37,28,37,36],[37,37,37,45],[37,46,37,54],[37,55,37,63],[37,64,37,72],[37,73,37,81],[37,82,37,91],[38,0,38,27],[60,0,60,8],[60,9,60,58],[38,28,38,91]]}
["定型様式17"]
["令和７年度 \n住宅・建築物需給一体型等省エネルギー投資促進事業費\n（既築住宅のZEH改修実証支援事業）"]
["精算払請求書"]
[null,null,null,null,null,null,null,null,null,null,null,null,null,null,null,null,null,null,null,null,null,null,null,null,null,null,null,null,null,null,null,null,null,null,null,null,null,null,null,null,null,null,null,null,null,null,null,null,null,null,null,null,null,null,null,null,null,null,null,null,null,null,null,null,null,null,null,null,null,null,null,null,null,null,null,null,null,null,null,null,null,null,null,null,null,null,null,null,null,null,null,null,null,null,"No","SII連絡事項"]
[]
[null,null,null,null,null,null,null,null,null,null,null,null,null,null,null,null,null,null,null,null,null,null,null,null,null,null,null,null,null,null,null,null,null,null,null,null,null,null,null,null,null,null,null,null,null,null,null,null,null,null,null,null,null,null,null,null,null,null,null,null,null,null,null,null,null,null,null,null,null,null,null,null,null,null,null,null,"年",null,null,null,null,null,null,"月",null,null,null,null,null,null,"日",null,null,null,1]
["一般社団法人　環境共創イニシアチブ",null,null,null,null,null,null,null,null,null,null,null,null,null,null,null,null,null,null,null,null,null,null,null,null,null,null,null,null,null,null,null,null,null,null,null,null,null,null,null,null,null,null,null,null,null,null,null,null,null,null,null,null,null,null,null,null,null,null,null,null,null,{"$f":"IF(OR(BT6=\"\",CA6=\"\"),\"\",IF(DATE(BT6,CA6,CH6)<=EOMONTH(DATE(BT6,CA6,1), 0),\"\",\"日付をご確認ください↑\"))","v":""}]
[null,null,null,null,null,null,null,null,null,null,null,null,null,null,"代 表 理 事 殿"]
[]
["　経済産業省からの住宅・建築物需給一体型等省エネルギー投資促進事業費交付要綱第３条に基づく国庫補助金を受けたいので、住宅・建築物需給一体型等省エネルギー投資促進事業費（既築住宅のZEH改修実証支援事業）交付規程第１８条第２項の規定に基づき、下記のとおり請求します。"]
[]
[]
["記"]
[]
["１.補助事業者の氏名又は名称（法人にあっては名称及び代表者の氏名）及び住所",null,null,null,null,null,null,null,null,null,null,null,null,null,null,null,null,null,null,null,null,null,null,null,null,null,null,null,null,null,null,null,null,null,null,null,null,null,null,null,null,null,null,null,null,null,null,null,null,null,null,null,null,null,null,null,null,null,null,null,null,null,null,null,null,null,null,null,null,null,null,null,null,null,null,null,null,null,null,null,null,null,null,null,null,null,null,null,null,null,null,null,null,null,"No","SII連絡事項"]
["(ふりがな)",null,null,null,null,null,null,null,null,null,null,{"$f":"IF(実績報告書!L18=0,\"\",実績報告書!L18)","v":""}]
["法人名",null,null,null,null,null,null,null,null,null,null,{"$f":"IF(実績報告書!L19=0,\"\",実績報告書!L19)","v":""},null,null,null,null,null,null,null,null,null,null,null,null,null,null,null,null,null,null,null,null,null,null,null,null,null,null,null,null,null,null,null,null,null,null,null,null,null,null,null,null,null,null,null,null,null,null,null,null,null,null,null,null,null,null,null,null,null,null,null,null,null,null,null,null,null,null,null,null,null,null,null,null,null,null,null,null,null,null,null,null,null,null,2]
["役職名",null,null,null,null,null,null,null,null,null,null,{"$f":"IF(実績報告書!L20=0,\"\",実績報告書!L20)","v":""},null,null,null,null,null,null,null,null,null,null,null,null,null,null,null,null,null,null,null,null,null,null,null,null,null,null,null,null,null,null,null,null,null,null,null,null,null,null,null,null,null,null,null,null,null,null,null,null,null,null,null,null,null,null,null,null,null,null,null,null,null,null,null,null,null,null,null,null,null,null,null,null,null,null,null,null,null,null,null,null,null,null,3]
["(ふりがな)",null,null,null,null,null,null,null,null,null,null,{"$f":"IF(実績報告書!L21=0,\"\",実績報告書!L21)","v":""},null,null,null,null,null,null,null,null,null,null,null,null,null,null,null,null,null,null,null,null,null,{"$f":"IF(実績報告書!AH21=0,\"\",実績報告書!AH21)","v":""},null,null,null,null,null,null,null,null,null,null,null,null,null,null,null,null,null,null,null,null,null,null,null,null,null,null,null,null,null,null,null,null,null,null,null,null,null,null,null,null,null,null,null,null,null,null,null,null,null,null,null,null,null,null,null,null,null,null,null,null,4]
["代表者\n氏名",null,null,null,null,null,null,null,null,null,null,{"$f":"IF(実績報告書!L22=0,\"\",実績報告書!L22)","v":""},null,null,null,null,null,null,null,null,null,null,null,null,null,null,null,null,null,null,null,null,null,{"$f":"IF(実績報告書!AH22=0,\"\",実績報告書!AH22)","v":""},null,null,null,null,null,null,null,null,null,null,null,null,null,null,null,null,null,null,null,null,null,null,null,null,null,null,null,null,null,null,null,null,null,null,null,null,null,null,null,null,null,null,null,null,null,null,null,null,null,null,null,null,null,null,null,null,null,null,null,null,5]
["住所",null,null,null,null,null,null,null,null,null,null,"〒",null,null,{"$f":"IF(実績報告書!O23=0,\"\",実績報告書!O23)","v":""},null,null,null,"－",null,{"$f":"IF(実績報告書!U23=0,\"\",実績報告書!U23)","v":""},null,null,null,null,null,null,null,null,null,null,null,null,null,null,null,null,null,null,null,null,null,null,null,null,null,null,null,null,null,null,null,null,null,null,null,null,null,null,null,null,null,null,null,null,null,null,null,null,null,null,null,null,null,null,null,null,null,null,null,null,null,null,null,null,null,null,null,null,null,null,null,null,null,6]
[null,null,null,null,null,null,null,null,null,null,null,{"$f":"IF(実績報告書!L24=0,\"\",実績報告書!L24)","v":""},null,null,null,null,null,null,null,null,null,null,null,null,null,null,null,null,{"$f":"IF(実績報告書!AC24=0,\"\",実績報告書!AC24)","v":""},null,null,null,null,null,null,null,null,null,null,null,null,null,null,null,null,null,null,null,null,null,null,null,null,null,null,null,{"$f":"IF(実績報告書!BE24=0,\"\",実績報告書!BE24)","v":""},null,null,null,null,null,null,null,null,null,null,null,null,null,null,null,null,null,null,null,null,null,null,null,null,null,null,null,null,null,null,null,null,null,null,null,null,null,7]
["建物名\n部屋番号",null,null,null,null,null,null,null,null,null,null,{"$f":"IF(実績報告書!L25=0,\"\",実績報告書!L25)","v":""},null,null,null,null,null,null,null,null,null,null,null,null,null,null,null,null,null,null,null,null,null,null,null,null,null,null,null,null,null,null,null,null,null,null,null,null,null,null,null,null,null,null,null,null,null,null,null,null,null,null,null,null,null,null,null,null,null,null,null,null,null,null,null,null,null,null,null,null,null,null,null,null,null,null,null,null,null,null,null,null,null,null,8]
[]
["２.交付決定番号",null,null,null,null,null,null,null,null,null,null,null,null,null,null,null,null,null,null,null,null,null,null,null,null,null,null,null,null,null,null,null,null,null,null,null,null,null,null,null,null,null,null,null,null,null,null,null,null,null,null,null,null,null,null,null,null,null,null,null,null,null,null,null,null,null,null,null,null,null,null,null,null,null,null,null,null,null,null,null,null,null,null,null,null,null,null,null,null,null,null,null,null,null,"No","SII連絡事項"]
["SII-BBA250-03-",null,null,null,null,null,null,null,null,null,null,null,null,null,null,null,null,null,null,null,null,null,{"$f":"IF(実績報告書!Q50=0,\"\",実績報告書!Q50)","v":""},null,null,null,null,null,null,null,null,null,null,"-A",null,null,null,null,null,null,null,null,null,null,null,null,null,null,null,null,null,null,null,null,null,null,null,null,null,null,null,null,null,null,null,null,null,null,null,null,null,null,null,null,null,null,null,null,null,null,null,null,null,null,null,null,null,null,null,null,null,null,null,null,9]
[]
["３.精算払請求金額",null,null,null,null,null,null,null,null,null,null,null,null,null,null,null,null,null,null,null,null,null,null,null,null,null,null,null,null,null,null,null,null,null,null,null,null,null,null,null,null,null,null,null,null,null,null,null,null,null,null,null,null,null,null,null,null,null,null,null,null,null,null,null,null,null,null,null,null,null,null,null,null,null,null,null,null,null,null,null,null,null,null,null,null,null,null,null,null,null,null,null,null,null,"No","SII連絡事項"]
[{"$f":"IF(実績報告書!A58=0,\"\",実績報告書!A58)","v":""},null,null,null,null,null,null,null,null,null,null,null,null,null,null,null,null,null,null,null,null,null,null,null,null,null,null,null,null,null,null,null,null,null,null,null,null,null,null,null,null,null,null,"円（税抜)",null,null,null,null,null,null,null,null,null,null,null,null,null,null,null,null,null,null,null,null,null,null,null,null,null,null,null,null,null,null,null,null,null,null,null,null,null,null,null,null,null,null,null,null,null,null,null,null,null,null,10]
[]
["４.振込先"]
[" 金融機関コード",null,null,null,null,null,null,null,null,null,null,null,null,null,null,null,null,null,null,null,null,null,null,null,null,null,null,null," 金融機関名",null,null,null,null,null,null,null,null,null,null,null,null,null,null,null,null,null,null,null,null,null,null,null,null,null,null,null,null,null,null,null,null,null,null,null,null,null,null,null,null,null,null,null,null,null,null,null,null,null,null,null,null,null,null,null,null,null,null,null,null,null,null,null,null,null,"No","SII連絡事項"]
[null,null,null,null,null,null,null,null,null,null,null,null,null,null,null,null,null,null,null,null,null,null,null,null,null,null,null,null,null,null,null,null,null,null,null,null,null,null,null,null,null,null,null,null,null,null,null,null,null,null,null,null,null,null,null,null,null,null,null,null,null,null,null,null,null,null,null,null,null,null,null,null,null,null,null,null,null,null,null,null,null,null,null,null,null,null,null,null,null,null,null,null,null,null,11]
[" 支店コード",null,null,null,null,null,null,null,null,null,null,null,null,null,null,null,null,null,null,null,null,null,null,null,null,null,null,null," 支店名"]
[null,null,null,null,null,null,null,null,null,null,null,null,null,null,null,null,null,null,null,null,null,null,null,null,null,null,null,null,null,null,null,null,null,null,null,null,null,null,null,null,null,null,null,null,null,null,null,null,null,null,null,null,null,null,null,null,null,null,null,null,null,null,null,null,null,null,null,null,null,null,null,null,null,null,null,null,null,null,null,null,null,null,null,null,null,null,null,null,null,null,null,null,null,null,12]
[" 預金の種類（該当するものに■をつけること）"]
["□",null,null,"普通",null,null,null,null,null,null,null,null,null,null,null,null,null,null,null,null,null,"□",null,null,"当座",null,null,null,null,null,null,null,null,null,null,null,null,null,null,null,null,null,"□",null,null,"貯蓄",null,null,null,null,null,null,null,null,null,null,null,null,null,null,null,null,null,"□",null,null,"その他（",null,null,null,null,null,null,null,null,null,null,null,null,null,null,null,null,null,null,null,null,null,null,null,"）",null,null,null,13]
[" 口座番号（右詰めで入力）",null,null,null,null,null,null,null,null,null,null,null,null,null,null,null,null,null,null,null,null,null,null,null,null,null,null,null,null,null,null,null,null,null,null,null,null,null,null,null,null,null,null,null,null,null,null,null,null,null,null,null,null,null,null,null,null,null,null,null,null,null,null,null,null,null,null,null,null,null,null,null,null,null,null,null,null,null,null,null,null,null,null,null,null,null,null,null,null,null,null,null,null,null,14]
[" 口座名義人（カタカナで入力）",null,null,null,null,null,null,null,null,null,null,null,null,null,null,null,null,null,null,null,null,null,null,null,null,null,null,null,null,null,null,null,null,null,null,null,null,null,null,null,null,null,null,null,null,null,null,null,null,null,null,null,null,null,null,null,null,null,null,null,null,null,null,null,null,null,null,null,null,null,null,null,null,null,null,null,null,null,null,null,null,null,null,null,null,null,null,null,null,null,null,null,null,null,15]
[]
[]
[]
[]
[]
[]
[]
[]
[]
[]
[]
[]
[]
[]
[]
[]
[]
[]
[]
[]
[]
["口座名義人",null,null,null,null,null,null,null,null,{"$f":"IF(AC39=\"\",\"\",_xlfn.CONCAT(ASC($AC$39),\" \",ASC($BI$39)))","v":""}]
["SFDC登録用\n口座名義人",null,null,null,null,null,null,null,null,{"$f":"IFERROR(LEFT((_xlfn.CONCAT(MID(\"ｱｲｳｴｵｶｹﾂﾔﾕﾖ\"&J61,FIND(MID(J61,_xlfn.SEQUENCE(LEN(J61)),1),\"ｧｨｩｪｫヵヶｯｬｭｮ\"&J61),1))),30),\"\")","v":""}]

{"sheet":"広報活動実施要領","index":10,"n_rows":15,"n_cols":96,"rows_kept":15,"cut":false,"hidden":false,"merged":[[14,0,15,10],[14,11,14,91],[14,93,15,93],[15,11,15,91],[10,0,11,10],[10,11,10,91],[10,93,11,93],[11,11,11,91],[12,0,13,10],[12,11,12,91],[12,93,13,93],[13,11,13,91],[7,0,7,10],[7,11,7,91],[8,0,8,10],[8,11,8,91],[9,0,9,10],[9,11,9,13],[9,14,9,16],[9,17,9,19],[9,20,9,22],[9,23,9,91],[6,59,6,61],[0,0,0,91],[1,0,1,91],[6,0,6,10],[6,11,6,17],[6,18,6,20],[6,21,6,24],[6,25,6,27],[6,28,6,31],[6,32,6,34],[6,35,6,37],[6,38,6,44],[6,45,6,47],[6,48,6,51],[6,52,6,54],[6,55,6,58],[10,94,11,94],[10,95,11,95],[12,94,13,94],[12,95,13,95],[14,94,15,94],[14,95,15,95]]}
["定型様式12"]
["広報活動実施要領"]
[]
[]
[]
["広報活動の計画内容",null,null,null,null,null,null,null,null,null,null,null,null,null,null,null,null,null,null,null,null,null,null,null,null,null,null,null,null,null,null,null,null,null,null,null,null,null,null,null,null,null,null,null,null,null,null,null,null,null,null,null,null,null,null,null,null,null,null,null,null,null,null,null,null,null,null,null,null,null,null,null,null,null,null,null,null,null,null,null,null,null,null,null,null,null,null,null,null,null,null,null,null,"SII連絡事項","No.","SII連絡事項"]
["開催\n予定日",null,null,null,null,null,null,null,null,null,null,null,null,null,null,null,null,null,"年",null,null,null,null,null,null,"月",null,null,null,null,null,null,"日",null,null,"～",null,null,null,null,null,null,null,null,null,"年",null,null,null,null,null,null,"月",null,null,null,null,null,null,"日",null,null,null,null,null,null,null,null,null,null,null,null,null,null,null,null,null,null,null,null,null,null,null,null,null,null,null,null,null,null,null,null,null,null,1]
["開催方法",null,null,null,null,null,null,null,null,null,null,null,null,null,null,null,null,null,null,null,null,null,null,null,null,null,null,null,null,null,null,null,null,null,null,null,null,null,null,null,null,null,null,null,null,null,null,null,null,null,null,null,null,null,null,null,null,null,null,null,null,null,null,null,null,null,null,null,null,null,null,null,null,null,null,null,null,null,null,null,null,null,null,null,null,null,null,null,null,null,null,null,null,null,2]
["開催の\n周知方法",null,null,null,null,null,null,null,null,null,null,null,null,null,null,null,null,null,null,null,null,null,null,null,null,null,null,null,null,null,null,null,null,null,null,null,null,null,null,null,null,null,null,null,null,null,null,null,null,null,null,null,null,null,null,null,null,null,null,null,null,null,null,null,null,null,null,null,null,null,null,null,null,null,null,null,null,null,null,null,null,null,null,null,null,null,null,null,null,null,null,null,null,null,3]
["配布物",null,null,null,null,null,null,null,null,null,null,"□",null,null,"無",null,null,"□",null,null,"有",null,null,null,null,null,null,null,null,null,null,null,null,null,null,null,null,null,null,null,null,null,null,null,null,null,null,null,null,null,null,null,null,null,null,null,null,null,null,null,null,null,null,null,null,null,null,null,null,null,null,null,null,null,null,null,null,null,null,null,null,null,null,null,null,null,null,null,null,null,null,null,null,null,4]
["実施内容",null,null,null,null,null,null,null,null,null,null,"（予定している具体的な実施内容）",null,null,null,null,null,null,null,null,null,null,null,null,null,null,null,null,null,null,null,null,null,null,null,null,null,null,null,null,null,null,null,null,null,null,null,null,null,null,null,null,null,null,null,null,null,null,null,null,null,null,null,null,null,null,null,null,null,null,null,null,null,null,null,null,null,null,null,null,null,null,null,null,null,null,null,null,null,null,null,null,null,null,5]
[]
["改修による\n省エネ効果に\n関する説明",null,null,null,null,null,null,null,null,null,null,"（予定している具体的な説明内容）",null,null,null,null,null,null,null,null,null,null,null,null,null,null,null,null,null,null,null,null,null,null,null,null,null,null,null,null,null,null,null,null,null,null,null,null,null,null,null,null,null,null,null,null,null,null,null,null,null,null,null,null,null,null,null,null,null,null,null,null,null,null,null,null,null,null,null,null,null,null,null,null,null,null,null,null,null,null,null,null,null,null,6]
[]
["参加者からの\n意見及び感想の収集方法",null,null,null,null,null,null,null,null,null,null,"（予定している具体的な収集方法）",null,null,null,null,null,null,null,null,null,null,null,null,null,null,null,null,null,null,null,null,null,null,null,null,null,null,null,null,null,null,null,null,null,null,null,null,null,null,null,null,null,null,null,null,null,null,null,null,null,null,null,null,null,null,null,null,null,null,null,null,null,null,null,null,null,null,null,null,null,null,null,null,null,null,null,null,null,null,null,null,null,null,7]